Local authority department which incurred the expenditure,Service Division,Cost Centre,Summary of the Purpose of Expenditure,Expense Type,Expense Code,Detailed Expense Type,Date of Transaction,Transaction Number,Beneficiary,Merchant Category Number,Merchant Category,Gross Amount,VAT,Net Amount
Regeneration Economy and Growth,Business Durham CL0850,030689,Inward Investment and Aftercare,Supplies and Services,336005,Advertising E336,01-Jan-2023,000010545990835,Google ADS6853017821,7311,Advertising other than for staff,3.34,0.00,3.34
Children and Young Peoples Services,Head of Childrens Social Care,085368,Children Looked After Team 5,Supplies and Services,384504,Miscellaneous Expenses,01-Jan-2023,000010545990845,SPORTSDIRECT.COM,5655,Assistance to asylum seekers,54.49,0.00,54.49
Children and Young Peoples Services,Head of Childrens Social Care,085511,Emergency Duty Team,Supplies and Services,352001,Conference Expenses,01-Jan-2023,000010545990883,HOTEL 52,7011,Conferencesseminars fees etc,157.90,0.00,157.90
Children and Young Peoples Services,Head of Education and Skills,070169,Durham SSP,Supplies and Services,304999,Equipment and Materials,01-Jan-2023,000010545990917,Microsoft Subscription,5816,Misc equipment tools and materials,7.99,1.33,6.66
Children and Young Peoples Services,Head of Childrens Social Care,085331,New Lea Childrens Home,Transport,215995,Running Costs of Vehicles,01-Jan-2023,000010545990931,CHESTER ROAD SERVICE S,5541,Vehicle running expenses,7.73,0.00,7.73
Children and Young Peoples Services,Head of Childrens Social Care,085331,New Lea Childrens Home,Supplies and Services,324117,Provisions E324,01-Jan-2023,000010545990933,ASDA SUPERSTORE,5411,Catering costs - provisions,9.00,0.00,9.00
Children and Young Peoples Services,Head of Childrens Social Care,085347,Solo Home The Manse,Supplies and Services,348037,Subsistence E348,01-Jan-2023,000010545990955,Gills Seaham,5814,Subsistence,22.72,0.00,22.72
Children and Young Peoples Services,Head of Childrens Social Care,085347,Solo Home The Manse,Supplies and Services,324117,Provisions E324,01-Jan-2023,000010545990957,ASDA STORES,5411,Catering costs - provisions,15.10,0.00,15.10
Children and Young Peoples Services,Head of Childrens Social Care,085351,Framwellgate Moor CU,Supplies and Services,304999,Equipment and Materials,01-Jan-2023,000010545990995,PlaystationNetwork,5818,Misc equipment tools and materials,1.68,0.00,1.68
Children and Young Peoples Services,Head of Childrens Social Care,085351,Framwellgate Moor CU,Supplies and Services,324117,Provisions E324,01-Jan-2023,000010545990997,SAINSBURYS LOCAL,5411,Catering costs - provisions,6.95,0.00,6.95
Regeneration Economy and Growth,Communications Management,060270,Communications and Marketing,Supplies and Services,336005,Advertising E336,01-Jan-2023,000010545991031,LinkedIn 8599026154,7311,Advertising other than for staff,63.47,0.00,63.47
Regeneration Economy and Growth,Business Durham CL0850,030689,Inward Investment and Aftercare,Supplies and Services,304403,Equipment and Materials,02-Jan-2023,000010545990837,ADOBE CREATIVE CLOUD,5734,Other consumables,51.98,0.00,51.98
Children and Young Peoples Services,Head of Education and Skills,071801,Selby Cottage Childcare Centre,Supplies and Services,324117,Provisions E324,02-Jan-2023,000010545990847,ALDI 32 774,5411,Catering costs - provisions,4.95,0.00,4.95
Regeneration Economy and Growth,Culture Sport and Tourism,030712,VCD - Project Delivery,Supplies and Services,384199,Miscellaneous Expenses,02-Jan-2023,000010545990869,MAILCHIMP MISC,5968,Other hired and contracted services,364.08,0.00,364.08
Children and Young Peoples Services,Head of Childrens Social Care,085347,Solo Home The Manse,Supplies and Services,384999,Miscellaneous Expenses,02-Jan-2023,000010545990889,PETS AT HOME LTD,5995,Other expenses,5.29,0.00,5.29
Children and Young Peoples Services,Head of Childrens Social Care,085347,Solo Home The Manse,Supplies and Services,324117,Provisions E324,02-Jan-2023,000010545990891,TESCO STORES 2371,5411,Catering costs - provisions,1.65,0.00,1.65
Regeneration Economy and Growth,Culture Sport and Tourism,054813,Gala Theatre - Technical,Supplies and Services,304259,Equipment and Materials,02-Jan-2023,000010545990899,SPOTIFY,5815,Equipment-purchase and rental,9.99,0.00,9.99
Neighbourhoods and Climate Change,Environmental Services,026591,C&G - Hardwick Park,Supplies and Services,304259,Equipment and Materials,02-Jan-2023,000010545990901,AMZNMKTPLACE AMAZON.CO,5999,Equipment-purchase and rental,90.98,15.17,75.81
Children and Young Peoples Services,Head of Childrens Social Care,085551,Short Break Services-Park Hse Sher,Supplies and Services,324117,Provisions E324,02-Jan-2023,000010545990935,CO-OP GROUP 010486,5411,Catering costs - provisions,18.15,0.00,18.15
Children and Young Peoples Services,Head of Education and Skills,071802,Louisa Cent Nursery,Supplies and Services,304999,Equipment and Materials,02-Jan-2023,000010545990947,HOME BARGAINS,5251,Misc equipment tools and materials,8.01,0.00,8.01
Children and Young Peoples Services,Head of Early Help Inclusion & Vulnerable Children.,085965,Barnard,Supplies and Services,304403,Equipment and Materials,02-Jan-2023,000010545990975,AMZNMktplace,5999,Other consumables,7.99,0.00,7.99
Children and Young Peoples Services,Head of Early Help Inclusion & Vulnerable Children.,085957,Secure Management,Supplies and Services,304405,Equipment and Materials,02-Jan-2023,000010545990979,AMZNMktplace,5999,Medical supplies,4.98,0.84,4.14
Children and Young Peoples Services,Head of Early Help Inclusion & Vulnerable Children.,085957,Secure Management,Supplies and Services,304405,Equipment and Materials,02-Jan-2023,000010545990981,AMZNMktplace,5999,Medical supplies,9.99,1.67,8.32
Children and Young Peoples Services,Head of Childrens Social Care,085334,West Rainton Satelite Home,Supplies and Services,324117,Provisions E324,02-Jan-2023,000010545991025,ALDI 12 774,5411,Catering costs - provisions,1.80,0.00,1.80
Children and Young Peoples Services,Head of Childrens Social Care,085334,West Rainton Satelite Home,Supplies and Services,324117,Provisions E324,02-Jan-2023,000010545991027,ALDI 12 774,5411,Catering costs - provisions,135.52,0.00,135.52
Regeneration Economy and Growth,Business Durham CL0850,030689,Inward Investment and Aftercare,Supplies and Services,342222,Computers and Communications,02-Jan-2023,000010548023307,FASTHOSTS,4816,Comp hardware purch-network servers,75.06,0.00,75.06
Regeneration Economy and Growth,Business Durham CL0850,030689,Inward Investment and Aftercare,Supplies and Services,342222,Computers and Communications,02-Jan-2023,000010548023309,FASTHOSTS,4816,Comp hardware purch-network servers,63.00,0.00,63.00
Regeneration Economy and Growth,Corporate Property and Land,011296,Catering - Dunes,Supplies and Services,324117,Provisions E324,02-Jan-2023,000010555322609,BATLEYS PERTH,5300,Catering costs - provisions,77.28,12.88,64.40
Regeneration Economy and Growth,Corporate Property and Land,011296,Catering - Dunes,Supplies and Services,324117,Provisions E324,02-Jan-2023,000010555322609 - 1,BATLEYS PERTH,5300,Catering costs - provisions,52.70,,52.70
Regeneration Economy and Growth,Corporate Property and Land,011296,Catering - Dunes,Supplies and Services,324117,Provisions E324,02-Jan-2023,000010555322611,BATLEYS PERTH,5300,Catering costs - provisions,127.68,0.00,127.68
Regeneration Economy and Growth,Corporate Property and Land,030691,Catering - Durham Dales Centre,Supplies and Services,324117,Provisions E324,02-Jan-2023,000010576163043,BATLEYS PERTH,5300,Catering costs - provisions,25.92,4.32,21.60
Regeneration Economy and Growth,Corporate Property and Land,030691,Catering - Durham Dales Centre,Supplies and Services,324117,Provisions E324,02-Jan-2023,000010576163043 - 1,BATLEYS PERTH,5300,Catering costs - provisions,69.44,,69.44
Regeneration Economy and Growth,Culture Sport and Tourism,054812,Gala Theatre - Catering etc,Supplies and Services,324117,Provisions E324,02-Jan-2023,000010637629889,BESTWAY WHOLESALE,5300,Catering costs - provisions,"1,981.20",330.20,1651.00
Regeneration Economy and Growth,Culture Sport and Tourism,054812,Gala Theatre - Catering etc,Supplies and Services,324117,Provisions E324,02-Jan-2023,000010637629889 - 1,BESTWAY WHOLESALE,5300,Catering costs - provisions,171.17,,171.17
Regeneration Economy and Growth,Culture Sport and Tourism,030712,VCD - Project Delivery,Supplies and Services,384199,Miscellaneous Expenses,03-Jan-2023,000010545990871,ECARDWIDGET.COM,5734,Other hired and contracted services,2.20,0.00,2.20
Children and Young Peoples Services,Head of Childrens Social Care,085357,LAC Bespoke Placements,Transport,235057,Public Transport,03-Jan-2023,000010548023323,HOLIDAY PAYMENT AVR,4722,Staff travelling,"1,597.00",0.00,1597.00
Regeneration Economy and Growth,Culture Sport and Tourism,054235,Bishop Auckland Town Hall Cafe,Supplies and Services,304259,Equipment and Materials,03-Jan-2023,000010548023327,AMZNMktplace,5999,Equipment-purchase and rental,32.16,5.36,26.80
Regeneration Economy and Growth,Culture Sport and Tourism,054235,Bishop Auckland Town Hall Cafe,Supplies and Services,304259,Equipment and Materials,03-Jan-2023,000010548023327 - 1,AMZNMktplace,5999,Equipment-purchase and rental,0.04,,0.04
Regeneration Economy and Growth,Culture Sport and Tourism,054108,Durham Clayport Library,Supplies and Services,304252,Equipment and Materials,03-Jan-2023,000010548023329,BAKER ROSS,5970,Equipment-repairsserviceinsurance,31.90,5.32,26.58
Regeneration Economy and Growth,Culture Sport and Tourism,030712,VCD - Project Delivery,Supplies and Services,384199,Miscellaneous Expenses,03-Jan-2023,000010548023331,FACEBK ZGL7BLPRH2,7311,Other hired and contracted services,63.76,0.00,63.76
Children and Young Peoples Services,Head of Childrens Social Care,085332,Middlestone Moor CU,Supplies and Services,324117,Provisions E324,03-Jan-2023,000010548023333,TESCO STORES 2371,5411,Catering costs - provisions,140.86,0.00,140.86
Children and Young Peoples Services,Head of Childrens Social Care,085341,High Etherley Satelite Home,Supplies and Services,304403,Equipment and Materials,03-Jan-2023,000010548023341,AMZNMktplace,5999,Other consumables,13.73,2.29,11.44
Regeneration Economy and Growth,Planning & Housing,031634,LOCAL LETTINGS AGENCY,Premises,120037,Energy Costs,03-Jan-2023,000010548023343,E.ON NEXT,4900,Other fuels,35.70,0.00,35.70
Children and Young Peoples Services,Head of Childrens Social Care,085341,High Etherley Satelite Home,Supplies and Services,324117,Provisions E324,03-Jan-2023,000010548023345,TESCO STORES 6329,5411,Catering costs - provisions,38.34,0.00,38.34
Neighbourhoods and Climate Change,Environmental Services,010301,C&G - North Grounds Maintenance,Supplies and Services,304221,Equipment and Materials,03-Jan-2023,000010548023351,SCREWFIX DIR LTD,5211,Direct materials,16.64,0.00,16.64
Neighbourhoods and Climate Change,Environmental Services,031200,North Pennines Core,Supplies and Services,324117,Provisions E324,03-Jan-2023,000010548023353,STANHOPE SUPERMARKET,5411,Catering costs - provisions,3.40,0.00,3.40
Children and Young Peoples Services,Head of Childrens Social Care,085347,Solo Home The Manse,Supplies and Services,324117,Provisions E324,03-Jan-2023,000010548023381,TESCO STORES 2371,5411,Catering costs - provisions,116.83,0.00,116.83
Children and Young Peoples Services,Head of Childrens Social Care,085342,16 Hickstead Rise (previously 9 Cedar Ave),Supplies and Services,304403,Equipment and Materials,03-Jan-2023,000010548023383,AMZNMKTPLACE AMAZON.CO,5999,Other consumables,68.34,0.00,68.34
Children and Young Peoples Services,Head of Childrens Social Care,085560,Community Short Breaks,Supplies and Services,332002,Printing Stationery and Gen Off Exps,03-Jan-2023,000010548023385,DURHAM CITY AC,8699,Estab-purchase from donations,70.00,0.00,70.00
Neighbourhoods and Climate Change,Environmental Services,010367,C&G - South Grounds Maintenance,Supplies and Services,304221,Equipment and Materials,03-Jan-2023,000010548023387,WWW.SCREWFIX.COM,5211,Direct materials,141.36,23.56,117.80
Neighbourhoods and Climate Change,Environmental Services,010900,Fleet - Meadowfield Fleet,Transport,215013,Running Costs of Vehicles,03-Jan-2023,000010548023389,DVLA VEHICLE TAX,9311,Vehicle Excise Duty (VED),162.00,0.00,162.00
Children and Young Peoples Services,Head of Childrens Social Care,085342,16 Hickstead Rise (previously 9 Cedar Ave),Supplies and Services,304999,Equipment and Materials,03-Jan-2023,000010548023403,Amazon Prime 160149KH4,5968,Misc equipment tools and materials,8.99,0.00,8.99
Children and Young Peoples Services,Head of Education and Skills,071732,Dean Bank Childcare,Supplies and Services,324117,Provisions E324,03-Jan-2023,000010548023405,SAINSBURYS S/MKTS,5411,Catering costs - provisions,22.59,0.00,22.59
Neighbourhoods and Climate Change,Environmental Services,011060,C&G - Hardwick Park Catering,Supplies and Services,304083,Equipment and Materials,03-Jan-2023,000010548023407,AMZNMKTPLACE AMAZON.CO,5999,Catering equipment,51.84,8.64,43.20
Neighbourhoods and Climate Change,Environmental Services,011060,C&G - Hardwick Park Catering,Supplies and Services,304083,Equipment and Materials,03-Jan-2023,000010548023407 - 1,AMZNMKTPLACE AMAZON.CO,5999,Catering equipment,0.04,,0.04
Children and Young Peoples Services,Head of Early Help Inclusion & Vulnerable Children.,085965,Barnard,Transfer Payments,515002,Social Services Clients,03-Jan-2023,000010548023413,JD Sports Fashion PLC,5655,Pocket money,80.00,0.00,80.00
Children and Young Peoples Services,Head of Early Help Inclusion & Vulnerable Children.,085965,Barnard,Transfer Payments,515002,Social Services Clients,03-Jan-2023,000010548023415,JD Sports Fashion PLC,5655,Pocket money,12.00,0.00,12.00
Children and Young Peoples Services,Head of Early Help Inclusion & Vulnerable Children.,085956,Lumley,Transfer Payments,515002,Social Services Clients,03-Jan-2023,000010548023417,JD Sports Fashion PLC,5655,Pocket money,63.99,0.00,63.99
Children and Young Peoples Services,Head of Early Help Inclusion & Vulnerable Children.,085962,Aycliffe Secure - Durham,Transfer Payments,515002,Social Services Clients,03-Jan-2023,000010548023419,Tessuti,5655,Pocket money,63.99,0.00,63.99
Children and Young Peoples Services,Head of Early Help Inclusion & Vulnerable Children.,085962,Aycliffe Secure - Durham,Transfer Payments,515002,Social Services Clients,03-Jan-2023,000010548023421,N V L T Y,5691,Pocket money,64.98,0.00,64.98
Children and Young Peoples Services,Head of Early Help Inclusion & Vulnerable Children.,085957,Secure Management,Supplies and Services,332047,Printing Stationery and Gen Off Exps,03-Jan-2023,000010548023423,AMZNMktplace,5999,Stationery,7.90,1.32,6.58
Children and Young Peoples Services,Head of Early Help Inclusion & Vulnerable Children.,085955,Auckland,Supplies and Services,308011,Furniture,03-Jan-2023,000010548023425,MARKS&SPENCER PLC,5411,Furniture repair and replacement,100.50,0.00,100.50
Children and Young Peoples Services,Head of Early Help Inclusion & Vulnerable Children.,085956,Lumley,Transfer Payments,515002,Social Services Clients,03-Jan-2023,000010548023427,PRETTYLITTLETHING.COM,5691,Pocket money,31.75,0.00,31.75
Children and Young Peoples Services,Head of Early Help Inclusion & Vulnerable Children.,085965,Barnard,Supplies and Services,304259,Equipment and Materials,03-Jan-2023,000010548023429,AMZNMKTPLACE AMAZON.CO,5999,Equipment-purchase and rental,199.95,33.33,166.62
Children and Young Peoples Services,Head of Early Help Inclusion & Vulnerable Children.,085962,Aycliffe Secure - Durham,Supplies and Services,324117,Provisions E324,03-Jan-2023,000010548023431,TESCO STORES 6329,5411,Catering costs - provisions,53.67,0.00,53.67
Children and Young Peoples Services,Head of Early Help Inclusion & Vulnerable Children.,085956,Lumley,Transfer Payments,515002,Social Services Clients,03-Jan-2023,000010548023433,SHEIN,5691,Pocket money,14.97,0.00,14.97
Children and Young Peoples Services,Head of Early Help Inclusion & Vulnerable Children.,085956,Lumley,Transfer Payments,515002,Social Services Clients,03-Jan-2023,000010548023435,SHEIN,5691,Pocket money,32.97,0.00,32.97
Children and Young Peoples Services,Head of Childrens Social Care,085342,16 Hickstead Rise (previously 9 Cedar Ave),Transport,235057,Public Transport,03-Jan-2023,000010548023437,WWW.GONORTHEAST.CO.UK,4111,Staff travelling,30.00,0.00,30.00
Children and Young Peoples Services,Head of Childrens Social Care,085342,16 Hickstead Rise (previously 9 Cedar Ave),Supplies and Services,304403,Equipment and Materials,03-Jan-2023,000010548023439,AMZNMktplace,5999,Other consumables,13.47,0.00,13.47
Children and Young Peoples Services,Head of Childrens Social Care,085331,New Lea Childrens Home,Supplies and Services,304403,Equipment and Materials,03-Jan-2023,000010548023441,AMZNMktplace,5999,Other consumables,4.94,0.00,4.94
Regeneration Economy and Growth,Culture Sport and Tourism,060131,County Records,Supplies and Services,332047,Printing Stationery and Gen Off Exps,03-Jan-2023,000010548023469,WWW.RYMAN.CO.UK,5943,Stationery,12.94,0.00,12.94
Children and Young Peoples Services,Head of Childrens Social Care,085341,High Etherley Satelite Home,Supplies and Services,328041,Clothing uniforms and laundry E328,03-Jan-2023,000010548023473,MATALAN.CO.UK,5691,Clothing uniforms and laundry,37.95,0.00,37.95
Children and Young Peoples Services,Head of Early Help Inclusion & Vulnerable Children.,085965,Barnard,Supplies and Services,304403,Equipment and Materials,03-Jan-2023,000010548023497,AMZNMktplace,5999,Other consumables,26.98,0.00,26.98
Children and Young Peoples Services,Head of Early Help Inclusion & Vulnerable Children.,085957,Secure Management,Supplies and Services,304405,Equipment and Materials,03-Jan-2023,000010548023503,AMZNMktplace,5999,Medical supplies,5.46,0.91,4.55
Children and Young Peoples Services,Head of Early Help Inclusion & Vulnerable Children.,085957,Secure Management,Supplies and Services,304405,Equipment and Materials,03-Jan-2023,000010548023503 - 1,AMZNMktplace,5999,Medical supplies,0.03,,0.03
Children and Young Peoples Services,Head of Early Help Inclusion & Vulnerable Children.,085963,Maple House,Supplies and Services,304259,Equipment and Materials,03-Jan-2023,000010548023505,CURRYS ONLINE,5732,Equipment-purchase and rental,636.55,0.00,636.55
Regeneration Economy and Growth,Business Durham CL0850,030671,Business Space 030671,Supplies and Services,340001,Postages E340,03-Jan-2023,000010548023511,ROYAL MAIL FEES,9402,Postages,59.00,0.00,59.00
Children and Young Peoples Services,Head of Childrens Social Care,085333,Coxhoe Satelite Home,Supplies and Services,384999,Miscellaneous Expenses,03-Jan-2023,000010548023519,WARREN JAMES,5944,Other expenses,45.00,0.00,45.00
Children and Young Peoples Services,Head of Childrens Social Care,085333,Coxhoe Satelite Home,Supplies and Services,324117,Provisions E324,03-Jan-2023,000010548023521,TESCO STORES 6329,5411,Catering costs - provisions,205.83,0.00,205.83
Children and Young Peoples Services,Head of Early Help Inclusion & Vulnerable Children.,085962,Aycliffe Secure - Durham,Supplies and Services,304403,Equipment and Materials,03-Jan-2023,000010548023529,AMZNMktplace,5999,Other consumables,5.16,0.86,4.30
Children and Young Peoples Services,Head of Early Help Inclusion & Vulnerable Children.,085962,Aycliffe Secure - Durham,Supplies and Services,304403,Equipment and Materials,03-Jan-2023,000010548023529 - 1,AMZNMktplace,5999,Other consumables,0.04,,0.04
Children and Young Peoples Services,Head of Early Help Inclusion & Vulnerable Children.,085962,Aycliffe Secure - Durham,Supplies and Services,304403,Equipment and Materials,03-Jan-2023,000010548023531,AMZNMktplace,5999,Other consumables,13.99,2.33,11.66
Regeneration Economy and Growth,Culture Sport and Tourism,054233,Bishop Auckland Town Hall Library,Supplies and Services,324117,Provisions E324,03-Jan-2023,000010548023535,ASDA STORES,5411,Catering costs - provisions,54.46,0.00,54.46
Children and Young Peoples Services,Head of Childrens Social Care,085358,Orchard House Sacriston Solo Home,Supplies and Services,304403,Equipment and Materials,03-Jan-2023,000010548023543,AMZNMktplace,5999,Other consumables,3.99,0.67,3.32
Resources BK0010,Digital Services,065481,Technical Services 065481,Supplies and Services,304403,Equipment and Materials,03-Jan-2023,000010548023555,AMZNMktplace,5999,Other consumables,36.98,6.16,30.82
Children and Young Peoples Services,Head of Childrens Social Care,085551,Short Break Services-Park Hse Sher,Supplies and Services,304259,Equipment and Materials,03-Jan-2023,000010548023557,OFSTED INTERNET,9399,Equipment-purchase and rental,910.00,0.00,910.00
Adult and Health Services,Head of Adults,055310,Positive Journeys (Tudhoe),Supplies and Services,324117,Provisions E324,03-Jan-2023,000010548023563,ASDA SUPERSTORE 4987,5411,Catering costs - provisions,1.20,0.00,1.20
Regeneration Economy and Growth,Economic Development Level C,030554,International Relations 030554,Transport,235057,Public Transport,03-Jan-2023,000010548023583,UBER TRIP,4121,Staff travelling,21.23,0.00,21.23
Regeneration Economy and Growth,Economic Development Level C,030554,International Relations 030554,Supplies and Services,352001,Conference Expenses,03-Jan-2023,000010548023585,HOTEL 52,7011,Conferencesseminars fees etc,369.00,0.00,369.00
Regeneration Economy and Growth,Economic Development Level C,030554,International Relations 030554,Supplies and Services,352001,Conference Expenses,03-Jan-2023,000010548023587,HOTEL 52,7011,Conferencesseminars fees etc,70.00,0.00,70.00
Regeneration Economy and Growth,Economic Development Level C,030554,International Relations 030554,Supplies and Services,352001,Conference Expenses,03-Jan-2023,000010548023589,HOTEL 52,7011,Conferencesseminars fees etc,60.00,0.00,60.00
Regeneration Economy and Growth,Corporate Property and Land,010525,Catering - Green Lane,Supplies and Services,324117,Provisions E324,03-Jan-2023,000010548064159,JR HOLLAND FOODSERVICE,5499,Catering costs - provisions,81.85,0.00,81.85
Regeneration Economy and Growth,Culture Sport and Tourism,011265,Empire Theatre (Operations),Supplies and Services,324117,Provisions E324,03-Jan-2023,000010548064161,JR HOLLAND FOODSERVICE,5499,Catering costs - provisions,34.08,0.00,34.08
Regeneration Economy and Growth,Culture Sport and Tourism,011265,Empire Theatre (Operations),Supplies and Services,324117,Provisions E324,03-Jan-2023,000010548064163,JR HOLLAND FOODSERVICE,5499,Catering costs - provisions,13.84,0.00,13.84
Regeneration Economy and Growth,Corporate Property and Land,011296,Catering - Dunes,Supplies and Services,324117,Provisions E324,03-Jan-2023,000010548064165,JR HOLLAND FOODSERVICE,5499,Catering costs - provisions,74.98,0.00,74.98
Regeneration Economy and Growth,Corporate Property and Land,030691,Catering - Durham Dales Centre,Supplies and Services,324117,Provisions E324,03-Jan-2023,000010548064167,JR HOLLAND FOODSERVICE,5499,Catering costs - provisions,22.80,0.00,22.80
Regeneration Economy and Growth,Corporate Property and Land,030691,Catering - Durham Dales Centre,Supplies and Services,324117,Provisions E324,03-Jan-2023,000010548064169,JR HOLLAND FOODSERVICE,5499,Catering costs - provisions,137.08,0.00,137.08
Regeneration Economy and Growth,Culture Sport and Tourism,054235,Bishop Auckland Town Hall Cafe,Supplies and Services,324117,Provisions E324,03-Jan-2023,000010548064171,JR HOLLAND FOODSERVICE,5499,Catering costs - provisions,437.66,0.00,437.66
Adult and Health Services,Head of Adults,055643,Hawthorn House LD Respite Unit,Supplies and Services,324117,Provisions E324,03-Jan-2023,000010548064173,FREEMAN CATERING BUTCH,5422,Catering costs - provisions,77.71,0.00,77.71
Adult and Health Services,Head of Adults,055643,Hawthorn House LD Respite Unit,Supplies and Services,324117,Provisions E324,03-Jan-2023,000010548064175,JR HOLLAND FOODSERVICE,5499,Catering costs - provisions,28.61,0.00,28.61
Adult and Health Services,Head of Adults,055643,Hawthorn House LD Respite Unit,Supplies and Services,324117,Provisions E324,03-Jan-2023,000010548064177,JR HOLLAND FOODSERVICE,5499,Catering costs - provisions,26.74,0.00,26.74
Neighbourhoods and Climate Change,Environmental Services,011060,C&G - Hardwick Park Catering,Supplies and Services,324117,Provisions E324,03-Jan-2023,000010548064179,FREEMAN CATERING BUTCH,5422,Catering costs - provisions,93.78,0.00,93.78
Neighbourhoods and Climate Change,Environmental Services,011060,C&G - Hardwick Park Catering,Supplies and Services,324117,Provisions E324,03-Jan-2023,000010548064181,FREEMAN CATERING BUTCH,5422,Catering costs - provisions,68.34,0.00,68.34
Neighbourhoods and Climate Change,Environmental Services,011060,C&G - Hardwick Park Catering,Supplies and Services,324117,Provisions E324,03-Jan-2023,000010548064183,JR HOLLAND FOODSERVICE,5499,Catering costs - provisions,44.76,0.00,44.76
Regeneration Economy and Growth,Corporate Property and Land,021234,Catering - Locomotion,Supplies and Services,324117,Provisions E324,03-Jan-2023,000010548064185,FREEMAN CATERING BUTCH,5422,Catering costs - provisions,61.53,0.00,61.53
Regeneration Economy and Growth,Corporate Property and Land,021234,Catering - Locomotion,Supplies and Services,324117,Provisions E324,03-Jan-2023,000010548064187,FREEMAN CATERING BUTCH,5422,Catering costs - provisions,51.57,0.00,51.57
Regeneration Economy and Growth,Culture Sport and Tourism,054812,Gala Theatre - Catering etc,Supplies and Services,324117,Provisions E324,03-Jan-2023,000010548064189,FREEMAN CATERING BUTCH,5422,Catering costs - provisions,20.94,0.00,20.94
Regeneration Economy and Growth,Culture Sport and Tourism,054812,Gala Theatre - Catering etc,Supplies and Services,324117,Provisions E324,03-Jan-2023,000010548064191,JR HOLLAND FOODSERVICE,5499,Catering costs - provisions,56.81,0.00,56.81
Regeneration Economy and Growth,Corporate Property and Land,021242,Catering - County Hall,Supplies and Services,324117,Provisions E324,03-Jan-2023,000010548064193,JR HOLLAND FOODSERVICE,5499,Catering costs - provisions,257.45,0.00,257.45
Regeneration Economy and Growth,Corporate Property and Land,021242,Catering - County Hall,Supplies and Services,324117,Provisions E324,03-Jan-2023,000010548064195,JR HOLLAND FOODSERVICE,5499,Catering costs - provisions,32.24,0.00,32.24
Regeneration Economy and Growth,Corporate Property and Land,021324,Catering - Meadowfield,Supplies and Services,324117,Provisions E324,03-Jan-2023,000010548064197,FREEMAN CATERING BUTCH,5422,Catering costs - provisions,99.68,0.00,99.68
Regeneration Economy and Growth,Corporate Property and Land,021324,Catering - Meadowfield,Supplies and Services,324117,Provisions E324,03-Jan-2023,000010548064199,JR HOLLAND FOODSERVICE,5499,Catering costs - provisions,37.45,0.00,37.45
Children and Young Peoples Services,Head of Childrens Social Care,085331,New Lea Childrens Home,Supplies and Services,304403,Equipment and Materials,03-Jan-2023,000010551189427,AMZNMKTPLACE AMAZON.CO,5999,Other consumables,9.49,0.00,9.49
Regeneration Economy and Growth,Culture Sport and Tourism,054020,Barnard Castle Library,Supplies and Services,384956,Miscellaneous Expenses,03-Jan-2023,000010551189461,TVLICENSING.CO.UK,7392,Licences,159.00,0.00,159.00
Regeneration Economy and Growth,Corporate Property and Land,010525,Catering - Green Lane,Supplies and Services,324117,Provisions E324,03-Jan-2023,000010551269493,BATLEYS PERTH,5300,Catering costs - provisions,138.48,23.08,115.40
Regeneration Economy and Growth,Corporate Property and Land,010525,Catering - Green Lane,Supplies and Services,324117,Provisions E324,03-Jan-2023,000010551269493 - 1,BATLEYS PERTH,5300,Catering costs - provisions,90.98,,90.98
Neighbourhoods and Climate Change,Environmental Services,011060,C&G - Hardwick Park Catering,Supplies and Services,324117,Provisions E324,03-Jan-2023,000010551269547,BATLEYS PERTH,5300,Catering costs - provisions,71.16,11.86,59.30
Neighbourhoods and Climate Change,Environmental Services,011060,C&G - Hardwick Park Catering,Supplies and Services,324117,Provisions E324,03-Jan-2023,000010551269547 - 1,BATLEYS PERTH,5300,Catering costs - provisions,375.72,,375.72
Children and Young Peoples Services,Head of Childrens Social Care,085347,Solo Home The Manse,Third Party Payments,430100,Rendered by Private Contractors,03-Jan-2023,000010555242225,FUTURE LEISURE IN COXH,7399,Payments to sub-contractors,4.50,0.00,4.50
Regeneration Economy and Growth,Culture Sport and Tourism,030705,Visit County Durham 030705,Supplies and Services,304259,Equipment and Materials,03-Jan-2023,000010566419395,FASTHOSTS,4816,Equipment-purchase and rental,7.54,0.00,7.54
Neighbourhoods and Climate Change,Environmental Services,031200,North Pennines Core,Supplies and Services,342222,Computers and Communications,04-Jan-2023,000010548023523,123 REG LTD 003383167,4816,Comp hardware purch-network servers,14.39,0.00,14.39
Regeneration Economy and Growth,Culture Sport and Tourism,054812,Gala Theatre - Catering etc,Supplies and Services,304403,Equipment and Materials,04-Jan-2023,000010548023525,AMZNMktplace,5999,Other consumables,3.99,0.00,3.99
Children and Young Peoples Services,Head of Education and Skills,071801,Selby Cottage Childcare Centre,Supplies and Services,324117,Provisions E324,04-Jan-2023,000010551188983,TESCO STORES 2278,5411,Catering costs - provisions,28.33,0.00,28.33
Resources BK0010,Transactional & Customer Services,065180,Collections,Supplies and Services,338048,Services,04-Jan-2023,000010551188987,WWW.HMCOURT-SERVIC,9222,Court costs 338048,47.00,0.00,47.00
Dedicated Schools Grant BG0015,DSG Schools Block,417627,Greenfield Community College 004176 - School Meals,Supplies and Services,332047,Printing Stationery and Gen Off Exps,04-Jan-2023,000010551188991,WWW.FLEXILABELS.CO.UK,5943,Stationery,120.94,20.16,100.78
Children and Young Peoples Services,Head of Education and Skills,075034,Youth Futures Foundation,Supplies and Services,364301,Grants to Voluntary Organisations,04-Jan-2023,000010551188995,WWW.GONORTHEAST.CO.UK,4111,Hardship,25.00,0.00,25.00
Children and Young Peoples Services,Head of Education and Skills,075034,Youth Futures Foundation,Supplies and Services,364301,Grants to Voluntary Organisations,04-Jan-2023,000010551188997,WWW.GONORTHEAST.CO.UK,4111,Hardship,4.70,0.00,4.70
Children and Young Peoples Services,Head of Education and Skills,075034,Youth Futures Foundation,Supplies and Services,364301,Grants to Voluntary Organisations,04-Jan-2023,000010551189001,WWW.SCREWFIX.COM,5211,Hardship,42.98,0.00,42.98
Children and Young Peoples Services,Head of Education and Skills,075034,Youth Futures Foundation,Supplies and Services,324117,Provisions E324,04-Jan-2023,000010551189003,MARKS&SPENCER PLC,5411,Catering costs - provisions,127.00,0.00,127.00
Children and Young Peoples Services,Head of Education and Skills,075034,Youth Futures Foundation,Supplies and Services,364301,Grants to Voluntary Organisations,04-Jan-2023,000010551189005,NEXT DIRECTORY,5651,Hardship,42.50,0.00,42.50
Resources BK0010,Procurement Sales & Business Services,065504,Business Support - Meadowfield,Supplies and Services,304403,Equipment and Materials,04-Jan-2023,000010551189009,AMZ Bargains4World,5999,Other consumables,-66.18,0.00,-66.18
Children and Young Peoples Services,Head of Childrens Social Care,085347,Solo Home The Manse,Supplies and Services,304403,Equipment and Materials,04-Jan-2023,000010551189011,AMZNMktplace,5999,Other consumables,54.98,0.00,54.98
Children and Young Peoples Services,Head of Early Help Inclusion & Vulnerable Children.,079050,SENSS-Sensory,Supplies and Services,304403,Equipment and Materials,04-Jan-2023,000010551189027,AMZNMktplace,5999,Other consumables,28.90,4.83,24.07
Children and Young Peoples Services,Head of Early Help Inclusion & Vulnerable Children.,079050,SENSS-Sensory,Supplies and Services,304403,Equipment and Materials,04-Jan-2023,000010551189037,AMZNMktplace,5999,Other consumables,8.99,1.50,7.49
Children and Young Peoples Services,Head of Early Help Inclusion & Vulnerable Children.,079050,SENSS-Sensory,Supplies and Services,384999,Miscellaneous Expenses,04-Jan-2023,000010551189041,FINDEL EDUCATION,5969,Other expenses,55.19,0.00,55.19
Children and Young Peoples Services,Head of Early Help Inclusion & Vulnerable Children.,079050,SENSS-Sensory,Supplies and Services,304403,Equipment and Materials,04-Jan-2023,000010551189045,AMZNMktplace,5999,Other consumables,25.66,4.28,21.38
Children and Young Peoples Services,Head of Childrens Social Care,085332,Middlestone Moor CU,Supplies and Services,304999,Equipment and Materials,04-Jan-2023,000010551189047,WILKO RETAIL LIMITED,5399,Misc equipment tools and materials,6.10,0.00,6.10
Children and Young Peoples Services,Head of Childrens Social Care,085341,High Etherley Satelite Home,Supplies and Services,332047,Printing Stationery and Gen Off Exps,04-Jan-2023,000010551189071,MIKE O DWYER OFFICE FU,5021,Stationery,364.80,0.00,364.80
Children and Young Peoples Services,Head of Childrens Social Care,085341,High Etherley Satelite Home,Supplies and Services,324117,Provisions E324,04-Jan-2023,000010551189075,SAINSBURYS S/MKTS,5411,Catering costs - provisions,30.00,0.00,30.00
Regeneration Economy and Growth,Economic Development Level C,030771,Durham Advance Flexible Fund,Supplies and Services,304403,Equipment and Materials,04-Jan-2023,000010551189091,AMZNMKTPLACE AMAZON.CO,5999,Other consumables,-10.08,-1.68,-8.40
Regeneration Economy and Growth,Economic Development Level C,030771,Durham Advance Flexible Fund,Supplies and Services,304403,Equipment and Materials,04-Jan-2023,000010551189091 - 1,AMZNMKTPLACE AMAZON.CO,5999,Other consumables,0.12,,0.12
Regeneration Economy and Growth,Planning & Housing,031634,LOCAL LETTINGS AGENCY,Premises,120037,Energy Costs,04-Jan-2023,000010551189113,BRITISH GAS OTP,4900,Other fuels,40.75,0.00,40.75
Neighbourhoods and Climate Change,Environmental Services,031202,North Pennines - Peatscapes,Supplies and Services,340001,Postages E340,04-Jan-2023,000010551189117,POST OFFICE COUNTER,9402,Postages,1.65,0.00,1.65
Children and Young Peoples Services,Head of Childrens Social Care,085368,Children Looked After Team 5,Transport,235073,Public Transport,04-Jan-2023,000010551189139,WWW.GONORTHEAST.CO.UK,4111,Travel-clients/students/children,30.00,0.00,30.00
Children and Young Peoples Services,Head of Childrens Social Care,085368,Children Looked After Team 5,Transport,235073,Public Transport,04-Jan-2023,000010551189143,WWW.GONORTHEAST.CO.UK,4111,Travel-clients/students/children,30.00,0.00,30.00
Regeneration Economy and Growth,Economic Development Level C,030544,Rural Employability - Client Engagement,Transport,235057,Public Transport,04-Jan-2023,000010551189147,NCP LIMITED,7523,Staff travelling,5.90,0.98,4.92
Children and Young Peoples Services,Head of Childrens Social Care,085380,Service Manager CLA Fostering,Supplies and Services,304403,Equipment and Materials,04-Jan-2023,000010551189167,AMZNMKTPLACE AMAZON.CO,5999,Other consumables,14.99,2.50,12.49
Children and Young Peoples Services,Head of Childrens Social Care,085380,Service Manager CLA Fostering,Supplies and Services,304403,Equipment and Materials,04-Jan-2023,000010551189171,AMZNMKTPLACE AMAZON.CO,5999,Other consumables,14.95,2.49,12.46
Children and Young Peoples Services,Head of Education and Skills,071733,Shildon Childcare,Supplies and Services,324117,Provisions E324,04-Jan-2023,000010551189209,ASDA GROCERIES ONLINE,5411,Catering costs - provisions,53.86,0.00,53.86
Children and Young Peoples Services,Head of Education and Skills,071733,Shildon Childcare,Supplies and Services,324117,Provisions E324,04-Jan-2023,000010551189213,ASDA GROCERIES ONLINE,5411,Catering costs - provisions,-0.78,0.00,-0.78
Children and Young Peoples Services,Head of Childrens Social Care,085342,16 Hickstead Rise (previously 9 Cedar Ave),Supplies and Services,304403,Equipment and Materials,04-Jan-2023,000010551189243,Occasions ( Newton Ayc,5947,Other consumables,4.75,0.00,4.75
Children and Young Peoples Services,Head of Childrens Social Care,085342,16 Hickstead Rise (previously 9 Cedar Ave),Supplies and Services,328041,Clothing uniforms and laundry E328,04-Jan-2023,000010551189245,POUNDSTRETCHER 128,5331,Clothing uniforms and laundry,4.00,0.00,4.00
Children and Young Peoples Services,Head of Childrens Social Care,085342,16 Hickstead Rise (previously 9 Cedar Ave),Supplies and Services,324117,Provisions E324,04-Jan-2023,000010551189249,TESCO STORES 2916,5411,Catering costs - provisions,26.35,0.00,26.35
Children and Young Peoples Services,Head of Childrens Social Care,085342,16 Hickstead Rise (previously 9 Cedar Ave),Supplies and Services,324117,Provisions E324,04-Jan-2023,000010551189251,TESCO STORES 2916,5411,Catering costs - provisions,16.00,0.00,16.00
Children and Young Peoples Services,Head of Childrens Social Care,085342,16 Hickstead Rise (previously 9 Cedar Ave),Supplies and Services,304999,Equipment and Materials,04-Jan-2023,000010551189255,SAVERS HEALTH & BEAUTY,5912,Misc equipment tools and materials,20.14,0.00,20.14
Children and Young Peoples Services,Head of Childrens Social Care,085342,16 Hickstead Rise (previously 9 Cedar Ave),Supplies and Services,304403,Equipment and Materials,04-Jan-2023,000010551189259,CARD FACTORY,5947,Other consumables,6.71,0.00,6.71
Children and Young Peoples Services,Head of Childrens Social Care,085358,Orchard House Sacriston Solo Home,Supplies and Services,344033,Telephones,04-Jan-2023,000010551189263,giffgaff,4814,Telephones general-all costs,10.00,0.00,10.00
Neighbourhoods and Climate Change,Environmental Services,010314,Nei.Prot - Bereavement Services,Supplies and Services,304259,Equipment and Materials,04-Jan-2023,000010551189317,DURHAM COUNTY COUNCIL,9399,Equipment-purchase and rental,11.00,0.00,11.00
Children and Young Peoples Services,Head of Education and Skills,071801,Selby Cottage Childcare Centre,Supplies and Services,324117,Provisions E324,04-Jan-2023,000010551189321,TESCO STORES 2278,5411,Catering costs - provisions,36.34,0.00,36.34
Children and Young Peoples Services,Head of Early Help Inclusion & Vulnerable Children.,085962,Aycliffe Secure - Durham,Supplies and Services,324117,Provisions E324,04-Jan-2023,000010551189325,TESCO STORES 2916,5411,Catering costs - provisions,14.66,0.00,14.66
Children and Young Peoples Services,Head of Childrens Social Care,085341,High Etherley Satelite Home,Supplies and Services,324117,Provisions E324,04-Jan-2023,000010551189327,WILKO RETAIL LIMITED,5399,Catering costs - provisions,32.50,0.00,32.50
Children and Young Peoples Services,Head of Childrens Social Care,085341,High Etherley Satelite Home,Supplies and Services,324117,Provisions E324,04-Jan-2023,000010551189329,ALDI 15 774,5411,Catering costs - provisions,127.28,0.00,127.28
Regeneration Economy and Growth,Economic Development Level C,030776,LINKCD Flexible Fund,Transport,235057,Public Transport,04-Jan-2023,000010551189331,ACT TRADING LTD,7523,Staff travelling,0.60,0.00,0.60
Adult and Health Services,Head of Adults,055202,Support and Recovery,Supplies and Services,304403,Equipment and Materials,04-Jan-2023,000010551189337,AMZNMktplace,5999,Other consumables,40.20,6.70,33.50
Adult and Health Services,Head of Adults,055202,Support and Recovery,Supplies and Services,304403,Equipment and Materials,04-Jan-2023,000010551189337 - 1,AMZNMktplace,5999,Other consumables,0.04,,0.04
Adult and Health Services,Head of Adults,055202,Support and Recovery,Supplies and Services,304403,Equipment and Materials,04-Jan-2023,000010551189339,AMZNMktplace,5999,Other consumables,73.50,12.25,61.25
Adult and Health Services,Head of Adults,055202,Support and Recovery,Supplies and Services,304403,Equipment and Materials,04-Jan-2023,000010551189339 - 1,AMZNMktplace,5999,Other consumables,0.10,,0.10
Adult and Health Services,Head of Adults,055202,Support and Recovery,Supplies and Services,304403,Equipment and Materials,04-Jan-2023,000010551189341,AMZNMktplace,5999,Other consumables,14.95,2.49,12.46
Children and Young Peoples Services,Head of Early Help Inclusion & Vulnerable Children.,085957,Secure Management,Supplies and Services,304259,Equipment and Materials,04-Jan-2023,000010551189357,Amazon.co.uk 162JA5I94,5969,Equipment-purchase and rental,13.56,2.26,11.30
Children and Young Peoples Services,Head of Early Help Inclusion & Vulnerable Children.,085957,Secure Management,Supplies and Services,304259,Equipment and Materials,04-Jan-2023,000010551189361,Amazon MP3,5735,Equipment-purchase and rental,9.98,0.00,9.98
Children and Young Peoples Services,Head of Early Help Inclusion & Vulnerable Children.,085957,Secure Management,Supplies and Services,304259,Equipment and Materials,04-Jan-2023,000010551189365,Amazon MP3,5735,Equipment-purchase and rental,0.68,0.00,0.68
Children and Young Peoples Services,Head of Early Help Inclusion & Vulnerable Children.,085965,Barnard,Supplies and Services,384302,Miscellaneous Expenses,04-Jan-2023,000010551189369,AMZNMKTPLACE AMAZON.CO,5999,Activity expenses,10.02,1.67,8.35
Children and Young Peoples Services,Head of Early Help Inclusion & Vulnerable Children.,085965,Barnard,Supplies and Services,384302,Miscellaneous Expenses,04-Jan-2023,000010551189369 - 1,AMZNMKTPLACE AMAZON.CO,5999,Activity expenses,6.62,,6.62
Children and Young Peoples Services,Head of Childrens Social Care,085334,West Rainton Satelite Home,Supplies and Services,328041,Clothing uniforms and laundry E328,04-Jan-2023,000010551189377,ARGOS LTD,5310,Clothing uniforms and laundry,13.00,0.00,13.00
Children and Young Peoples Services,Head of Childrens Social Care,085334,West Rainton Satelite Home,Supplies and Services,328041,Clothing uniforms and laundry E328,04-Jan-2023,000010551189381,ARGOS LTD,5310,Clothing uniforms and laundry,8.25,0.00,8.25
Children and Young Peoples Services,Head of Childrens Social Care,085334,West Rainton Satelite Home,Supplies and Services,304999,Equipment and Materials,04-Jan-2023,000010551189385,STARBUCKS,5815,Misc equipment tools and materials,4.55,0.00,4.55
Children and Young Peoples Services,Head of Childrens Social Care,085551,Short Break Services-Park Hse Sher,Supplies and Services,324117,Provisions E324,04-Jan-2023,000010551189395,WILKO RETAIL LIMITED,5399,Catering costs - provisions,31.25,0.00,31.25
Children and Young Peoples Services,Head of Childrens Social Care,085551,Short Break Services-Park Hse Sher,Supplies and Services,324117,Provisions E324,04-Jan-2023,000010551189397,ALDI 108 774,5411,Catering costs - provisions,25.95,0.00,25.95
Neighbourhoods and Climate Change,Environmental Services,010919,C&G - Countryside Site Management,Supplies and Services,304221,Equipment and Materials,04-Jan-2023,000010551189415,WWW.SCREWFIX.COM,5211,Direct materials,118.44,0.00,118.44
Children and Young Peoples Services,Head of Childrens Social Care,085551,Short Break Services-Park Hse Sher,Supplies and Services,324117,Provisions E324,04-Jan-2023,000010551189477,ALDI 15 774,5411,Catering costs - provisions,34.24,0.00,34.24
Children and Young Peoples Services,Head of Education and Skills,078554,Adult Skills-Main,Supplies and Services,304403,Equipment and Materials,04-Jan-2023,000010551189543,SIGNABLE,5734,Other consumables,258.50,43.08,215.42
Children and Young Peoples Services,Head of Education and Skills,071732,Dean Bank Childcare,Supplies and Services,324117,Provisions E324,04-Jan-2023,000010551189549,ASDA GROCERIES ONLINE,5411,Catering costs - provisions,42.04,0.00,42.04
Children and Young Peoples Services,Head of Childrens Social Care,085334,West Rainton Satelite Home,Supplies and Services,324117,Provisions E324,04-Jan-2023,000010551189599,ALDI 12 774,5411,Catering costs - provisions,81.29,0.00,81.29
Resources BK0010,Digital Services,065323,Operations - Installations,Supplies and Services,304639,Equipment and Materials,04-Jan-2023,000010551189639,TOOLSTATION UK,5251,Technicians-supplies,14.78,0.00,14.78
Children and Young Peoples Services,Head of Early Help Inclusion & Vulnerable Children.,085957,Secure Management,Premises,108099,Service Repairs and Maintenance,04-Jan-2023,000010551189669,WWW.SCREWFIX.COM,5211,General repairs 108099,21.98,0.00,21.98
Children and Young Peoples Services,Head of Early Help Inclusion & Vulnerable Children.,085957,Secure Management,Supplies and Services,384302,Miscellaneous Expenses,04-Jan-2023,000010551189671,ARGOS LTD,5310,Activity expenses,115.93,0.00,115.93
Children and Young Peoples Services,Head of Early Help Inclusion & Vulnerable Children.,085952,Secure Education,Supplies and Services,324117,Provisions E324,04-Jan-2023,000010551189675,TESCO STORES 6329,5411,Catering costs - provisions,147.45,0.00,147.45
Children and Young Peoples Services,Head of Childrens Social Care,085333,Coxhoe Satelite Home,Supplies and Services,324117,Provisions E324,04-Jan-2023,000010551189807,SAINSBURY`S S/MKT,5411,Catering costs - provisions,97.11,0.00,97.11
Children and Young Peoples Services,Head of Childrens Social Care,085333,Coxhoe Satelite Home,Supplies and Services,324117,Provisions E324,04-Jan-2023,000010551189811,SAINSBURY`S S/MKT,5411,Catering costs - provisions,43.82,0.00,43.82
Neighbourhoods and Climate Change,Environmental Services,031200,North Pennines Core,Supplies and Services,340001,Postages E340,04-Jan-2023,000010551189867,POST OFFICE COUNTER,9402,Postages,2.85,0.00,2.85
Regeneration Economy and Growth,Culture Sport and Tourism,054233,Bishop Auckland Town Hall Library,Supplies and Services,324117,Provisions E324,04-Jan-2023,000010551189881,HERON FOODS,5411,Catering costs - provisions,6.87,0.00,6.87
Children and Young Peoples Services,Head of Childrens Social Care,085358,Orchard House Sacriston Solo Home,Supplies and Services,328041,Clothing uniforms and laundry E328,04-Jan-2023,000010551189905,ARGOS LTD,5310,Clothing uniforms and laundry,269.99,0.00,269.99
Children and Young Peoples Services,Head of Childrens Social Care,085331,New Lea Childrens Home,Supplies and Services,332047,Printing Stationery and Gen Off Exps,04-Jan-2023,000010551189945,VIKING UK,5111,Stationery,202.13,0.00,202.13
Children and Young Peoples Services,Head of Childrens Social Care,085331,New Lea Childrens Home,Supplies and Services,304403,Equipment and Materials,04-Jan-2023,000010551189949,AMZ Lizhu Chen mo,5999,Other consumables,-36.99,-6.17,-30.82
Children and Young Peoples Services,Head of Childrens Social Care,085331,New Lea Childrens Home,Supplies and Services,332047,Printing Stationery and Gen Off Exps,04-Jan-2023,000010551189955,SAFE.CO.UK,5943,Stationery,-39.95,0.00,-39.95
Resources BK0010,Digital Services,065481,Technical Services 065481,Supplies and Services,304403,Equipment and Materials,04-Jan-2023,000010551189961,AMZNMktplace,5999,Other consumables,59.94,9.99,49.95
Resources BK0010,Digital Services,065481,Technical Services 065481,Supplies and Services,304403,Equipment and Materials,04-Jan-2023,000010551189961 - 1,AMZNMktplace,5999,Other consumables,0.03,,0.03
Children and Young Peoples Services,Childrens Services Operational Support,052932,Childrens Social Care,Supplies and Services,304403,Equipment and Materials,04-Jan-2023,000010551189965,AMZNMKTPLACE AMAZON.CO,5999,Other consumables,112.80,18.80,94.00
Children and Young Peoples Services,Childrens Services Operational Support,052932,Childrens Social Care,Supplies and Services,304403,Equipment and Materials,04-Jan-2023,000010551189965 - 1,AMZNMKTPLACE AMAZON.CO,5999,Other consumables,0.06,,0.06
Children and Young Peoples Services,Childrens Services Operational Support,052932,Childrens Social Care,Supplies and Services,304403,Equipment and Materials,04-Jan-2023,000010551189969,AMZNMKTPLACE AMAZON.CO,5999,Other consumables,185.76,31.05,154.71
Resources BK0010,Digital Services,065481,Technical Services 065481,Supplies and Services,304403,Equipment and Materials,04-Jan-2023,000010551189973,AMZNMktplace,5999,Other consumables,35.94,0.00,35.94
Children and Young Peoples Services,Head of Early Help Inclusion & Vulnerable Children.,088107,Wheatley Hill & N. Aycliffe Family Centre,Supplies and Services,324117,Provisions E324,04-Jan-2023,000010551189977,ASDA GROCERIES ONLINE,5411,Catering costs - provisions,61.30,0.00,61.30
Children and Young Peoples Services,Head of Early Help Inclusion & Vulnerable Children.,088107,Wheatley Hill & N. Aycliffe Family Centre,Supplies and Services,324117,Provisions E324,04-Jan-2023,000010551189983,ASDA GROCERIES ONLINE,5411,Catering costs - provisions,-2.20,0.00,-2.20
Adult and Health Services,Head of Adults,052765,Deprivation of Liberty,Employees,040149,Recruitment Instruction and Training,04-Jan-2023,000010551189995,Edge Training Ltd,8999,Training-all costs,180.00,0.00,180.00
Neighbourhoods and Climate Change,Environmental Services,031116,E&D - Durham Woodland Revival,Supplies and Services,332047,Printing Stationery and Gen Off Exps,04-Jan-2023,000010551190001,WWW.SORBUS-INTL.CO,5211,Stationery,80.16,0.00,80.16
Regeneration Economy and Growth,Corporate Property and Land,030691,Catering - Durham Dales Centre,Supplies and Services,342033,Computers and Communications,04-Jan-2023,000010551190059,WWW.NISBETS.COM,5964,Computer hardware,76.00,0.00,76.00
Regeneration Economy and Growth,Corporate Property and Land,030691,Catering - Durham Dales Centre,Supplies and Services,324117,Provisions E324,04-Jan-2023,000010551190063,TESCO STORES 6329,5411,Catering costs - provisions,40.25,0.00,40.25
Regeneration Economy and Growth,Economic Development Level C,030554,International Relations 030554,Supplies and Services,352001,Conference Expenses,04-Jan-2023,000010551190067,Roadchef Durham,7011,Conferencesseminars fees etc,7.50,0.00,7.50
Regeneration Economy and Growth,Corporate Property and Land,010525,Catering - Green Lane,Supplies and Services,324117,Provisions E324,04-Jan-2023,000010551269501,JR HOLLAND FOODSERVICE,5499,Catering costs - provisions,27.35,0.00,27.35
Regeneration Economy and Growth,Corporate Property and Land,010525,Catering - Green Lane,Supplies and Services,324117,Provisions E324,04-Jan-2023,000010551269503,JR HOLLAND FOODSERVICE,5499,Catering costs - provisions,-1.49,0.00,-1.49
Regeneration Economy and Growth,Corporate Property and Land,011275,Catering -Durham Leadership Centre,Supplies and Services,324117,Provisions E324,04-Jan-2023,000010551269507,JR HOLLAND FOODSERVICE,5499,Catering costs - provisions,164.46,0.00,164.46
Regeneration Economy and Growth,Corporate Property and Land,030691,Catering - Durham Dales Centre,Supplies and Services,324117,Provisions E324,04-Jan-2023,000010551269517,JR HOLLAND FOODSERVICE,5499,Catering costs - provisions,-2.12,0.00,-2.12
Adult and Health Services,Head of Adults,055643,Hawthorn House LD Respite Unit,Supplies and Services,324117,Provisions E324,04-Jan-2023,000010551269531,JR HOLLAND FOODSERVICE,5499,Catering costs - provisions,15.69,0.00,15.69
Neighbourhoods and Climate Change,Environmental Services,011060,C&G - Hardwick Park Catering,Supplies and Services,324117,Provisions E324,04-Jan-2023,000010551269551,JR HOLLAND FOODSERVICE,5499,Catering costs - provisions,27.52,0.00,27.52
Regeneration Economy and Growth,Corporate Property and Land,021234,Catering - Locomotion,Supplies and Services,324117,Provisions E324,04-Jan-2023,000010551269559,JR HOLLAND FOODSERVICE,5499,Catering costs - provisions,77.67,0.00,77.67
Regeneration Economy and Growth,Corporate Property and Land,021234,Catering - Locomotion,Supplies and Services,324117,Provisions E324,04-Jan-2023,000010551269563,JR HOLLAND FOODSERVICE,5499,Catering costs - provisions,15.03,0.00,15.03
Regeneration Economy and Growth,Corporate Property and Land,021242,Catering - County Hall,Supplies and Services,324117,Provisions E324,04-Jan-2023,000010551269575,JR HOLLAND FOODSERVICE,5499,Catering costs - provisions,24.74,0.00,24.74
Regeneration Economy and Growth,Corporate Property and Land,021324,Catering - Meadowfield,Supplies and Services,324117,Provisions E324,04-Jan-2023,000010551269581,JR HOLLAND FOODSERVICE,5499,Catering costs - provisions,51.80,0.00,51.80
Children and Young Peoples Services,Head of Childrens Social Care,085380,Service Manager CLA Fostering,Supplies and Services,304403,Equipment and Materials,04-Jan-2023,000010555242009,AMZNMKTPLACE AMAZON.CO,5999,Other consumables,12.50,2.08,10.42
Regeneration Economy and Growth,Planning & Housing,031576,B& B - Temp Accom,Supplies and Services,352001,Conference Expenses,04-Jan-2023,000010555242113,HOTEL 52,7011,Conferencesseminars fees etc,70.00,0.00,70.00
Children and Young Peoples Services,Head of Early Help Inclusion & Vulnerable Children.,085954,Walworth,Supplies and Services,384302,Miscellaneous Expenses,04-Jan-2023,000010555242241,AMZNMKTPLACE AMAZON.CO,5999,Activity expenses,11.25,1.88,9.37
Children and Young Peoples Services,Head of Early Help Inclusion & Vulnerable Children.,085954,Walworth,Supplies and Services,384302,Miscellaneous Expenses,04-Jan-2023,000010555242245,AMZNMKTPLACE AMAZON.CO,5999,Activity expenses,15.98,2.66,13.32
Resources BK0010,Digital Services,065335,School Services - Implementations,Supplies and Services,304639,Equipment and Materials,04-Jan-2023,000010555242407,AMZNMKTPLACE AMAZON.CO,5999,Technicians-supplies,197.97,33.00,164.97
Children and Young Peoples Services,Head of Early Help Inclusion & Vulnerable Children.,085957,Secure Management,Supplies and Services,304405,Equipment and Materials,04-Jan-2023,000010555242417,AMZNMKTPLACE AMAZON.CO,5999,Medical supplies,55.99,9.33,46.66
Children and Young Peoples Services,Childrens Services Operational Support,052932,Childrens Social Care,Supplies and Services,304403,Equipment and Materials,04-Jan-2023,000010555242579,AMZNMKTPLACE AMAZON.CO,5999,Other consumables,25.46,0.00,25.46
Children and Young Peoples Services,Childrens Services Operational Support,052932,Childrens Social Care,Supplies and Services,304403,Equipment and Materials,04-Jan-2023,000010555242581,AMZNBUSINESS 1H1ET9CW4,5999,Other consumables,163.80,0.00,163.80
Regeneration Economy and Growth,Economic Development Level C,030554,International Relations 030554,Supplies and Services,352001,Conference Expenses,04-Jan-2023,000010555242693,HOTEL 52,7011,Conferencesseminars fees etc,60.00,0.00,60.00
Regeneration Economy and Growth,Business Durham CL0850,030689,Inward Investment and Aftercare,Supplies and Services,342222,Computers and Communications,04-Jan-2023,000010566419313,FASTHOSTS,4816,Comp hardware purch-network servers,7.54,0.00,7.54
Neighbourhoods and Climate Change,Environmental Services,010367,C&G - South Grounds Maintenance,Third Party Payments,430100,Rendered by Private Contractors,04-Jan-2023,000010566419463,DUNHOUSE QUARRY CO,1740,Payments to sub-contractors,84.00,0.00,84.00
Children and Young Peoples Services,Head of Education and Skills,071801,Selby Cottage Childcare Centre,Supplies and Services,324117,Provisions E324,05-Jan-2023,000010555241837,ASDA GROCERIES ONLINE,5411,Catering costs - provisions,41.94,0.00,41.94
Children and Young Peoples Services,Head of Education and Skills,071801,Selby Cottage Childcare Centre,Supplies and Services,324117,Provisions E324,05-Jan-2023,000010555241841,ASDA GROCERIES ONLINE,5411,Catering costs - provisions,96.78,0.00,96.78
Children and Young Peoples Services,Head of Education and Skills,075034,Youth Futures Foundation,Supplies and Services,364301,Grants to Voluntary Organisations,05-Jan-2023,000010555241859,WWW.GONORTHEAST.CO.UK,4111,Hardship,4.70,0.00,4.70
Children and Young Peoples Services,Head of Education and Skills,075034,Youth Futures Foundation,Supplies and Services,364301,Grants to Voluntary Organisations,05-Jan-2023,000010555241863,WWW.GONORTHEAST.CO.UK,4111,Hardship,18.00,0.00,18.00
Children and Young Peoples Services,Head of Education and Skills,075034,Youth Futures Foundation,Supplies and Services,364301,Grants to Voluntary Organisations,05-Jan-2023,000010555241865,WWW.GONORTHEAST.CO.UK,4111,Hardship,18.00,0.00,18.00
Children and Young Peoples Services,Head of Education and Skills,075034,Youth Futures Foundation,Supplies and Services,364301,Grants to Voluntary Organisations,05-Jan-2023,000010555241867,WWW.GONORTHEAST.CO.UK,4111,Hardship,18.00,0.00,18.00
Children and Young Peoples Services,Head of Education and Skills,075034,Youth Futures Foundation,Supplies and Services,364301,Grants to Voluntary Organisations,05-Jan-2023,000010555241871,WWW.GONORTHEAST.CO.UK,4111,Hardship,6.40,0.00,6.40
Children and Young Peoples Services,Head of Education and Skills,075034,Youth Futures Foundation,Supplies and Services,364301,Grants to Voluntary Organisations,05-Jan-2023,000010555241873,DVLA DRIVER ONLINE,9399,Hardship,34.00,0.00,34.00
Children and Young Peoples Services,Head of Education and Skills,075034,Youth Futures Foundation,Supplies and Services,364301,Grants to Voluntary Organisations,05-Jan-2023,000010555241877,DVLA DRIVER ONLINE,9399,Hardship,34.00,0.00,34.00
Children and Young Peoples Services,Head of Childrens Social Care,085357,LAC Bespoke Placements,Supplies and Services,352001,Conference Expenses,05-Jan-2023,000010555241885,HARROWGATE HILL LODGE,7011,Conferencesseminars fees etc,"4,717.00",0.00,4717.00
Children and Young Peoples Services,Head of Childrens Social Care,085341,High Etherley Satelite Home,Supplies and Services,328041,Clothing uniforms and laundry E328,05-Jan-2023,000010555241891,WWW.THESCHOOLUNINFORMS,5691,Clothing uniforms and laundry,35.45,0.00,35.45
Children and Young Peoples Services,Head of Childrens Social Care,085341,High Etherley Satelite Home,Supplies and Services,348037,Subsistence E348,05-Jan-2023,000010555241895,MCDONALDS,5814,Subsistence,14.16,0.00,14.16
Resources BK0010,Procurement Sales & Business Services,065504,Business Support - Meadowfield,Supplies and Services,304403,Equipment and Materials,05-Jan-2023,000010555241897,AMZNMktplace,5999,Other consumables,71.42,0.00,71.42
Children and Young Peoples Services,Head of Childrens Social Care,085347,Solo Home The Manse,Supplies and Services,324117,Provisions E324,05-Jan-2023,000010555241905,ALDI,5411,Catering costs - provisions,65.66,0.00,65.66
Neighbourhoods and Climate Change,Environmental Services,010383,C&G - South Street Cleansing,Supplies and Services,304221,Equipment and Materials,05-Jan-2023,000010555241913,JEWSON LTD,5211,Direct materials,61.01,10.17,50.84
Children and Young Peoples Services,Head of Childrens Social Care,085341,High Etherley Satelite Home,Supplies and Services,304221,Equipment and Materials,05-Jan-2023,000010555241925,WORKPLACEDEPOT.CO.UK,5085,Direct materials,450.50,0.00,450.50
Children and Young Peoples Services,Head of Childrens Social Care,085341,High Etherley Satelite Home,Supplies and Services,304221,Equipment and Materials,05-Jan-2023,000010555241927,WORKPLACEDEPOT.CO.UK,5085,Direct materials,234.42,0.00,234.42
Children and Young Peoples Services,Head of Education and Skills,054640,Durham Learning Resources 054640,Supplies and Services,332047,Printing Stationery and Gen Off Exps,05-Jan-2023,000010555241981,AMZNMktplace,5999,Stationery,15.90,2.65,13.25
Children and Young Peoples Services,Head of Childrens Social Care,085380,Service Manager CLA Fostering,Supplies and Services,304403,Equipment and Materials,05-Jan-2023,000010555242013,AMZNMKTPLACE AMAZON.CO,5999,Other consumables,59.90,9.98,49.92
Children and Young Peoples Services,Head of Childrens Social Care,085380,Service Manager CLA Fostering,Supplies and Services,304403,Equipment and Materials,05-Jan-2023,000010555242017,AMZNMKTPLACE AMAZON.CO,5999,Other consumables,9.79,1.63,8.16
Children and Young Peoples Services,Head of Childrens Social Care,085380,Service Manager CLA Fostering,Supplies and Services,304403,Equipment and Materials,05-Jan-2023,000010555242021,AMZNMKTPLACE AMAZON.CO,5999,Other consumables,39.99,6.67,33.32
Regeneration Economy and Growth,Planning & Housing,031576,B& B - Temp Accom,Transport,235057,Public Transport,05-Jan-2023,000010555242115,UBER TRIP,4121,Staff travelling,5.44,0.00,5.44
Regeneration Economy and Growth,Planning & Housing,031576,B& B - Temp Accom,Transport,235057,Public Transport,05-Jan-2023,000010555242117,UBER TRIP,4121,Staff travelling,5.44,0.00,5.44
Regeneration Economy and Growth,Planning & Housing,031576,B& B - Temp Accom,Supplies and Services,352001,Conference Expenses,05-Jan-2023,000010555242119,Roadchef Durham,7011,Conferencesseminars fees etc,53.90,0.00,53.90
Adult and Health Services,Head of Adults,055302,Durham Pathways,Supplies and Services,304403,Equipment and Materials,05-Jan-2023,000010555242135,AMZNMKTPLACE AMAZON.CO,5999,Other consumables,43.90,7.32,36.58
Adult and Health Services,Head of Adults,055302,Durham Pathways,Supplies and Services,304259,Equipment and Materials,05-Jan-2023,000010555242137,CURRYS ONLINE,5732,Equipment-purchase and rental,358.00,0.00,358.00
Children and Young Peoples Services,Head of Early Help Inclusion & Vulnerable Children.,085962,Aycliffe Secure - Durham,Supplies and Services,304403,Equipment and Materials,05-Jan-2023,000010555242159,AMZNMktplace,5999,Other consumables,10.58,1.77,8.81
Children and Young Peoples Services,Head of Early Help Inclusion & Vulnerable Children.,085962,Aycliffe Secure - Durham,Supplies and Services,304403,Equipment and Materials,05-Jan-2023,000010555242161,AMZNMktplace,5999,Other consumables,2.37,0.40,1.97
Children and Young Peoples Services,Head of Childrens Social Care,085521,Adolescent Safeguarding and Exploitation Team - ASET,Supplies and Services,384999,Miscellaneous Expenses,05-Jan-2023,000010555242165,SENSORY DIRECT,5945,Other expenses,146.50,0.00,146.50
Adult and Health Services,Head of Adults,055202,Support and Recovery,Supplies and Services,304403,Equipment and Materials,05-Jan-2023,000010555242187,AMZNMktplace,5999,Other consumables,18.99,3.17,15.82
Adult and Health Services,Head of Adults,055202,Support and Recovery,Supplies and Services,304403,Equipment and Materials,05-Jan-2023,000010555242191,AMZNMktplace,5999,Other consumables,53.04,8.84,44.20
Adult and Health Services,Head of Adults,055202,Support and Recovery,Supplies and Services,304403,Equipment and Materials,05-Jan-2023,000010555242191 - 1,AMZNMktplace,5999,Other consumables,0.08,,0.08
Children and Young Peoples Services,Head of Childrens Social Care,085347,Solo Home The Manse,Supplies and Services,324117,Provisions E324,05-Jan-2023,000010555242215,PPOINT_ COSTCUTTER 108,5499,Catering costs - provisions,1.00,0.00,1.00
Children and Young Peoples Services,Head of Childrens Social Care,085347,Solo Home The Manse,Supplies and Services,324117,Provisions E324,05-Jan-2023,000010555242219,WM MORRISONS STORE,5411,Catering costs - provisions,4.34,0.00,4.34
Children and Young Peoples Services,Head of Childrens Social Care,085347,Solo Home The Manse,Supplies and Services,324117,Provisions E324,05-Jan-2023,000010555242223,WM MORRISONS STORE,5411,Catering costs - provisions,32.42,0.00,32.42
Children and Young Peoples Services,Head of Childrens Social Care,085364,Children Looked After Team 1,Supplies and Services,304259,Equipment and Materials,05-Jan-2023,000010555242233,J D SPORTS,5941,Equipment-purchase and rental,200.00,0.00,200.00
Children and Young Peoples Services,Head of Early Help Inclusion & Vulnerable Children.,085956,Lumley,Supplies and Services,384302,Miscellaneous Expenses,05-Jan-2023,000010555242235,Amazon.co.uk 1H1LT6O74,5969,Activity expenses,17.94,0.00,17.94
Children and Young Peoples Services,Head of Early Help Inclusion & Vulnerable Children.,085965,Barnard,Supplies and Services,384302,Miscellaneous Expenses,05-Jan-2023,000010555242239,Amazon.co.uk 1H1UG2O44,5969,Activity expenses,11.91,1.99,9.92
Children and Young Peoples Services,Head of Early Help Inclusion & Vulnerable Children.,085955,Auckland,Supplies and Services,324117,Provisions E324,05-Jan-2023,000010555242249,TESCO STORES 6329,5411,Catering costs - provisions,49.37,0.00,49.37
Children and Young Peoples Services,Head of Early Help Inclusion & Vulnerable Children.,085957,Secure Management,Supplies and Services,332047,Printing Stationery and Gen Off Exps,05-Jan-2023,000010555242251,Amazon.co.uk 1H6JL6OH4,5969,Stationery,34.50,5.76,28.74
Children and Young Peoples Services,Head of Childrens Social Care,085334,West Rainton Satelite Home,Supplies and Services,324117,Provisions E324,05-Jan-2023,000010555242255,SAINSBURYS S/MKTS,5411,Catering costs - provisions,6.40,0.00,6.40
Neighbourhoods and Climate Change,Environmental Services,031261,North Pennines - Wild about Bowlees,Supplies and Services,328041,Clothing uniforms and laundry E328,05-Jan-2023,000010555242269,SP NESTBOX CO LTD,5691,Clothing uniforms and laundry,160.20,0.00,160.20
Children and Young Peoples Services,Head of Childrens Social Care,085552,Services for Disabled Children,Supplies and Services,338045,Services,05-Jan-2023,000010555242281,GEN REGISTER OFFICE,9399,Legal expenses 338045,22.00,0.00,22.00
Children and Young Peoples Services,Head of Childrens Social Care,085331,New Lea Childrens Home,Supplies and Services,304259,Equipment and Materials,05-Jan-2023,000010555242283,Prime Video 1H6GZ5OO4,5735,Equipment-purchase and rental,3.99,0.00,3.99
Children and Young Peoples Services,Head of Childrens Social Care,085341,High Etherley Satelite Home,Supplies and Services,312009,Newspapers books and periodicals E312,05-Jan-2023,000010555242307,AMZN Mktp UK 1H8O56OE4,5942,Newspapers books and periodicals,5.93,0.99,4.94
Children and Young Peoples Services,Head of Education and Skills,070102,Engagement with Young People,Supplies and Services,304403,Equipment and Materials,05-Jan-2023,000010555242379,AMZNBUSINESS 1H4QM2FQ4,5999,Other consumables,7.47,1.25,6.22
Children and Young Peoples Services,Head of Early Help Inclusion & Vulnerable Children.,073986,Reducing Parental Conflict Programme,Supplies and Services,304403,Equipment and Materials,05-Jan-2023,000010555242383,VIKING UK,5111,Other consumables,174.79,29.13,145.66
Children and Young Peoples Services,Head of Early Help Inclusion & Vulnerable Children.,073986,Reducing Parental Conflict Programme,Supplies and Services,304403,Equipment and Materials,05-Jan-2023,000010555242385,AMZNMKTPLACE AMAZON.CO,5999,Other consumables,15.96,2.68,13.28
Children and Young Peoples Services,Head of Early Help Inclusion & Vulnerable Children.,073986,Reducing Parental Conflict Programme,Supplies and Services,304403,Equipment and Materials,05-Jan-2023,000010555242387,AMZNMKTPLACE AMAZON.CO,5999,Other consumables,13.92,2.32,11.60
Children and Young Peoples Services,Head of Early Help Inclusion & Vulnerable Children.,073986,Reducing Parental Conflict Programme,Supplies and Services,304403,Equipment and Materials,05-Jan-2023,000010555242387 - 1,AMZNMKTPLACE AMAZON.CO,5999,Other consumables,0.04,,0.04
Resources BK0010,Digital Services,065335,School Services - Implementations,Supplies and Services,304639,Equipment and Materials,05-Jan-2023,000010555242405,LAMBDATEK,5732,Technicians-supplies,194.02,0.00,194.02
Children and Young Peoples Services,Head of Early Help Inclusion & Vulnerable Children.,085965,Barnard,Supplies and Services,384302,Miscellaneous Expenses,05-Jan-2023,000010555242411,AMZNMktplace,5999,Activity expenses,47.99,8.00,39.99
Children and Young Peoples Services,Head of Early Help Inclusion & Vulnerable Children.,085965,Barnard,Supplies and Services,384302,Miscellaneous Expenses,05-Jan-2023,000010555242413,AMZNMktplace,5999,Activity expenses,63.97,10.66,53.31
Children and Young Peoples Services,Head of Early Help Inclusion & Vulnerable Children.,085965,Barnard,Supplies and Services,384302,Miscellaneous Expenses,05-Jan-2023,000010555242415,AMZNMktplace,5999,Activity expenses,6.95,1.16,5.79
Children and Young Peoples Services,Head of Early Help Inclusion & Vulnerable Children.,085957,Secure Management,Supplies and Services,304403,Equipment and Materials,05-Jan-2023,000010555242419,AMZNMKTPLACE AMAZON.CO,5999,Other consumables,2.70,0.45,2.25
Children and Young Peoples Services,Head of Early Help Inclusion & Vulnerable Children.,085957,Secure Management,Supplies and Services,304403,Equipment and Materials,05-Jan-2023,000010555242419 - 1,AMZNMKTPLACE AMAZON.CO,5999,Other consumables,6.79,,6.79
Children and Young Peoples Services,Head of Early Help Inclusion & Vulnerable Children.,085965,Barnard,Supplies and Services,384302,Miscellaneous Expenses,05-Jan-2023,000010555242421,AMZNMKTPLACE AMAZON.CO,5999,Activity expenses,11.97,2.01,9.96
Children and Young Peoples Services,Head of Early Help Inclusion & Vulnerable Children.,085801,CDYJS - Support,Supplies and Services,328041,Clothing uniforms and laundry E328,05-Jan-2023,000010555242483,JD Sports Fashion PLC,5655,Clothing uniforms and laundry,100.00,0.00,100.00
Regeneration Economy and Growth,Planning & Housing,031500,Housing Solutions - Core,Supplies and Services,304259,Equipment and Materials,05-Jan-2023,000010555242533,BELIEVE HOUSING,9399,Equipment-purchase and rental,153.46,0.00,153.46
Regeneration Economy and Growth,Culture Sport and Tourism,011263,Louisa Centre 011263,Supplies and Services,304999,Equipment and Materials,05-Jan-2023,000010555242537,MAIN BROTHERS,5251,Misc equipment tools and materials,43.96,0.00,43.96
Regeneration Economy and Growth,Culture Sport and Tourism,054233,Bishop Auckland Town Hall Library,Supplies and Services,324117,Provisions E324,05-Jan-2023,000010555242543,WM MORRISONS STORE,5411,Catering costs - provisions,38.33,0.00,38.33
Children and Young Peoples Services,Head of Childrens Social Care,085358,Orchard House Sacriston Solo Home,Supplies and Services,304403,Equipment and Materials,05-Jan-2023,000010555242549,AMZNMktplace,5999,Other consumables,17.38,2.90,14.48
Regeneration Economy and Growth,Economic Development Level C,030776,LINKCD Flexible Fund,Supplies and Services,324117,Provisions E324,05-Jan-2023,000010555242567,ASDA STORES LTD,5411,Catering costs - provisions,3.75,0.00,3.75
Children and Young Peoples Services,Head of Childrens Social Care,085551,Short Break Services-Park Hse Sher,Supplies and Services,304259,Equipment and Materials,05-Jan-2023,000010555242575,OFSTED INTERNET,9399,Equipment-purchase and rental,910.00,0.00,910.00
Children and Young Peoples Services,Childrens Services Operational Support,052932,Childrens Social Care,Supplies and Services,304403,Equipment and Materials,05-Jan-2023,000010555242585,AMZNBUSINESS 1H2DF04B4,5999,Other consumables,375.84,0.00,375.84
Children and Young Peoples Services,Childrens Services Operational Support,052932,Childrens Social Care,Supplies and Services,304403,Equipment and Materials,05-Jan-2023,000010555242589,AMZNBUSINESS 1H57C64H4,5999,Other consumables,93.96,0.00,93.96
Adult and Health Services,Head of Adults,052765,Deprivation of Liberty,Supplies and Services,304403,Equipment and Materials,05-Jan-2023,000010555242591,AMZNMktplace,5999,Other consumables,4.45,0.00,4.45
Adult and Health Services,Head of Adults,052765,Deprivation of Liberty,Supplies and Services,304403,Equipment and Materials,05-Jan-2023,000010555242593,AMZNMktplace,5999,Other consumables,17.00,2.83,14.17
Adult and Health Services,Head of Adults,055310,Positive Journeys (Tudhoe),Supplies and Services,324117,Provisions E324,05-Jan-2023,000010555242607,CO-OP GROUP FOOD,5411,Catering costs - provisions,13.20,0.00,13.20
Children and Young Peoples Services,Head of Childrens Social Care,085551,Short Break Services-Park Hse Sher,Supplies and Services,324117,Provisions E324,05-Jan-2023,000010555242645,TESCO STORES 2371,5411,Catering costs - provisions,113.22,0.00,113.22
Regeneration Economy and Growth,Business Durham CL0850,030694,Plexus 2,Supplies and Services,384999,Miscellaneous Expenses,05-Jan-2023,000010555242681,Amazon.co.uk 1H4ME0CM4,5969,Other expenses,44.00,0.00,44.00
Regeneration Economy and Growth,Economic Development Level C,030554,International Relations 030554,Transport,235057,Public Transport,05-Jan-2023,000010555242689,GAR HOTEL RES,4722,Staff travelling,72.53,0.00,72.53
Regeneration Economy and Growth,Economic Development Level C,030554,International Relations 030554,Supplies and Services,352001,Conference Expenses,05-Jan-2023,000010555242695,Hotel at Booking.com,7011,Conferencesseminars fees etc,200.00,0.00,200.00
Regeneration Economy and Growth,Economic Development Level C,030554,International Relations 030554,Supplies and Services,352001,Conference Expenses,05-Jan-2023,000010555242697,Roadchef Durham,7011,Conferencesseminars fees etc,65.00,0.00,65.00
Regeneration Economy and Growth,Economic Development Level C,030554,International Relations 030554,Supplies and Services,352001,Conference Expenses,05-Jan-2023,000010555242699,Roadchef Durham,7011,Conferencesseminars fees etc,15.00,0.00,15.00
Regeneration Economy and Growth,Corporate Property and Land,030691,Catering - Durham Dales Centre,Supplies and Services,324117,Provisions E324,05-Jan-2023,000010555322619,JR HOLLAND FOODSERVICE,5499,Catering costs - provisions,119.48,0.00,119.48
Neighbourhoods and Climate Change,Environmental Services,011060,C&G - Hardwick Park Catering,Supplies and Services,324117,Provisions E324,05-Jan-2023,000010555322643,JR HOLLAND FOODSERVICE,5499,Catering costs - provisions,145.24,0.00,145.24
Regeneration Economy and Growth,Culture Sport and Tourism,011263,Louisa Centre 011263,Supplies and Services,324117,Provisions E324,05-Jan-2023,000010555322659,JR HOLLAND FOODSERVICE,5499,Catering costs - provisions,92.43,0.00,92.43
Regeneration Economy and Growth,Planning & Housing,031500,Housing Solutions - Core,Supplies and Services,352001,Conference Expenses,05-Jan-2023,000010566419535,HOTEL 52,7011,Conferencesseminars fees etc,70.00,0.00,70.00
Children and Young Peoples Services,Head of Childrens Social Care,085347,Solo Home The Manse,Third Party Payments,430100,Rendered by Private Contractors,05-Jan-2023,000010566419651,FUTURE LEISURE IN COXH,7399,Payments to sub-contractors,5.50,0.00,5.50
Children and Young Peoples Services,Head of Childrens Social Care,085331,New Lea Childrens Home,Supplies and Services,328041,Clothing uniforms and laundry E328,05-Jan-2023,000010566419737,ARGOS LTD,5310,Clothing uniforms and laundry,129.99,0.00,129.99
Children and Young Peoples Services,Head of Early Help Inclusion & Vulnerable Children.,085957,Secure Management,Supplies and Services,304259,Equipment and Materials,05-Jan-2023,000010566419937,AMZNMKTPLACE AMAZON.CO,5999,Equipment-purchase and rental,17.64,2.94,14.70
Children and Young Peoples Services,Head of Early Help Inclusion & Vulnerable Children.,085963,Maple House,Supplies and Services,304259,Equipment and Materials,05-Jan-2023,000010566419937 - 1,AMZNMKTPLACE AMAZON.CO,5999,Equipment-purchase and rental,0.03,,0.03
Children and Young Peoples Services,Head of Early Help Inclusion & Vulnerable Children.,085965,Barnard,Supplies and Services,384302,Miscellaneous Expenses,05-Jan-2023,000010566419939,AMZNMKTPLACE AMAZON.CO,5999,Activity expenses,11.07,1.86,9.21
Children and Young Peoples Services,Head of Childrens Social Care,085357,LAC Bespoke Placements,Supplies and Services,304999,Equipment and Materials,05-Jan-2023,000010566419963,YPS WASHINGTONS HIDDEN,6513,Misc equipment tools and materials,"3,780.00",0.00,3780.00
Children and Young Peoples Services,Head of Childrens Social Care,085358,Orchard House Sacriston Solo Home,Supplies and Services,304403,Equipment and Materials,05-Jan-2023,000010566420089,AMZNMKTPLACE AMAZON.CO,5999,Other consumables,10.98,1.83,9.15
Regeneration Economy and Growth,Corporate Property and Land,011296,Catering - Dunes,Supplies and Services,324117,Provisions E324,05-Jan-2023,000010566499645,BATLEYS PERTH,5300,Catering costs - provisions,99.98,16.66,83.32
Neighbourhoods and Climate Change,Environmental Services,011060,C&G - Hardwick Park Catering,Supplies and Services,324117,Provisions E324,05-Jan-2023,000010566499667,BATLEYS PERTH,5300,Catering costs - provisions,338.16,56.36,281.80
Neighbourhoods and Climate Change,Environmental Services,011060,C&G - Hardwick Park Catering,Supplies and Services,324117,Provisions E324,05-Jan-2023,000010566499667 - 1,BATLEYS PERTH,5300,Catering costs - provisions,182.23,,182.23
Regeneration Economy and Growth,Corporate Property and Land,021235,Catering - Wharton Park,Supplies and Services,324117,Provisions E324,05-Jan-2023,000010566499683,BATLEYS PERTH,5300,Catering costs - provisions,97.62,16.27,81.35
Regeneration Economy and Growth,Corporate Property and Land,021235,Catering - Wharton Park,Supplies and Services,324117,Provisions E324,05-Jan-2023,000010566499683 - 1,BATLEYS PERTH,5300,Catering costs - provisions,21.28,,21.28
Regeneration Economy and Growth,Corporate Property and Land,021242,Catering - County Hall,Supplies and Services,324117,Provisions E324,05-Jan-2023,000010566499689,BATLEYS PERTH,5300,Catering costs - provisions,276.20,0.00,276.20
Regeneration Economy and Growth,Corporate Property and Land,021242,Catering - County Hall,Supplies and Services,324117,Provisions E324,05-Jan-2023,000010566499691,BATLEYS PERTH,5300,Catering costs - provisions,110.52,0.00,110.52
Resources BK0010,Transactional & Customer Services,065180,Collections,Supplies and Services,304403,Equipment and Materials,06-Jan-2023,000010555242597,AMZNMktplace,5999,Other consumables,9.77,0.00,9.77
Children and Young Peoples Services,Head of Childrens Social Care,085364,Children Looked After Team 1,Supplies and Services,340001,Postages E340,06-Jan-2023,000010566419317,POST OFFICE COUNTER,9402,Postages,7.56,0.00,7.56
Children and Young Peoples Services,Head of Childrens Social Care,085367,Children Looked After Team 4,Supplies and Services,338045,Services,06-Jan-2023,000010566419319,HARTLEPOOL BC,9399,Legal expenses 338045,11.00,0.00,11.00
Children and Young Peoples Services,Head of Childrens Social Care,085366,Children Looked After Team 3,Supplies and Services,338045,Services,06-Jan-2023,000010566419321,HM PASSPORT OFFICE,9399,Legal expenses 338045,49.00,0.00,49.00
Children and Young Peoples Services,Head of Childrens Social Care,085366,Children Looked After Team 3,Supplies and Services,338045,Services,06-Jan-2023,000010566419323,GEN REGISTER OFFICE,9399,Legal expenses 338045,22.00,0.00,22.00
Children and Young Peoples Services,Head of Childrens Social Care,085367,Children Looked After Team 4,Supplies and Services,338045,Services,06-Jan-2023,000010566419325,GEN REGISTER OFFICE,9399,Legal expenses 338045,11.00,0.00,11.00
Children and Young Peoples Services,Head of Childrens Social Care,085368,Children Looked After Team 5,Supplies and Services,338045,Services,06-Jan-2023,000010566419327,SUNDERLAND CC,9399,Legal expenses 338045,11.00,0.00,11.00
Children and Young Peoples Services,Head of Education and Skills,071801,Selby Cottage Childcare Centre,Supplies and Services,324117,Provisions E324,06-Jan-2023,000010566419329,WM MORRISONS STORE,5411,Catering costs - provisions,6.00,0.00,6.00
Dedicated Schools Grant BG0015,DSG Schools Block,417607,Greenfield Community College 004176 - Performing Arts,Supplies and Services,304403,Equipment and Materials,06-Jan-2023,000010566419345,AMZNMKTPLACE AMAZON.CO,5999,Other consumables,11.70,1.95,9.75
Dedicated Schools Grant BG0015,DSG Schools Block,417607,Greenfield Community College 004176 - Performing Arts,Supplies and Services,304403,Equipment and Materials,06-Jan-2023,000010566419347,AMZNMKTPLACE AMAZON.CO,5999,Other consumables,14.42,2.40,12.02
Children and Young Peoples Services,Head of Education and Skills,075034,Youth Futures Foundation,Supplies and Services,364301,Grants to Voluntary Organisations,06-Jan-2023,000010566419355,TOOLSTATION UK,5251,Hardship,20.98,0.00,20.98
Children and Young Peoples Services,Head of Education and Skills,075034,Youth Futures Foundation,Supplies and Services,364301,Grants to Voluntary Organisations,06-Jan-2023,000010566419357,AMZNMKTPLACE AMAZON.CO,5999,Hardship,69.20,0.00,69.20
Children and Young Peoples Services,Head of Childrens Social Care,085342,16 Hickstead Rise (previously 9 Cedar Ave),Supplies and Services,308011,Furniture,06-Jan-2023,000010566419359,THE RANGE,5719,Furniture repair and replacement,152.33,0.00,152.33
Children and Young Peoples Services,Head of Childrens Social Care,085342,16 Hickstead Rise (previously 9 Cedar Ave),Supplies and Services,324117,Provisions E324,06-Jan-2023,000010566419361,TESCO STORES 6329,5411,Catering costs - provisions,13.25,0.00,13.25
Children and Young Peoples Services,Head of Childrens Social Care,085342,16 Hickstead Rise (previously 9 Cedar Ave),Supplies and Services,308011,Furniture,06-Jan-2023,000010566419363,IKEA LTD 143 GATESHEAD,5712,Furniture repair and replacement,249.75,0.00,249.75
Regeneration Economy and Growth,Culture Sport and Tourism,011215,Museums Heritage & Collections 011215,Supplies and Services,304259,Equipment and Materials,06-Jan-2023,000010566419389,HOME OFFICE,9399,Equipment-purchase and rental,200.00,0.00,200.00
Children and Young Peoples Services,Head of Childrens Social Care,085334,West Rainton Satelite Home,Supplies and Services,384999,Miscellaneous Expenses,06-Jan-2023,000010566419405,Amazon.co.uk 1H7DY9ZS4,5969,Other expenses,18.99,0.00,18.99
Children and Young Peoples Services,Head of Early Help Inclusion & Vulnerable Children.,085956,Lumley,Supplies and Services,384237,Miscellaneous Expenses,06-Jan-2023,000010566419419,Jump 360 Newcastle,7999,Recreational exps outings parties,25.00,0.00,25.00
Children and Young Peoples Services,Head of Early Help Inclusion & Vulnerable Children.,085956,Lumley,Supplies and Services,328041,Clothing uniforms and laundry E328,06-Jan-2023,000010566419421,SPORTSDIRECT.COM,5655,Clothing uniforms and laundry,77.99,0.00,77.99
Regeneration Economy and Growth,Economic Development Level C,030544,Rural Employability - Client Engagement,Transport,235057,Public Transport,06-Jan-2023,000010566419433,WWW.GONORTHEAST.CO.UK,4111,Staff travelling,25.00,0.00,25.00
Children and Young Peoples Services,Head of Childrens Social Care,085511,Emergency Duty Team,Employees,040149,Recruitment Instruction and Training,06-Jan-2023,000010566419473,PREMIER INN,3811,Training-all costs,218.04,0.00,218.04
Children and Young Peoples Services,Head of Childrens Social Care,085511,Emergency Duty Team,Employees,040149,Recruitment Instruction and Training,06-Jan-2023,000010566419475,PREMIER INN,3811,Training-all costs,160.65,0.00,160.65
Children and Young Peoples Services,Head of Childrens Social Care,085347,Solo Home The Manse,Supplies and Services,304999,Equipment and Materials,06-Jan-2023,000010566419499,ADAPATABILITY,5912,Misc equipment tools and materials,3.25,0.00,3.25
Children and Young Peoples Services,Head of Childrens Social Care,085347,Solo Home The Manse,Supplies and Services,304999,Equipment and Materials,06-Jan-2023,000010566419501,HOME BARGAINS,5251,Misc equipment tools and materials,45.42,0.00,45.42
Children and Young Peoples Services,Head of Childrens Social Care,085347,Solo Home The Manse,Supplies and Services,324117,Provisions E324,06-Jan-2023,000010566419503,ASDA SUPERSTORE 4987,5411,Catering costs - provisions,73.35,0.00,73.35
Children and Young Peoples Services,Head of Early Help Inclusion & Vulnerable Children.,085801,CDYJS - Support,Supplies and Services,324117,Provisions E324,06-Jan-2023,000010566419533,GREGGS,5462,Catering costs - provisions,100.00,0.00,100.00
Adult and Health Services,Head of Adults,055302,Durham Pathways,Supplies and Services,324117,Provisions E324,06-Jan-2023,000010566419543,SAINSBURYS S/MKTS,5411,Catering costs - provisions,9.20,0.00,9.20
Children and Young Peoples Services,Head of Education and Skills,071801,Selby Cottage Childcare Centre,Supplies and Services,324117,Provisions E324,06-Jan-2023,000010566419559,JR HOLLAND FOODSERVICE,5499,Catering costs - provisions,103.27,0.00,103.27
Children and Young Peoples Services,Head of Early Help Inclusion & Vulnerable Children.,085962,Aycliffe Secure - Durham,Supplies and Services,304403,Equipment and Materials,06-Jan-2023,000010566419565,AMZNMktplace,5999,Other consumables,6.95,1.16,5.79
Children and Young Peoples Services,Head of Early Help Inclusion & Vulnerable Children.,085962,Aycliffe Secure - Durham,Supplies and Services,304403,Equipment and Materials,06-Jan-2023,000010566419567,AMZNMktplace,5999,Other consumables,7.92,1.32,6.60
Children and Young Peoples Services,Head of Early Help Inclusion & Vulnerable Children.,085962,Aycliffe Secure - Durham,Supplies and Services,304403,Equipment and Materials,06-Jan-2023,000010566419569,AMZNMktplace,5999,Other consumables,13.34,2.22,11.12
Children and Young Peoples Services,Head of Early Help Inclusion & Vulnerable Children.,085962,Aycliffe Secure - Durham,Supplies and Services,304999,Equipment and Materials,06-Jan-2023,000010566419571,BOOTS UK ECOMM,5912,Misc equipment tools and materials,23.65,0.00,23.65
Children and Young Peoples Services,Head of Childrens Social Care,085341,High Etherley Satelite Home,Supplies and Services,324117,Provisions E324,06-Jan-2023,000010566419587,774 026,5411,Catering costs - provisions,68.09,0.00,68.09
Regeneration Economy and Growth,Planning & Housing,031576,B& B - Temp Accom,Supplies and Services,364320,Grants to Voluntary Organisations,06-Jan-2023,000010566419595,HOTEL 52,7011,Accommodation assistance,230.00,0.00,230.00
Adult and Health Services,Head of Adults,055202,Support and Recovery,Supplies and Services,304403,Equipment and Materials,06-Jan-2023,000010566419611,AMZNMktplace,5999,Other consumables,21.22,3.54,17.68
Children and Young Peoples Services,Head of Early Help Inclusion & Vulnerable Children.,085957,Secure Management,Supplies and Services,328041,Clothing uniforms and laundry E328,06-Jan-2023,000010566419613,Footasylum Limited,5651,Clothing uniforms and laundry,39.99,0.00,39.99
Children and Young Peoples Services,Head of Early Help Inclusion & Vulnerable Children.,085957,Secure Management,Supplies and Services,328041,Clothing uniforms and laundry E328,06-Jan-2023,000010566419615,Footasylum Limited,5651,Clothing uniforms and laundry,70.97,0.00,70.97
Children and Young Peoples Services,Head of Early Help Inclusion & Vulnerable Children.,085957,Secure Management,Supplies and Services,328041,Clothing uniforms and laundry E328,06-Jan-2023,000010566419617,JD Sports Fashion PLC,5655,Clothing uniforms and laundry,63.99,0.00,63.99
Children and Young Peoples Services,Head of Early Help Inclusion & Vulnerable Children.,085957,Secure Management,Supplies and Services,328041,Clothing uniforms and laundry E328,06-Jan-2023,000010566419619,JD Sports Fashion PLC,5655,Clothing uniforms and laundry,61.99,0.00,61.99
Children and Young Peoples Services,Head of Early Help Inclusion & Vulnerable Children.,085957,Secure Management,Supplies and Services,304403,Equipment and Materials,06-Jan-2023,000010566419623,NET WORLD SPORTS,5999,Other consumables,97.98,16.33,81.65
Children and Young Peoples Services,Head of Early Help Inclusion & Vulnerable Children.,085957,Secure Management,Supplies and Services,304403,Equipment and Materials,06-Jan-2023,000010566419623 - 1,NET WORLD SPORTS,5999,Other consumables,244.86,,244.86
Regeneration Economy and Growth,Business Durham CL0850,030714,Salvus House,Supplies and Services,324117,Provisions E324,06-Jan-2023,000010566419637,MARKS&SPENCER PLC,5411,Catering costs - provisions,30.00,0.00,30.00
Regeneration Economy and Growth,Business Durham CL0850,030714,Salvus House,Supplies and Services,324117,Provisions E324,06-Jan-2023,000010566419639,MARKS&SPENCER PLC,5411,Catering costs - provisions,17.80,0.00,17.80
Children and Young Peoples Services,Head of Childrens Social Care,085364,Children Looked After Team 1,Supplies and Services,372009,Subscriptions E372,06-Jan-2023,000010566419657,Licence Assistance,8111,Subscriptions 372009,44.00,0.00,44.00
Children and Young Peoples Services,Head of Childrens Social Care,085364,Children Looked After Team 1,Supplies and Services,328041,Clothing uniforms and laundry E328,06-Jan-2023,000010566419659,ARGOS LTD,5310,Clothing uniforms and laundry,138.95,0.00,138.95
Children and Young Peoples Services,Head of Childrens Social Care,085364,Children Looked After Team 1,Supplies and Services,328041,Clothing uniforms and laundry E328,06-Jan-2023,000010566419661,ARGOS LTD,5310,Clothing uniforms and laundry,55.00,0.00,55.00
Children and Young Peoples Services,Head of Childrens Social Care,085364,Children Looked After Team 1,Supplies and Services,328041,Clothing uniforms and laundry E328,06-Jan-2023,000010566419663,ARGOS LTD,5310,Clothing uniforms and laundry,50.99,0.00,50.99
Children and Young Peoples Services,Head of Early Help Inclusion & Vulnerable Children.,085957,Secure Management,Supplies and Services,332047,Printing Stationery and Gen Off Exps,06-Jan-2023,000010566419665,Amazon.co.uk 1H11T54O4,5969,Stationery,51.78,8.64,43.14
Children and Young Peoples Services,Head of Early Help Inclusion & Vulnerable Children.,085965,Barnard,Supplies and Services,324117,Provisions E324,06-Jan-2023,000010566419667,TESCO STORES 6329,5411,Catering costs - provisions,118.06,0.00,118.06
Neighbourhoods and Climate Change,Environmental Services,026591,C&G - Hardwick Park,Supplies and Services,304259,Equipment and Materials,06-Jan-2023,000010566419697,JEWSON LTD,5211,Equipment-purchase and rental,16.28,2.71,13.57
Resources BK0010,HR & Employee Services,010984,Training and Development,Supplies and Services,384999,Miscellaneous Expenses,06-Jan-2023,000010566419711,PAYPAL WATERFITNES,5996,Other expenses,210.00,0.00,210.00
Children and Young Peoples Services,Head of Childrens Social Care,085621,Families First Newton Aycliffe and Shildon,Supplies and Services,338045,Services,06-Jan-2023,000010566419731,DURHAM COUNTY COUNCIL,9399,Legal expenses 338045,11.00,0.00,11.00
Children and Young Peoples Services,Head of Childrens Social Care,085331,New Lea Childrens Home,Supplies and Services,304403,Equipment and Materials,06-Jan-2023,000010566419735,AMZNMktplace,5999,Other consumables,27.98,0.00,27.98
Children and Young Peoples Services,Head of Childrens Social Care,085551,Short Break Services-Park Hse Sher,Supplies and Services,324117,Provisions E324,06-Jan-2023,000010566419757,ASDA STORES,5411,Catering costs - provisions,17.50,0.00,17.50
Children and Young Peoples Services,Head of Childrens Social Care,085342,16 Hickstead Rise (previously 9 Cedar Ave),Supplies and Services,348037,Subsistence E348,06-Jan-2023,000010566419819,FRIDAYS DURHAM,5812,Subsistence,57.65,0.00,57.65
Children and Young Peoples Services,Head of Childrens Social Care,085342,16 Hickstead Rise (previously 9 Cedar Ave),Transport,235057,Public Transport,06-Jan-2023,000010566419821,THE RIVERWALK CAR PARK,7523,Staff travelling,1.50,0.00,1.50
Children and Young Peoples Services,Head of Education and Skills,071732,Dean Bank Childcare,Supplies and Services,324117,Provisions E324,06-Jan-2023,000010566419857,B&M 147 - FERRYHILL,5399,Catering costs - provisions,3.00,0.00,3.00
Children and Young Peoples Services,Head of Childrens Social Care,085334,West Rainton Satelite Home,Supplies and Services,304999,Equipment and Materials,06-Jan-2023,000010566419889,HOME BARGAINS,5251,Misc equipment tools and materials,1.70,0.00,1.70
Children and Young Peoples Services,Head of Childrens Social Care,085334,West Rainton Satelite Home,Supplies and Services,304999,Equipment and Materials,06-Jan-2023,000010566419891,HOME BARGAINS,5251,Misc equipment tools and materials,36.43,0.00,36.43
Children and Young Peoples Services,Head of Childrens Social Care,085334,West Rainton Satelite Home,Supplies and Services,324117,Provisions E324,06-Jan-2023,000010566419893,ALDI 12 774,5411,Catering costs - provisions,103.80,0.00,103.80
Children and Young Peoples Services,Head of Childrens Social Care,085331,New Lea Childrens Home,Supplies and Services,324117,Provisions E324,06-Jan-2023,000010566419899,TESCO STORES 6329,5411,Catering costs - provisions,19.79,0.00,19.79
Children and Young Peoples Services,Head of Childrens Social Care,085363,Childrens Permanence Team,Supplies and Services,338045,Services,06-Jan-2023,000010566419913,DARLINGTON BOROUGH COU,9399,Legal expenses 338045,22.00,0.00,22.00
Children and Young Peoples Services,Head of Early Help Inclusion & Vulnerable Children.,073986,Reducing Parental Conflict Programme,Supplies and Services,304403,Equipment and Materials,06-Jan-2023,000010566419915,AMZNMKTPLACE AMAZON.CO,5999,Other consumables,33.98,5.66,28.32
Children and Young Peoples Services,Head of Early Help Inclusion & Vulnerable Children.,085963,Maple House,Supplies and Services,304259,Equipment and Materials,06-Jan-2023,000010566419935,HOUSE OF FRASER,5311,Equipment-purchase and rental,24.99,0.00,24.99
Dedicated Schools Grant BG0015,DSG High Needs Block,079040,HNB Management and support,Supplies and Services,304403,Equipment and Materials,06-Jan-2023,000010566419965,AMZNBUSINESS 1H9X66NJ4,5999,Other consumables,14.02,2.34,11.68
Children and Young Peoples Services,Head of Childrens Social Care,085347,Solo Home The Manse,Supplies and Services,344033,Telephones,06-Jan-2023,000010566419987,giffgaff,4814,Telephones general-all costs,10.00,0.00,10.00
Children and Young Peoples Services,Head of Childrens Social Care,085347,Solo Home The Manse,Supplies and Services,324117,Provisions E324,06-Jan-2023,000010566419989,PPOINT_ COSTCUTTER 108,5499,Catering costs - provisions,10.03,0.00,10.03
Children and Young Peoples Services,Head of Early Help Inclusion & Vulnerable Children.,085801,CDYJS - Support,Supplies and Services,304403,Equipment and Materials,06-Jan-2023,000010566420011,AMZNMktplace,5999,Other consumables,57.98,9.66,48.32
Children and Young Peoples Services,Head of Childrens Social Care,085333,Coxhoe Satelite Home,Supplies and Services,324117,Provisions E324,06-Jan-2023,000010566420041,H TAYLOR & SONS LTD,5422,Catering costs - provisions,22.80,0.00,22.80
Children and Young Peoples Services,Head of Childrens Social Care,085333,Coxhoe Satelite Home,Supplies and Services,328041,Clothing uniforms and laundry E328,06-Jan-2023,000010566420043,"W.BOYES & CO.,LIMITED",5311,Clothing uniforms and laundry,34.18,0.00,34.18
Children and Young Peoples Services,Head of Education and Skills,071802,Louisa Cent Nursery,Supplies and Services,324117,Provisions E324,06-Jan-2023,000010566420053,ASDA GROCERIES ONLINE,5411,Catering costs - provisions,215.67,0.00,215.67
Children and Young Peoples Services,Head of Education and Skills,071802,Louisa Cent Nursery,Supplies and Services,324117,Provisions E324,06-Jan-2023,000010566420055,ALDI 11 774,5411,Catering costs - provisions,7.40,0.00,7.40
Children and Young Peoples Services,Head of Education and Skills,071802,Louisa Cent Nursery,Supplies and Services,324117,Provisions E324,06-Jan-2023,000010566420061,ASDA GROCERIES ONLINE,5411,Catering costs - provisions,-0.70,0.00,-0.70
Regeneration Economy and Growth,Culture Sport and Tourism,054233,Bishop Auckland Town Hall Library,Supplies and Services,324117,Provisions E324,06-Jan-2023,000010566420079,WILKO RETAIL LIMITED,5399,Catering costs - provisions,10.30,0.00,10.30
Regeneration Economy and Growth,Culture Sport and Tourism,054233,Bishop Auckland Town Hall Library,Supplies and Services,324117,Provisions E324,06-Jan-2023,000010566420081,ASDA STORES,5411,Catering costs - provisions,33.55,0.00,33.55
Regeneration Economy and Growth,Economic Development Level C,030776,LINKCD Flexible Fund,Supplies and Services,324117,Provisions E324,06-Jan-2023,000010566420103,TESCO STORES 2371,5411,Catering costs - provisions,6.50,0.00,6.50
Regeneration Economy and Growth,Culture Sport and Tourism,010664,Freemans Quay Leisure Centre,Supplies and Services,304403,Equipment and Materials,06-Jan-2023,000010566420111,AMZNMktplace,5999,Other consumables,47.95,0.00,47.95
Adult and Health Services,Head of Adults,051613,OP/PD Easington 051613,Supplies and Services,304403,Equipment and Materials,06-Jan-2023,000010566420115,GRAMMARLY COIH8JJNE,5734,Other consumables,120.00,20.00,100.00
Adult and Health Services,Head of Adults,052229,Countywide AMHP Team,Supplies and Services,338048,Services,06-Jan-2023,000010566420121,HMCTS GRIMSBY&SCUNTHOR,9222,Court costs 338048,81.00,0.00,81.00
Adult and Health Services,Head of Adults,055310,Positive Journeys (Tudhoe),Supplies and Services,324117,Provisions E324,06-Jan-2023,000010566420139,ASDA SUPERSTORE 4987,5411,Catering costs - provisions,1.65,0.00,1.65
Children and Young Peoples Services,Head of Childrens Social Care,085397,Regionalisation of Adoption,Transport,235057,Public Transport,06-Jan-2023,000010566420167,ST MARYS CARPARK 2,7523,Staff travelling,3.00,0.00,3.00
Regeneration Economy and Growth,Corporate Property and Land,030691,Catering - Durham Dales Centre,Supplies and Services,324117,Provisions E324,06-Jan-2023,000010566420181,Castle Bank Butchers,5422,Catering costs - provisions,34.66,0.00,34.66
Regeneration Economy and Growth,Economic Development Level C,030554,International Relations 030554,Transport,235057,Public Transport,06-Jan-2023,000010566420185,UBER TRIP,4121,Staff travelling,5.60,0.00,5.60
Regeneration Economy and Growth,Economic Development Level C,030554,International Relations 030554,Transport,235057,Public Transport,06-Jan-2023,000010566420187,UBER TRIP,4121,Staff travelling,16.99,0.00,16.99
Regeneration Economy and Growth,Economic Development Level C,030554,International Relations 030554,Supplies and Services,352001,Conference Expenses,06-Jan-2023,000010566420189,HOTEL 52,7011,Conferencesseminars fees etc,210.00,0.00,210.00
Regeneration Economy and Growth,Economic Development Level C,030554,International Relations 030554,Supplies and Services,352001,Conference Expenses,06-Jan-2023,000010566420191,Roadchef Durham,7011,Conferencesseminars fees etc,142.00,0.00,142.00
Regeneration Economy and Growth,Economic Development Level C,030554,International Relations 030554,Supplies and Services,352001,Conference Expenses,06-Jan-2023,000010566420193,Roadchef Durham,7011,Conferencesseminars fees etc,143.00,0.00,143.00
Regeneration Economy and Growth,Economic Development Level C,030554,International Relations 030554,Supplies and Services,352001,Conference Expenses,06-Jan-2023,000010566420195,Roadchef Durham,7011,Conferencesseminars fees etc,100.00,0.00,100.00
Regeneration Economy and Growth,Economic Development Level C,030554,International Relations 030554,Supplies and Services,352001,Conference Expenses,06-Jan-2023,000010566420197,Roadchef Durham,7011,Conferencesseminars fees etc,143.00,0.00,143.00
Children and Young Peoples Services,Head of Early Help Inclusion & Vulnerable Children.,088112,Seaham & Central Durham Intensive Family Support Team,Supplies and Services,324117,Provisions E324,06-Jan-2023,000010566420207,ASDA GROCERIES ONLINE,5411,Catering costs - provisions,214.38,0.00,214.38
Children and Young Peoples Services,Head of Early Help Inclusion & Vulnerable Children.,088112,Seaham & Central Durham Intensive Family Support Team,Supplies and Services,324117,Provisions E324,06-Jan-2023,000010566420209,ASDA GROCERIES ONLINE,5411,Catering costs - provisions,-13.07,0.00,-13.07
Regeneration Economy and Growth,Corporate Property and Land,010525,Catering - Green Lane,Supplies and Services,324117,Provisions E324,06-Jan-2023,000010566499641,FREEMAN CATERING BUTCH,5422,Catering costs - provisions,55.31,0.00,55.31
Regeneration Economy and Growth,Corporate Property and Land,010525,Catering - Green Lane,Supplies and Services,324117,Provisions E324,06-Jan-2023,000010566499643,HOPWELLS LTD,5811,Catering costs - provisions,215.03,0.00,215.03
Regeneration Economy and Growth,Corporate Property and Land,011296,Catering - Dunes,Supplies and Services,324117,Provisions E324,06-Jan-2023,000010566499647,HOPWELLS LTD,5811,Catering costs - provisions,101.28,0.00,101.28
Regeneration Economy and Growth,Corporate Property and Land,011296,Catering - Dunes,Supplies and Services,324117,Provisions E324,06-Jan-2023,000010566499649,HOPWELLS LTD,5811,Catering costs - provisions,24.84,4.14,20.70
Regeneration Economy and Growth,Corporate Property and Land,011296,Catering - Dunes,Supplies and Services,324117,Provisions E324,06-Jan-2023,000010566499649 - 1,HOPWELLS LTD,5811,Catering costs - provisions,172.16,,172.16
Regeneration Economy and Growth,Corporate Property and Land,011296,Catering - Dunes,Supplies and Services,324117,Provisions E324,06-Jan-2023,000010566499651,HOPWELLS LTD,5811,Catering costs - provisions,125.51,0.00,125.51
Regeneration Economy and Growth,Corporate Property and Land,011296,Catering - Dunes,Supplies and Services,324117,Provisions E324,06-Jan-2023,000010566499653,JR HOLLAND FOODSERVICE,5499,Catering costs - provisions,174.75,0.00,174.75
Regeneration Economy and Growth,Corporate Property and Land,030691,Catering - Durham Dales Centre,Supplies and Services,324117,Provisions E324,06-Jan-2023,000010566499655,FREEMAN CATERING BUTCH,5422,Catering costs - provisions,90.67,0.00,90.67
Regeneration Economy and Growth,Corporate Property and Land,030691,Catering - Durham Dales Centre,Supplies and Services,324117,Provisions E324,06-Jan-2023,000010566499657,HOPWELLS LTD,5811,Catering costs - provisions,3.42,0.57,2.85
Regeneration Economy and Growth,Corporate Property and Land,030691,Catering - Durham Dales Centre,Supplies and Services,324117,Provisions E324,06-Jan-2023,000010566499657 - 1,HOPWELLS LTD,5811,Catering costs - provisions,209.93,,209.93
Regeneration Economy and Growth,Corporate Property and Land,030691,Catering - Durham Dales Centre,Supplies and Services,324117,Provisions E324,06-Jan-2023,000010566499659,HOPWELLS LTD,5811,Catering costs - provisions,-10.57,0.00,-10.57
Adult and Health Services,Head of Adults,055643,Hawthorn House LD Respite Unit,Supplies and Services,324117,Provisions E324,06-Jan-2023,000010566499663,HOPWELLS LTD,5811,Catering costs - provisions,66.20,0.00,66.20
Adult and Health Services,Head of Adults,055643,Hawthorn House LD Respite Unit,Supplies and Services,324117,Provisions E324,06-Jan-2023,000010566499665,JR HOLLAND FOODSERVICE,5499,Catering costs - provisions,16.80,0.00,16.80
Neighbourhoods and Climate Change,Environmental Services,011060,C&G - Hardwick Park Catering,Supplies and Services,324117,Provisions E324,06-Jan-2023,000010566499669,FREEMAN CATERING BUTCH,5422,Catering costs - provisions,61.65,0.00,61.65
Neighbourhoods and Climate Change,Environmental Services,011060,C&G - Hardwick Park Catering,Supplies and Services,324117,Provisions E324,06-Jan-2023,000010566499671,FREEMAN CATERING BUTCH,5422,Catering costs - provisions,73.79,0.00,73.79
Neighbourhoods and Climate Change,Environmental Services,011060,C&G - Hardwick Park Catering,Supplies and Services,324117,Provisions E324,06-Jan-2023,000010566499673,HOPWELLS LTD,5811,Catering costs - provisions,119.08,0.00,119.08
Neighbourhoods and Climate Change,Environmental Services,011060,C&G - Hardwick Park Catering,Supplies and Services,324117,Provisions E324,06-Jan-2023,000010566499675,HOPWELLS LTD,5811,Catering costs - provisions,184.45,0.00,184.45
Regeneration Economy and Growth,Corporate Property and Land,021234,Catering - Locomotion,Supplies and Services,324117,Provisions E324,06-Jan-2023,000010566499677,FREEMAN CATERING BUTCH,5422,Catering costs - provisions,61.53,0.00,61.53
Regeneration Economy and Growth,Corporate Property and Land,021234,Catering - Locomotion,Supplies and Services,324117,Provisions E324,06-Jan-2023,000010566499679,HOPWELLS LTD,5811,Catering costs - provisions,55.02,9.17,45.85
Regeneration Economy and Growth,Corporate Property and Land,021234,Catering - Locomotion,Supplies and Services,324117,Provisions E324,06-Jan-2023,000010566499679 - 1,HOPWELLS LTD,5811,Catering costs - provisions,401.33,,401.33
Regeneration Economy and Growth,Corporate Property and Land,021234,Catering - Locomotion,Supplies and Services,324117,Provisions E324,06-Jan-2023,000010566499681,HOPWELLS LTD,5811,Catering costs - provisions,-5.62,0.00,-5.62
Regeneration Economy and Growth,Culture Sport and Tourism,011263,Louisa Centre 011263,Supplies and Services,324117,Provisions E324,06-Jan-2023,000010566499685,JR HOLLAND FOODSERVICE,5499,Catering costs - provisions,60.37,0.00,60.37
Regeneration Economy and Growth,Culture Sport and Tourism,054812,Gala Theatre - Catering etc,Supplies and Services,324117,Provisions E324,06-Jan-2023,000010566499687,JR HOLLAND FOODSERVICE,5499,Catering costs - provisions,85.21,0.00,85.21
Regeneration Economy and Growth,Corporate Property and Land,021242,Catering - County Hall,Supplies and Services,324117,Provisions E324,06-Jan-2023,000010566499693,FREEMAN CATERING BUTCH,5422,Catering costs - provisions,147.48,0.00,147.48
Regeneration Economy and Growth,Corporate Property and Land,021242,Catering - County Hall,Supplies and Services,324117,Provisions E324,06-Jan-2023,000010566499695,HOPWELLS LTD,5811,Catering costs - provisions,318.55,0.00,318.55
Regeneration Economy and Growth,Corporate Property and Land,021242,Catering - County Hall,Supplies and Services,324117,Provisions E324,06-Jan-2023,000010566499697,JR HOLLAND FOODSERVICE,5499,Catering costs - provisions,11.20,0.00,11.20
Regeneration Economy and Growth,Corporate Property and Land,021324,Catering - Meadowfield,Supplies and Services,324117,Provisions E324,06-Jan-2023,000010566499699,HOPWELLS LTD,5811,Catering costs - provisions,45.39,0.00,45.39
Regeneration Economy and Growth,Corporate Property and Land,021324,Catering - Meadowfield,Supplies and Services,324117,Provisions E324,06-Jan-2023,000010566499701,JR HOLLAND FOODSERVICE,5499,Catering costs - provisions,112.35,0.00,112.35
Regeneration Economy and Growth,Corporate Property and Land,010525,Catering - Green Lane,Supplies and Services,324117,Provisions E324,06-Jan-2023,000010567341989,BATLEYS PERTH,5300,Catering costs - provisions,115.98,19.33,96.65
Regeneration Economy and Growth,Corporate Property and Land,010525,Catering - Green Lane,Supplies and Services,324117,Provisions E324,06-Jan-2023,000010567341989 - 1,BATLEYS PERTH,5300,Catering costs - provisions,93.72,,93.72
Adult and Health Services,Head of Adults,055643,Hawthorn House LD Respite Unit,Supplies and Services,324117,Provisions E324,06-Jan-2023,000010567342025,BATLEYS PERTH,5300,Catering costs - provisions,19.92,3.32,16.60
Adult and Health Services,Head of Adults,055643,Hawthorn House LD Respite Unit,Supplies and Services,324117,Provisions E324,06-Jan-2023,000010567342025 - 1,BATLEYS PERTH,5300,Catering costs - provisions,117.48,,117.48
Regeneration Economy and Growth,Corporate Property and Land,021235,Catering - Wharton Park,Supplies and Services,324117,Provisions E324,06-Jan-2023,000010567342063,BATLEYS PERTH,5300,Catering costs - provisions,-3.32,0.00,-3.32
Regeneration Economy and Growth,Business Durham CL0850,030689,Inward Investment and Aftercare,Supplies and Services,336005,Advertising E336,07-Jan-2023,000010566419307,LINKEDIN-862 0032184,7311,Advertising other than for staff,14.42,0.00,14.42
Regeneration Economy and Growth,Business Durham CL0850,030689,Inward Investment and Aftercare,Supplies and Services,342222,Computers and Communications,07-Jan-2023,000010566419311,FASTHOSTS,4816,Comp hardware purch-network servers,6.34,0.00,6.34
Children and Young Peoples Services,Head of Childrens Social Care,085342,16 Hickstead Rise (previously 9 Cedar Ave),Transport,215995,Running Costs of Vehicles,07-Jan-2023,000010566419383,WOODHAM SERVICES,5541,Vehicle running expenses,54.01,0.00,54.01
Children and Young Peoples Services,Head of Childrens Social Care,085342,16 Hickstead Rise (previously 9 Cedar Ave),Supplies and Services,324117,Provisions E324,07-Jan-2023,000010566419385,ASDA SUPERSTORE,5411,Catering costs - provisions,10.00,0.00,10.00
Children and Young Peoples Services,Head of Childrens Social Care,085342,16 Hickstead Rise (previously 9 Cedar Ave),Supplies and Services,324117,Provisions E324,07-Jan-2023,000010566419387,ASDA SUPERSTORE,5411,Catering costs - provisions,3.50,0.00,3.50
Regeneration Economy and Growth,Culture Sport and Tourism,030705,Visit County Durham 030705,Supplies and Services,304259,Equipment and Materials,07-Jan-2023,000010566419391,FASTHOSTS,4816,Equipment-purchase and rental,6.34,0.00,6.34
Children and Young Peoples Services,Head of Childrens Social Care,085342,16 Hickstead Rise (previously 9 Cedar Ave),Supplies and Services,340001,Postages E340,07-Jan-2023,000010566419397,POST OFFICE COUNTER,9402,Postages,2.35,0.00,2.35
Children and Young Peoples Services,Head of Childrens Social Care,085342,16 Hickstead Rise (previously 9 Cedar Ave),Supplies and Services,324117,Provisions E324,07-Jan-2023,000010566419399,TESCO STORES 2916,5411,Catering costs - provisions,58.34,0.00,58.34
Children and Young Peoples Services,Head of Childrens Social Care,085380,Service Manager CLA Fostering,Supplies and Services,304403,Equipment and Materials,07-Jan-2023,000010566419437,AMZNMKTPLACE AMAZON.CO,5999,Other consumables,70.00,11.67,58.33
Children and Young Peoples Services,Head of Childrens Social Care,085380,Service Manager CLA Fostering,Supplies and Services,304403,Equipment and Materials,07-Jan-2023,000010566419439,AMZNMKTPLACE AMAZON.CO,5999,Other consumables,149.99,25.00,124.99
Children and Young Peoples Services,Head of Childrens Social Care,085511,Emergency Duty Team,Transport,235057,Public Transport,07-Jan-2023,000010566419477,SumUp Will s taxi se,4121,Staff travelling,32.00,0.00,32.00
Children and Young Peoples Services,Head of Childrens Social Care,085511,Emergency Duty Team,Employees,040149,Recruitment Instruction and Training,07-Jan-2023,000010566419479,PREMIER INN,3811,Training-all costs,146.98,0.00,146.98
Children and Young Peoples Services,Head of Childrens Social Care,085342,16 Hickstead Rise (previously 9 Cedar Ave),Supplies and Services,312009,Newspapers books and periodicals E312,07-Jan-2023,000010566419505,WH Smith Darlington,5994,Newspapers books and periodicals,3.50,0.00,3.50
Children and Young Peoples Services,Head of Childrens Social Care,085342,16 Hickstead Rise (previously 9 Cedar Ave),Supplies and Services,384999,Miscellaneous Expenses,07-Jan-2023,000010566419507,WARREN JAMES,5944,Other expenses,17.49,0.00,17.49
Children and Young Peoples Services,Head of Childrens Social Care,085342,16 Hickstead Rise (previously 9 Cedar Ave),Supplies and Services,340001,Postages E340,07-Jan-2023,000010566419509,POST OFFICE SELF SERVE,9402,Postages,3.35,0.00,3.35
Children and Young Peoples Services,Head of Childrens Social Care,085358,Orchard House Sacriston Solo Home,Supplies and Services,372009,Subscriptions E372,07-Jan-2023,000010566419527,Netflix,4899,Subscriptions 372009,15.99,0.00,15.99
Regeneration Economy and Growth,Culture Sport and Tourism,054813,Gala Theatre - Technical,Supplies and Services,304259,Equipment and Materials,07-Jan-2023,000010566419545,AMZNMktplace,5999,Equipment-purchase and rental,89.98,15.00,74.98
Children and Young Peoples Services,Head of Early Help Inclusion & Vulnerable Children.,085962,Aycliffe Secure - Durham,Supplies and Services,304403,Equipment and Materials,07-Jan-2023,000010566419573,AMZNMktplace,5999,Other consumables,7.48,1.25,6.23
Children and Young Peoples Services,Head of Early Help Inclusion & Vulnerable Children.,085962,Aycliffe Secure - Durham,Supplies and Services,304403,Equipment and Materials,07-Jan-2023,000010566419575,AMZNMktplace,5999,Other consumables,5.10,0.85,4.25
Children and Young Peoples Services,Head of Early Help Inclusion & Vulnerable Children.,085962,Aycliffe Secure - Durham,Supplies and Services,304403,Equipment and Materials,07-Jan-2023,000010566419577,AMZNMktplace,5999,Other consumables,3.99,0.67,3.32
Children and Young Peoples Services,Head of Early Help Inclusion & Vulnerable Children.,085957,Secure Management,Supplies and Services,328041,Clothing uniforms and laundry E328,07-Jan-2023,000010566419621,Nike GBP,5655,Clothing uniforms and laundry,107.95,0.00,107.95
Children and Young Peoples Services,Head of Early Help Inclusion & Vulnerable Children.,085956,Lumley,Supplies and Services,324117,Provisions E324,07-Jan-2023,000010566419669,TESCO STORES 6329,5411,Catering costs - provisions,158.91,0.00,158.91
Children and Young Peoples Services,Head of Childrens Social Care,085331,New Lea Childrens Home,Supplies and Services,324117,Provisions E324,07-Jan-2023,000010566419739,ASDA SUPERSTORE,5411,Catering costs - provisions,6.00,0.00,6.00
Children and Young Peoples Services,Head of Childrens Social Care,085341,High Etherley Satelite Home,Supplies and Services,328041,Clothing uniforms and laundry E328,07-Jan-2023,000010566419771,MATALAN,5691,Clothing uniforms and laundry,34.25,0.00,34.25
Children and Young Peoples Services,Head of Childrens Social Care,085341,High Etherley Satelite Home,Supplies and Services,328041,Clothing uniforms and laundry E328,07-Jan-2023,000010566419773,MATALAN.CO.UK,5691,Clothing uniforms and laundry,-34.00,0.00,-34.00
Adult and Health Services,Head of Adults,055643,Hawthorn House LD Respite Unit,Supplies and Services,324117,Provisions E324,07-Jan-2023,000010566419829,SAINSBURYS S/MKTS,5411,Catering costs - provisions,15.48,0.00,15.48
Children and Young Peoples Services,Head of Education and Skills,071802,Louisa Cent Nursery,Supplies and Services,328041,Clothing uniforms and laundry E328,07-Jan-2023,000010566420057,W BOYES & CO LTD CONSE,5310,Clothing uniforms and laundry,6.00,0.00,6.00
Children and Young Peoples Services,Head of Education and Skills,071802,Louisa Cent Nursery,Supplies and Services,304999,Equipment and Materials,07-Jan-2023,000010566420059,HOME BARGAINS CONSETT,5251,Misc equipment tools and materials,6.50,0.00,6.50
Regeneration Economy and Growth,Culture Sport and Tourism,054233,Bishop Auckland Town Hall Library,Supplies and Services,324117,Provisions E324,07-Jan-2023,000010566420083,HERON FOODS,5411,Catering costs - provisions,6.76,0.00,6.76
Children and Young Peoples Services,Head of Childrens Social Care,085334,West Rainton Satelite Home,Supplies and Services,324117,Provisions E324,07-Jan-2023,000010566420113,TESCO STORES 2371,5411,Catering costs - provisions,87.38,0.00,87.38
Resources BK0010,Legal & Democratic Services,067910,Democratic Representation 067910,Supplies and Services,332047,Printing Stationery and Gen Off Exps,07-Jan-2023,000010566420123,AMZNMktplace,5999,Stationery,32.78,5.46,27.32
Resources BK0010,Digital Services,065432,Web Development Group,Supplies and Services,342033,Computers and Communications,07-Jan-2023,000010566420125,WPMU DEV INCSUBFEE.COM,7372,Computer hardware,16.03,0.00,16.03
Regeneration Economy and Growth,Communications Management,060270,Communications and Marketing,Supplies and Services,336005,Advertising E336,07-Jan-2023,000010566420127,LINKEDIN-861 9480824,7311,Advertising other than for staff,39.70,0.00,39.70
Regeneration Economy and Growth,Corporate Property and Land,030691,Catering - Durham Dales Centre,Supplies and Services,342033,Computers and Communications,07-Jan-2023,000010566420183,WWW.NISBETS.COM,5964,Computer hardware,139.47,0.00,139.47
Regeneration Economy and Growth,Business Durham CL0850,030689,Inward Investment and Aftercare,Supplies and Services,342033,Computers and Communications,08-Jan-2023,000010566419309,STK Shutterstock,7333,Computer hardware,19.00,0.00,19.00
Children and Young Peoples Services,Head of Education and Skills,071801,Selby Cottage Childcare Centre,Supplies and Services,304999,Equipment and Materials,08-Jan-2023,000010566419331,Amazon Prime 1H3CM5AI4,5968,Misc equipment tools and materials,8.99,1.50,7.49
Children and Young Peoples Services,Head of Education and Skills,071801,Selby Cottage Childcare Centre,Supplies and Services,304403,Equipment and Materials,08-Jan-2023,000010566419333,AMZNMktplace,5999,Other consumables,8.06,1.34,6.72
Dedicated Schools Grant BG0015,DSG Schools Block,417633,Greenfield Community College 004176 - Breakfast Club,Supplies and Services,304403,Equipment and Materials,08-Jan-2023,000010566419349,Amazon.co.uk 1H0WC7EB4,5969,Other consumables,4.46,0.00,4.46
Dedicated Schools Grant BG0015,DSG Schools Block,417633,Greenfield Community College 004176 - Breakfast Club,Supplies and Services,304403,Equipment and Materials,08-Jan-2023,000010566419351,Amazon.co.uk 1H26I5ER4,5969,Other consumables,12.28,0.00,12.28
Dedicated Schools Grant BG0015,DSG Schools Block,417633,Greenfield Community College 004176 - Breakfast Club,Supplies and Services,304403,Equipment and Materials,08-Jan-2023,000010566419353,Amazon.co.uk 1H8ZL9EN4,5969,Other consumables,39.90,0.00,39.90
Children and Young Peoples Services,Head of Childrens Social Care,085347,Solo Home The Manse,Supplies and Services,324117,Provisions E324,08-Jan-2023,000010566419369,PPOINT_ COSTCUTTER 108,5499,Catering costs - provisions,13.81,0.00,13.81
Regeneration Economy and Growth,Culture Sport and Tourism,030712,VCD - Project Delivery,Supplies and Services,384199,Miscellaneous Expenses,08-Jan-2023,000010566419393,PAYPAL WEBALON,5817,Other hired and contracted services,6.60,0.00,6.60
Children and Young Peoples Services,Head of Childrens Social Care,085341,High Etherley Satelite Home,Supplies and Services,324117,Provisions E324,08-Jan-2023,000010566419415,STARBUCKS BISHOP AUCKL,5499,Catering costs - provisions,9.36,0.00,9.36
Children and Young Peoples Services,Head of Childrens Social Care,085341,High Etherley Satelite Home,Supplies and Services,384981,Miscellaneous Expenses,08-Jan-2023,000010566419417,DOMINOS PIZZA,5812,House Rewards,27.50,0.00,27.50
Children and Young Peoples Services,Head of Early Help Inclusion & Vulnerable Children.,085956,Lumley,Supplies and Services,348037,Subsistence E348,08-Jan-2023,000010566419423,Just Eat,5814,Subsistence,28.75,0.00,28.75
Children and Young Peoples Services,Head of Early Help Inclusion & Vulnerable Children.,085956,Lumley,Supplies and Services,348037,Subsistence E348,08-Jan-2023,000010566419425,Just Eat,5814,Subsistence,58.60,0.00,58.60
Children and Young Peoples Services,Head of Early Help Inclusion & Vulnerable Children.,085956,Lumley,Supplies and Services,304403,Equipment and Materials,08-Jan-2023,000010566419427,AMZNMktplace,5999,Other consumables,84.78,0.00,84.78
Children and Young Peoples Services,Head of Childrens Social Care,085342,16 Hickstead Rise (previously 9 Cedar Ave),Supplies and Services,304403,Equipment and Materials,08-Jan-2023,000010566419511,AMZNMktplace,5999,Other consumables,49.98,0.00,49.98
Children and Young Peoples Services,Head of Childrens Social Care,085342,16 Hickstead Rise (previously 9 Cedar Ave),Supplies and Services,384999,Miscellaneous Expenses,08-Jan-2023,000010566419513,BODYCARE,5977,Other expenses,7.92,0.00,7.92
Children and Young Peoples Services,Head of Childrens Social Care,085342,16 Hickstead Rise (previously 9 Cedar Ave),Supplies and Services,348037,Subsistence E348,08-Jan-2023,000010566419515,BIG LUKES WORLD BUFFET,5812,Subsistence,38.98,0.00,38.98
Children and Young Peoples Services,Head of Childrens Social Care,085342,16 Hickstead Rise (previously 9 Cedar Ave),Supplies and Services,328041,Clothing uniforms and laundry E328,08-Jan-2023,000010566419517,T K MAXX,5331,Clothing uniforms and laundry,38.20,0.00,38.20
Children and Young Peoples Services,Head of Education and Skills,071732,Dean Bank Childcare,Supplies and Services,324117,Provisions E324,08-Jan-2023,000010566419541,CO-OP GROUP 010503,5411,Catering costs - provisions,11.00,0.00,11.00
Children and Young Peoples Services,Head of Early Help Inclusion & Vulnerable Children.,085962,Aycliffe Secure - Durham,Supplies and Services,304403,Equipment and Materials,08-Jan-2023,000010566419579,AMZNMktplace,5999,Other consumables,12.42,2.07,10.35
Children and Young Peoples Services,Head of Early Help Inclusion & Vulnerable Children.,085962,Aycliffe Secure - Durham,Supplies and Services,304403,Equipment and Materials,08-Jan-2023,000010566419581,AMZNMktplace,5999,Other consumables,8.52,1.42,7.10
Children and Young Peoples Services,Head of Early Help Inclusion & Vulnerable Children.,085962,Aycliffe Secure - Durham,Supplies and Services,304403,Equipment and Materials,08-Jan-2023,000010566419583,AMZNMktplace,5999,Other consumables,1.00,0.17,0.83
Children and Young Peoples Services,Head of Early Help Inclusion & Vulnerable Children.,085957,Secure Management,Supplies and Services,384999,Miscellaneous Expenses,08-Jan-2023,000010566419625,Amazon.co.uk 1H0CL3AX4,5969,Other expenses,21.99,3.67,18.32
Children and Young Peoples Services,Head of Early Help Inclusion & Vulnerable Children.,085957,Secure Management,Supplies and Services,384999,Miscellaneous Expenses,08-Jan-2023,000010566419627,Amazon.co.uk 1H1OL4AW4,5969,Other expenses,5.09,0.85,4.24
Children and Young Peoples Services,Head of Early Help Inclusion & Vulnerable Children.,085957,Secure Management,Supplies and Services,384999,Miscellaneous Expenses,08-Jan-2023,000010566419629,Amazon.co.uk 1H2MD1A74,5969,Other expenses,29.99,5.00,24.99
Children and Young Peoples Services,Head of Early Help Inclusion & Vulnerable Children.,085957,Secure Management,Supplies and Services,384999,Miscellaneous Expenses,08-Jan-2023,000010566419631,Amazon.co.uk 1H46A2A04,5969,Other expenses,9.83,1.64,8.19
Children and Young Peoples Services,Head of Early Help Inclusion & Vulnerable Children.,085957,Secure Management,Supplies and Services,304403,Equipment and Materials,08-Jan-2023,000010566419633,AMZNMktplace,5999,Other consumables,12.99,2.17,10.82
Children and Young Peoples Services,Head of Early Help Inclusion & Vulnerable Children.,085954,Walworth,Supplies and Services,324117,Provisions E324,08-Jan-2023,000010566419671,TESCO STORES 6329,5411,Catering costs - provisions,106.47,0.00,106.47
Children and Young Peoples Services,Head of Childrens Social Care,085551,Short Break Services-Park Hse Sher,Supplies and Services,324117,Provisions E324,08-Jan-2023,000010566419759,TESCO STORES 2371,5411,Catering costs - provisions,18.13,0.00,18.13
Dedicated Schools Grant BG0015,DSG Schools Block,702812,Villa Real School 7028 - IT,Supplies and Services,304403,Equipment and Materials,08-Jan-2023,000010566419799,AMZNMktplace,5999,Other consumables,8.94,1.49,7.45
Children and Young Peoples Services,Head of Childrens Social Care,085331,New Lea Childrens Home,Supplies and Services,304259,Equipment and Materials,08-Jan-2023,000010566419901,HMV RETAIL LTD,5735,Equipment-purchase and rental,2.27,0.00,2.27
Children and Young Peoples Services,Head of Early Help Inclusion & Vulnerable Children.,085965,Barnard,Supplies and Services,304403,Equipment and Materials,08-Jan-2023,000010566419923,AMZNMktplace,5999,Other consumables,31.68,0.00,31.68
Children and Young Peoples Services,Head of Early Help Inclusion & Vulnerable Children.,085957,Secure Management,Supplies and Services,304259,Equipment and Materials,08-Jan-2023,000010566419941,AMZNMktplace,5999,Equipment-purchase and rental,21.95,0.00,21.95
Children and Young Peoples Services,Head of Early Help Inclusion & Vulnerable Children.,085801,CDYJS - Support,Supplies and Services,304403,Equipment and Materials,08-Jan-2023,000010566420013,AMZNMktplace,5999,Other consumables,19.92,3.32,16.60
Children and Young Peoples Services,Head of Early Help Inclusion & Vulnerable Children.,085801,CDYJS - Support,Supplies and Services,304403,Equipment and Materials,08-Jan-2023,000010566420013 - 1,AMZNMktplace,5999,Other consumables,0.04,,0.04
Children and Young Peoples Services,Head of Early Help Inclusion & Vulnerable Children.,085801,CDYJS - Support,Supplies and Services,304403,Equipment and Materials,08-Jan-2023,000010566420015,AMZNMktplace,5999,Other consumables,30.58,0.00,30.58
Children and Young Peoples Services,Head of Early Help Inclusion & Vulnerable Children.,085801,CDYJS - Support,Supplies and Services,304403,Equipment and Materials,08-Jan-2023,000010566420017,AMZNMktplace,5999,Other consumables,105.60,17.60,88.00
Children and Young Peoples Services,Head of Early Help Inclusion & Vulnerable Children.,085801,CDYJS - Support,Supplies and Services,304403,Equipment and Materials,08-Jan-2023,000010566420017 - 1,AMZNMktplace,5999,Other consumables,0.20,,0.20
Resources BK0010,Digital Services,065487,ICT Telephony Recharges,Supplies and Services,304403,Equipment and Materials,08-Jan-2023,000010566420117,AMZNMktplace,5999,Other consumables,64.80,10.80,54.00
Resources BK0010,Digital Services,065487,ICT Telephony Recharges,Supplies and Services,304403,Equipment and Materials,08-Jan-2023,000010566420117 - 1,AMZNMktplace,5999,Other consumables,0.10,,0.10
Resources BK0010,Resources Management CK0450,069000,Resources Management 069000,Supplies and Services,304259,Equipment and Materials,08-Jan-2023,000010566420129,APPLE.COM/BILL,5735,Equipment-purchase and rental,0.79,0.00,0.79
Children and Young Peoples Services,Head of Childrens Social Care,085551,Short Break Services-Park Hse Sher,Supplies and Services,304403,Equipment and Materials,08-Jan-2023,000010567162177,AMZNMKTPLACE AMAZON.CO,5999,Other consumables,120.52,0.00,120.52
Regeneration Economy and Growth,Business Durham CL0850,030689,Inward Investment and Aftercare,Supplies and Services,304999,Equipment and Materials,09-Jan-2023,000010566419315,Mailchimp,5818,Misc equipment tools and materials,117.16,0.00,117.16
Children and Young Peoples Services,Head of Childrens Social Care,085342,16 Hickstead Rise (previously 9 Cedar Ave),Supplies and Services,372009,Subscriptions E372,09-Jan-2023,000010566419835,NETFLIX.COM,4899,Subscriptions 372009,15.99,0.00,15.99
Children and Young Peoples Services,Head of Education and Skills,078100,Curric and Professional Development 078100,Supplies and Services,342033,Computers and Communications,09-Jan-2023,000010566419895,STK Shutterstock,7333,Computer hardware,22.80,0.00,22.80
Children and Young Peoples Services,Head of Early Help Inclusion & Vulnerable Children.,085801,CDYJS - Support,Supplies and Services,304403,Equipment and Materials,09-Jan-2023,000010566420019,AMZNMktplace,5999,Other consumables,36.00,6.00,30.00
Children and Young Peoples Services,Head of Early Help Inclusion & Vulnerable Children.,085801,CDYJS - Support,Supplies and Services,304403,Equipment and Materials,09-Jan-2023,000010566420019 - 1,AMZNMktplace,5999,Other consumables,46.77,,46.77
Resources BK0010,Digital Services,065432,Web Development Group,Supplies and Services,342033,Computers and Communications,09-Jan-2023,000010566420131,WPMU DEV INCSUBFEE.COM,7372,Computer hardware,0.44,0.00,0.44
Children and Young Peoples Services,Head of Childrens Social Care,085300,LAC Placements,Supplies and Services,364353,Grants to Voluntary Organisations,09-Jan-2023,000010567161191,AMZNMktplace,5999,Leaving care-other,58.79,9.80,48.99
Children and Young Peoples Services,Head of Childrens Social Care,085611,Families First Stanley,Supplies and Services,364301,Grants to Voluntary Organisations,09-Jan-2023,000010567161195,ARGOS LTD,5310,Hardship,293.94,0.00,293.94
Children and Young Peoples Services,Head of Childrens Social Care,085366,Children Looked After Team 3,Supplies and Services,338045,Services,09-Jan-2023,000010567161201,HM PASSPORT OFFICE,9399,Legal expenses 338045,49.00,0.00,49.00
Children and Young Peoples Services,Head of Childrens Social Care,085366,Children Looked After Team 3,Supplies and Services,338045,Services,09-Jan-2023,000010567161205,HM PASSPORT OFFICE,9399,Legal expenses 338045,49.00,0.00,49.00
Children and Young Peoples Services,Head of Childrens Social Care,085368,Children Looked After Team 5,Supplies and Services,338045,Services,09-Jan-2023,000010567161209,GEN REGISTER OFFICE,9399,Legal expenses 338045,11.00,0.00,11.00
Resources BK0010,Transactional & Customer Services,065180,Collections,Supplies and Services,332001,Printing Stationery and Gen Off Exps,09-Jan-2023,000010567161217,STOCKTON BOROUGH COUNC,9399,General office expenses,11.00,0.00,11.00
Dedicated Schools Grant BG0015,DSG Schools Block,110012,The Woodlands 1100 - The Bridge,Supplies and Services,304403,Equipment and Materials,09-Jan-2023,000010567161225,AMZNMktplace,5999,Other consumables,648.99,108.17,540.82
Dedicated Schools Grant BG0015,DSG Schools Block,417611,Greenfield Community College 004176 - Technology,Supplies and Services,304403,Equipment and Materials,09-Jan-2023,000010567161233,ASDA GROCERIES ONLINE,5411,Other consumables,106.12,0.00,106.12
Dedicated Schools Grant BG0015,DSG Schools Block,417611,Greenfield Community College 004176 - Technology,Supplies and Services,304403,Equipment and Materials,09-Jan-2023,000010567161251,ASDA GROCERIES ONLINE,5411,Other consumables,-1.05,0.00,-1.05
Children and Young Peoples Services,Head of Education and Skills,075034,Youth Futures Foundation,Supplies and Services,364301,Grants to Voluntary Organisations,09-Jan-2023,000010567161287,MATALAN.CO.UK,5691,Hardship,62.45,0.00,62.45
Children and Young Peoples Services,Head of Education and Skills,075034,Youth Futures Foundation,Supplies and Services,364301,Grants to Voluntary Organisations,09-Jan-2023,000010567161291,TESCO ONLINE,5999,Hardship,29.99,0.00,29.99
Children and Young Peoples Services,Head of Childrens Social Care,085342,16 Hickstead Rise (previously 9 Cedar Ave),Supplies and Services,324117,Provisions E324,09-Jan-2023,000010567161295,B&M 681 - DURHAM,5399,Catering costs - provisions,69.07,0.00,69.07
Children and Young Peoples Services,Head of Education and Skills,075035,DurhamDirections Re-engagement,Supplies and Services,364301,Grants to Voluntary Organisations,09-Jan-2023,000010567161325,WWW.GONORTHEAST.CO.UK,4111,Hardship,75.00,0.00,75.00
Children and Young Peoples Services,Head of Education and Skills,075029,Poverty Action Group,Supplies and Services,304403,Equipment and Materials,09-Jan-2023,000010567161331,AMZNMktplace,5999,Other consumables,17.98,0.00,17.98
Children and Young Peoples Services,Head of Education and Skills,075035,DurhamDirections Re-engagement,Supplies and Services,304403,Equipment and Materials,09-Jan-2023,000010567161335,AMZNMktplace,5999,Other consumables,37.80,6.40,31.40
Children and Young Peoples Services,Head of Education and Skills,075033,DurhamWorks 3,Supplies and Services,364301,Grants to Voluntary Organisations,09-Jan-2023,000010567161341,DARLINGTON BOROUGH COU,9399,Hardship,11.00,0.00,11.00
Children and Young Peoples Services,Head of Education and Skills,075035,DurhamDirections Re-engagement,Supplies and Services,364301,Grants to Voluntary Organisations,09-Jan-2023,000010567161347,TESCO ONLINE,5999,Hardship,29.99,0.00,29.99
Children and Young Peoples Services,Head of Education and Skills,075029,Poverty Action Group,Supplies and Services,304403,Equipment and Materials,09-Jan-2023,000010567161349,AMZNMktplace,5999,Other consumables,35.98,0.00,35.98
Children and Young Peoples Services,Head of Education and Skills,075035,DurhamDirections Re-engagement,Supplies and Services,304403,Equipment and Materials,09-Jan-2023,000010567161357,AMZNMktplace,5999,Other consumables,194.00,32.40,161.60
Neighbourhoods and Climate Change,Environmental Services,010383,C&G - South Street Cleansing,Supplies and Services,304221,Equipment and Materials,09-Jan-2023,000010567161399,CARRS BILLINGTON SPENN,5599,Direct materials,300.00,0.00,300.00
Regeneration Economy and Growth,Culture Sport and Tourism,030712,VCD - Project Delivery,Supplies and Services,384199,Miscellaneous Expenses,09-Jan-2023,000010567161409,WORDPRESS 766PEZSA7Q,5734,Other hired and contracted services,240.00,0.00,240.00
Children and Young Peoples Services,Head of Childrens Social Care,085332,Middlestone Moor CU,Supplies and Services,324117,Provisions E324,09-Jan-2023,000010567161441,TESCO STORES 2371,5411,Catering costs - provisions,235.24,0.00,235.24
Children and Young Peoples Services,Head of Childrens Social Care,085341,High Etherley Satelite Home,Supplies and Services,308011,Furniture,09-Jan-2023,000010567161459,Dunelm SoftFurnishings,5712,Furniture repair and replacement,70.20,0.00,70.20
Children and Young Peoples Services,Head of Childrens Social Care,085341,High Etherley Satelite Home,Supplies and Services,308011,Furniture,09-Jan-2023,000010567161463,Dunelm SoftFurnishings,5712,Furniture repair and replacement,300.40,0.00,300.40
Children and Young Peoples Services,Head of Childrens Social Care,085341,High Etherley Satelite Home,Supplies and Services,308011,Furniture,09-Jan-2023,000010567161469,SPOTTED PENGUIN,5712,Furniture repair and replacement,288.00,0.00,288.00
Children and Young Peoples Services,Head of Childrens Social Care,085341,High Etherley Satelite Home,Supplies and Services,308011,Furniture,09-Jan-2023,000010567161473,Dunelm SoftFurnishings,5712,Furniture repair and replacement,-4.00,0.00,-4.00
Children and Young Peoples Services,Head of Early Help Inclusion & Vulnerable Children.,085956,Lumley,Supplies and Services,338048,Services,09-Jan-2023,000010567161553,HMCTS DURHAM012W,9222,Court costs 338048,50.00,0.00,50.00
Children and Young Peoples Services,Head of Education and Skills,071733,Shildon Childcare,Supplies and Services,324117,Provisions E324,09-Jan-2023,000010567161689,ASDA GROCERIES ONLINE,5411,Catering costs - provisions,115.70,0.00,115.70
Children and Young Peoples Services,Head of Education and Skills,071733,Shildon Childcare,Supplies and Services,324117,Provisions E324,09-Jan-2023,000010567161697,ASDA GROCERIES ONLINE,5411,Catering costs - provisions,6.50,0.00,6.50
Children and Young Peoples Services,Head of Education and Skills,071733,Shildon Childcare,Supplies and Services,324117,Provisions E324,09-Jan-2023,000010567161703,ASDA GROCERIES ONLINE,5411,Catering costs - provisions,-3.87,0.00,-3.87
Children and Young Peoples Services,Head of Education and Skills,071733,Shildon Childcare,Supplies and Services,324117,Provisions E324,09-Jan-2023,000010567161709,ASDA GROCERIES ONLINE,5411,Catering costs - provisions,-2.60,0.00,-2.60
Children and Young Peoples Services,Head of Childrens Social Care,085631,Families First Peterlee,Supplies and Services,338045,Services,09-Jan-2023,000010567161733,GEN REGISTER OFFICE,9399,Legal expenses 338045,22.00,0.00,22.00
Regeneration Economy and Growth,Planning & Housing,031576,B& B - Temp Accom,Supplies and Services,352001,Conference Expenses,09-Jan-2023,000010567161743,Roadchef Durham,7011,Conferencesseminars fees etc,50.00,0.00,50.00
Adult and Health Services,Head of Adults,055302,Durham Pathways,Supplies and Services,304403,Equipment and Materials,09-Jan-2023,000010567161781,AMZNMKTPLACE AMAZON.CO,5999,Other consumables,31.98,0.00,31.98
Neighbourhoods and Climate Change,Environmental Services,026591,C&G - Hardwick Park,Supplies and Services,304259,Equipment and Materials,09-Jan-2023,000010567161799,DEFIBSTORE LTD,5047,Equipment-purchase and rental,276.00,0.00,276.00
Neighbourhoods and Climate Change,Environmental Services,026591,C&G - Hardwick Park,Supplies and Services,304259,Equipment and Materials,09-Jan-2023,000010567161805,SAFELINCS,5999,Equipment-purchase and rental,53.69,0.00,53.69
Children and Young Peoples Services,Head of Education and Skills,071801,Selby Cottage Childcare Centre,Supplies and Services,324117,Provisions E324,09-Jan-2023,000010567161811,TESCO STORES 2278,5411,Catering costs - provisions,17.18,0.00,17.18
Children and Young Peoples Services,Head of Childrens Social Care,085341,High Etherley Satelite Home,Supplies and Services,324117,Provisions E324,09-Jan-2023,000010567161839,774 026,5411,Catering costs - provisions,75.61,0.00,75.61
Children and Young Peoples Services,Head of Early Help Inclusion & Vulnerable Children.,085957,Secure Management,Supplies and Services,384999,Miscellaneous Expenses,09-Jan-2023,000010567161951,Amazon.co.uk 1H3O56PJ4,5969,Other expenses,39.55,0.00,39.55
Children and Young Peoples Services,Head of Early Help Inclusion & Vulnerable Children.,085957,Secure Management,Supplies and Services,384999,Miscellaneous Expenses,09-Jan-2023,000010567161957,Amazon.co.uk 1H51M6PZ4,5969,Other expenses,7.89,0.00,7.89
Children and Young Peoples Services,Head of Early Help Inclusion & Vulnerable Children.,085957,Secure Management,Supplies and Services,384999,Miscellaneous Expenses,09-Jan-2023,000010567161963,Amazon.co.uk 1H7OE6G34,5969,Other expenses,10.22,0.00,10.22
Children and Young Peoples Services,Head of Early Help Inclusion & Vulnerable Children.,085957,Secure Management,Supplies and Services,304403,Equipment and Materials,09-Jan-2023,000010567161965,AMZNMktplace,5999,Other consumables,52.98,0.00,52.98
Children and Young Peoples Services,Head of Early Help Inclusion & Vulnerable Children.,085957,Secure Management,Supplies and Services,304403,Equipment and Materials,09-Jan-2023,000010567161967,AMZNMKTPLACE AMAZON.CO,5999,Other consumables,11.78,1.96,9.82
Children and Young Peoples Services,Head of Early Help Inclusion & Vulnerable Children.,085957,Secure Management,Supplies and Services,324117,Provisions E324,09-Jan-2023,000010567161971,TESCO STORES 6329,5411,Catering costs - provisions,141.71,0.00,141.71
Children and Young Peoples Services,Head of Early Help Inclusion & Vulnerable Children.,085957,Secure Management,Supplies and Services,384999,Miscellaneous Expenses,09-Jan-2023,000010567161977,Amazon.co.uk 1H83E4G04,5969,Other expenses,11.45,0.00,11.45
Regeneration Economy and Growth,Economic Development Level C,030771,Durham Advance Flexible Fund,Supplies and Services,304259,Equipment and Materials,09-Jan-2023,000010567162037,CURRYS ONLINE,5732,Equipment-purchase and rental,149.00,24.83,124.17
Regeneration Economy and Growth,Economic Development Level C,030771,Durham Advance Flexible Fund,Supplies and Services,304259,Equipment and Materials,09-Jan-2023,000010567162123,GEN REGISTER OFFICE,9399,Equipment-purchase and rental,14.00,0.00,14.00
Children and Young Peoples Services,Head of Childrens Social Care,085364,Children Looked After Team 1,Supplies and Services,304403,Equipment and Materials,09-Jan-2023,000010567162131,AMZNBusiness 1H36J3PV4,5999,Other consumables,36.99,6.17,30.82
Children and Young Peoples Services,Head of Childrens Social Care,085364,Children Looked After Team 1,Supplies and Services,304403,Equipment and Materials,09-Jan-2023,000010567162135,AMZNMktplace,5999,Other consumables,35.98,0.00,35.98
Children and Young Peoples Services,Head of Childrens Social Care,085364,Children Looked After Team 1,Supplies and Services,304403,Equipment and Materials,09-Jan-2023,000010567162139,AMZNMktplace,5999,Other consumables,39.80,6.64,33.16
Children and Young Peoples Services,Head of Childrens Social Care,085364,Children Looked After Team 1,Supplies and Services,372009,Subscriptions E372,09-Jan-2023,000010567162145,Licence Assistance,8111,Subscriptions 372009,89.00,0.00,89.00
Children and Young Peoples Services,Head of Childrens Social Care,085364,Children Looked After Team 1,Transport,235057,Public Transport,09-Jan-2023,000010567162151,STAGECOACH SERVICE,4131,Staff travelling,39.77,0.00,39.77
Children and Young Peoples Services,Head of Education and Skills,070169,Durham SSP,Supplies and Services,384999,Miscellaneous Expenses,09-Jan-2023,000010567162171,Amazon.co.uk 1H3P19GR4,5969,Other expenses,22.92,0.00,22.92
Dedicated Schools Grant BG0015,DSG Schools Block,275102,Framwellgate Moor Primary 2751 - Breakfast Club,Supplies and Services,324117,Provisions E324,09-Jan-2023,000010567162181,SAINSBURYS.CO.UK,5411,Catering costs - provisions,149.60,0.00,149.60
Dedicated Schools Grant BG0015,DSG Schools Block,275102,Framwellgate Moor Primary 2751 - Breakfast Club,Supplies and Services,324117,Provisions E324,09-Jan-2023,000010567162185,SAINSBURYS.CO.UK,5411,Catering costs - provisions,-1.10,0.00,-1.10
Children and Young Peoples Services,Head of Childrens Social Care,085332,Middlestone Moor CU,Supplies and Services,348037,Subsistence E348,09-Jan-2023,000010567162255,COSTA COFFEE NEWTON AY,5812,Subsistence,3.50,0.00,3.50
Children and Young Peoples Services,Head of Childrens Social Care,085332,Middlestone Moor CU,Supplies and Services,348037,Subsistence E348,09-Jan-2023,000010567162263,VMS ROADCHEF COSTA,5814,Subsistence,7.10,0.00,7.10
Adult and Health Services,Head of Adults,055643,Hawthorn House LD Respite Unit,Supplies and Services,328041,Clothing uniforms and laundry E328,09-Jan-2023,000010567162413,ARGOS LTD,5310,Clothing uniforms and laundry,44.99,0.00,44.99
Children and Young Peoples Services,Head of Education and Skills,071802,Louisa Cent Nursery,Supplies and Services,324117,Provisions E324,09-Jan-2023,000010567162427,ALDI STORES,5411,Catering costs - provisions,9.12,0.00,9.12
Children and Young Peoples Services,Head of Childrens Social Care,085342,16 Hickstead Rise (previously 9 Cedar Ave),Transport,235057,Public Transport,09-Jan-2023,000010567162443,NEWCASTLE UPON TYNE HO,7523,Staff travelling,6.00,0.00,6.00
Children and Young Peoples Services,Head of Childrens Social Care,085347,Solo Home The Manse,Supplies and Services,308011,Furniture,09-Jan-2023,000010567162457,The Range,5719,Furniture repair and replacement,14.99,0.00,14.99
Children and Young Peoples Services,Head of Childrens Social Care,085347,Solo Home The Manse,Supplies and Services,324117,Provisions E324,09-Jan-2023,000010567162463,STARBUCKS THINFORD,5499,Catering costs - provisions,16.90,0.00,16.90
Children and Young Peoples Services,Head of Childrens Social Care,085347,Solo Home The Manse,Supplies and Services,324117,Provisions E324,09-Jan-2023,000010567162465,ALDI 12 774,5411,Catering costs - provisions,82.39,0.00,82.39
Children and Young Peoples Services,Head of Education and Skills,071732,Dean Bank Childcare,Supplies and Services,324117,Provisions E324,09-Jan-2023,000010567162491,B&M 147 - FERRYHILL,5399,Catering costs - provisions,3.56,0.00,3.56
Children and Young Peoples Services,Head of Education and Skills,071732,Dean Bank Childcare,Supplies and Services,324117,Provisions E324,09-Jan-2023,000010567162495,ASDA GROCERIES ONLINE,5411,Catering costs - provisions,62.78,0.00,62.78
Children and Young Peoples Services,Head of Education and Skills,078550,Discretionary Learning Support,Supplies and Services,304259,Equipment and Materials,09-Jan-2023,000010567162587,SMARTY CO UK,4814,Equipment-purchase and rental,6.00,0.00,6.00
Children and Young Peoples Services,Head of Early Help Inclusion & Vulnerable Children.,085965,Barnard,Supplies and Services,384999,Miscellaneous Expenses,09-Jan-2023,000010567162609,TEAM SPORT KARTING,7997,Other expenses,66.40,0.00,66.40
Regeneration Economy and Growth,Economic Development Level C,030771,Durham Advance Flexible Fund,Supplies and Services,384999,Miscellaneous Expenses,09-Jan-2023,000010567162663,SINGEROUTLET.CO.UK,5949,Other expenses,99.99,0.00,99.99
Children and Young Peoples Services,Head of Early Help Inclusion & Vulnerable Children.,085954,Walworth,Supplies and Services,384302,Miscellaneous Expenses,09-Jan-2023,000010567162673,ARGOS LTD,5310,Activity expenses,57.94,0.00,57.94
Children and Young Peoples Services,Head of Early Help Inclusion & Vulnerable Children.,085965,Barnard,Supplies and Services,384302,Miscellaneous Expenses,09-Jan-2023,000010567162685,AMZNMKTPLACE AMAZON.CO,5999,Activity expenses,17.50,2.92,14.58
Children and Young Peoples Services,Head of Early Help Inclusion & Vulnerable Children.,085965,Barnard,Supplies and Services,312009,Newspapers books and periodicals E312,09-Jan-2023,000010567162689,Amazon.co.uk 1H0G30MD4,5969,Newspapers books and periodicals,30.10,5.02,25.08
Children and Young Peoples Services,Head of Early Help Inclusion & Vulnerable Children.,085957,Secure Management,Supplies and Services,304259,Equipment and Materials,09-Jan-2023,000010567162693,AMZNMktplace,5999,Equipment-purchase and rental,12.39,2.07,10.32
Children and Young Peoples Services,Head of Early Help Inclusion & Vulnerable Children.,085957,Secure Management,Supplies and Services,384302,Miscellaneous Expenses,09-Jan-2023,000010567162699,MICROSOFT SUBSCRIPTION,5816,Activity expenses,10.99,0.00,10.99
Children and Young Peoples Services,Head of Childrens Social Care,085333,Coxhoe Satelite Home,Supplies and Services,324117,Provisions E324,09-Jan-2023,000010567162903,SAINSBURYS S/MKTS,5411,Catering costs - provisions,68.77,0.00,68.77
Children and Young Peoples Services,Head of Childrens Social Care,085333,Coxhoe Satelite Home,Supplies and Services,324117,Provisions E324,09-Jan-2023,000010567162911,SAINSBURYS S/MKTS,5411,Catering costs - provisions,25.95,0.00,25.95
Children and Young Peoples Services,Head of Education and Skills,071802,Louisa Cent Nursery,Supplies and Services,324117,Provisions E324,09-Jan-2023,000010567162923,ASDA SUPERSTORE,5411,Catering costs - provisions,7.14,0.00,7.14
Children and Young Peoples Services,Head of Early Help Inclusion & Vulnerable Children.,088115,Young Parents Programme 088115,Supplies and Services,304259,Equipment and Materials,09-Jan-2023,000010567162973,AMZ KeaBabies,5999,Equipment-purchase and rental,-59.84,-9.96,-49.88
Resources BK0010,Corporate Finance & Commercial Services,065156,CYPS Finance,Supplies and Services,324117,Provisions E324,09-Jan-2023,000010567163171,CKB LTD,5399,Catering costs - provisions,4.89,0.00,4.89
Children and Young Peoples Services,Head of Childrens Social Care,085611,Families First Stanley,Supplies and Services,304403,Equipment and Materials,09-Jan-2023,000010567163175,AMZNMktplace,5999,Other consumables,15.98,2.66,13.32
Adult and Health Services,Head of Adults,059207,Provider Services - Extra Care Manager,Supplies and Services,304403,Equipment and Materials,09-Jan-2023,000010567163179,AMZNMktplace,5999,Other consumables,21.99,3.67,18.32
Children and Young Peoples Services,Head of Childrens Social Care,085551,Short Break Services-Park Hse Sher,Supplies and Services,324117,Provisions E324,09-Jan-2023,000010567163329,TESCO STORES 2371,5411,Catering costs - provisions,117.24,0.00,117.24
Children and Young Peoples Services,Head of Childrens Social Care,085551,Short Break Services-Park Hse Sher,Supplies and Services,348037,Subsistence E348,09-Jan-2023,000010567163333,MCDONALDS,5812,Subsistence,7.75,0.00,7.75
Regeneration Economy and Growth,Economic Development Level C,030554,International Relations 030554,Transport,235057,Public Transport,09-Jan-2023,000010567163389,SumUp Mohamed ahmed,4121,Staff travelling,51.80,0.00,51.80
Regeneration Economy and Growth,Economic Development Level C,030554,International Relations 030554,Supplies and Services,352001,Conference Expenses,09-Jan-2023,000010567163395,Roadchef Durham,7011,Conferencesseminars fees etc,44.00,0.00,44.00
Regeneration Economy and Growth,Economic Development Level C,030554,International Relations 030554,Supplies and Services,352001,Conference Expenses,09-Jan-2023,000010567163399,Roadchef Durham,7011,Conferencesseminars fees etc,44.00,0.00,44.00
Regeneration Economy and Growth,Corporate Property and Land,010525,Catering - Green Lane,Supplies and Services,324117,Provisions E324,09-Jan-2023,000010567342001,JR HOLLAND FOODSERVICE,5499,Catering costs - provisions,93.49,0.00,93.49
Regeneration Economy and Growth,Corporate Property and Land,010525,Catering - Green Lane,Supplies and Services,384999,Miscellaneous Expenses,09-Jan-2023,000010567342003,G M PACKAGING UK LIMIT,5046,Other expenses,218.00,0.00,218.00
Regeneration Economy and Growth,Corporate Property and Land,010525,Catering - Green Lane,Supplies and Services,384999,Miscellaneous Expenses,09-Jan-2023,000010567342009,G M PACKAGING UK LIMIT,5046,Other expenses,10.02,0.00,10.02
Regeneration Economy and Growth,Corporate Property and Land,030691,Catering - Durham Dales Centre,Supplies and Services,324117,Provisions E324,09-Jan-2023,000010567342013,JR HOLLAND FOODSERVICE,5499,Catering costs - provisions,189.70,0.00,189.70
Regeneration Economy and Growth,Culture Sport and Tourism,054235,Bishop Auckland Town Hall Cafe,Supplies and Services,324117,Provisions E324,09-Jan-2023,000010567342019,JR HOLLAND FOODSERVICE,5499,Catering costs - provisions,748.23,0.00,748.23
Adult and Health Services,Head of Adults,055643,Hawthorn House LD Respite Unit,Supplies and Services,324117,Provisions E324,09-Jan-2023,000010567342029,JR HOLLAND FOODSERVICE,5499,Catering costs - provisions,28.61,0.00,28.61
Adult and Health Services,Head of Adults,055643,Hawthorn House LD Respite Unit,Supplies and Services,324117,Provisions E324,09-Jan-2023,000010567342033,JR HOLLAND FOODSERVICE,5499,Catering costs - provisions,26.74,0.00,26.74
Neighbourhoods and Climate Change,Environmental Services,011060,C&G - Hardwick Park Catering,Supplies and Services,324117,Provisions E324,09-Jan-2023,000010567342037,JR HOLLAND FOODSERVICE,5499,Catering costs - provisions,34.30,0.00,34.30
Regeneration Economy and Growth,Culture Sport and Tourism,054812,Gala Theatre - Catering etc,Supplies and Services,384999,Miscellaneous Expenses,09-Jan-2023,000010567342067,G M PACKAGING UK LIMIT,5046,Other expenses,246.91,0.00,246.91
Regeneration Economy and Growth,Corporate Property and Land,021242,Catering - County Hall,Supplies and Services,324117,Provisions E324,09-Jan-2023,000010567342075,JR HOLLAND FOODSERVICE,5499,Catering costs - provisions,32.24,0.00,32.24
Regeneration Economy and Growth,Corporate Property and Land,021242,Catering - County Hall,Supplies and Services,324117,Provisions E324,09-Jan-2023,000010567342077,JR HOLLAND FOODSERVICE,5499,Catering costs - provisions,145.11,0.00,145.11
Children and Young Peoples Services,Head of Education and Skills,070169,Durham SSP,Supplies and Services,304403,Equipment and Materials,09-Jan-2023,000010572931601,AMZNMKTPLACE AMAZON.CO,5999,Other consumables,8.67,0.00,8.67
Children and Young Peoples Services,Head of Early Help Inclusion & Vulnerable Children.,085965,Barnard,Supplies and Services,304403,Equipment and Materials,09-Jan-2023,000010572931917,AMZNMKTPLACE AMAZON.CO,5999,Other consumables,95.48,0.00,95.48
Children and Young Peoples Services,Head of Early Help Inclusion & Vulnerable Children.,085962,Aycliffe Secure - Durham,Supplies and Services,304403,Equipment and Materials,09-Jan-2023,000010572932143,AMZNMKTPLACE AMAZON.CO,5999,Other consumables,3.77,0.63,3.14
Children and Young Peoples Services,Head of Early Help Inclusion & Vulnerable Children.,085962,Aycliffe Secure - Durham,Supplies and Services,304403,Equipment and Materials,09-Jan-2023,000010572932147,AMZNMKTPLACE AMAZON.CO,5999,Other consumables,35.52,5.92,29.60
Children and Young Peoples Services,Head of Early Help Inclusion & Vulnerable Children.,085962,Aycliffe Secure - Durham,Supplies and Services,304403,Equipment and Materials,09-Jan-2023,000010572932147 - 1,AMZNMKTPLACE AMAZON.CO,5999,Other consumables,0.13,,0.13
Children and Young Peoples Services,Head of Childrens Social Care,085551,Short Break Services-Park Hse Sher,Supplies and Services,304403,Equipment and Materials,09-Jan-2023,000010572932315,AMZNMKTPLACE AMAZON.CO,5999,Other consumables,24.88,0.00,24.88
Regeneration Economy and Growth,Economic Development Level C,030554,International Relations 030554,Supplies and Services,352001,Conference Expenses,09-Jan-2023,000010572932399,HOTEL 52,7011,Conferencesseminars fees etc,120.00,0.00,120.00
Regeneration Economy and Growth,Economic Development Level C,030554,International Relations 030554,Supplies and Services,352001,Conference Expenses,09-Jan-2023,000010572932401,HOTEL 52,7011,Conferencesseminars fees etc,140.00,0.00,140.00
Regeneration Economy and Growth,Economic Development Level C,030554,International Relations 030554,Employees,040149,Recruitment Instruction and Training,09-Jan-2023,000010572932405,PREMIER INN,3811,Training-all costs,83.98,0.00,83.98
Regeneration Economy and Growth,Corporate Property and Land,030691,Catering - Durham Dales Centre,Supplies and Services,324117,Provisions E324,09-Jan-2023,000010573029169,BATLEYS PERTH,5300,Catering costs - provisions,91.44,15.24,76.20
Regeneration Economy and Growth,Corporate Property and Land,030691,Catering - Durham Dales Centre,Supplies and Services,324117,Provisions E324,09-Jan-2023,000010573029169 - 1,BATLEYS PERTH,5300,Catering costs - provisions,176.61,,176.61
Children and Young Peoples Services,Head of Childrens Social Care,085347,Solo Home The Manse,Third Party Payments,430100,Rendered by Private Contractors,09-Jan-2023,000010575956053,FUTURE LEISURE IN COXH,7399,Payments to sub-contractors,14.00,0.00,14.00
Children and Young Peoples Services,Head of Early Help Inclusion & Vulnerable Children.,088104,BA/BC/Crook Intensive Family Support Team,Supplies and Services,304259,Equipment and Materials,10-Jan-2023,000010567161581,AMZNMktplace,5999,Equipment-purchase and rental,55.91,9.32,46.59
Regeneration Economy and Growth,Culture Sport and Tourism,054813,Gala Theatre - Technical,Supplies and Services,304259,Equipment and Materials,10-Jan-2023,000010567161789,SPROUTVIDEO LLC,7399,Equipment-purchase and rental,176.02,0.00,176.02
Regeneration Economy and Growth,Culture Sport and Tourism,054813,Gala Theatre - Technical,Supplies and Services,304259,Equipment and Materials,10-Jan-2023,000010567161797,SPROUTVIDEO LLC,7399,Equipment-purchase and rental,4.84,0.00,4.84
Children and Young Peoples Services,Head of Early Help Inclusion & Vulnerable Children.,085965,Barnard,Supplies and Services,384999,Miscellaneous Expenses,10-Jan-2023,000010567162617,Amazon.co.uk 1H4B29H44,5969,Other expenses,38.99,0.00,38.99
Children and Young Peoples Services,Head of Early Help Inclusion & Vulnerable Children.,085954,Walworth,Supplies and Services,384302,Miscellaneous Expenses,10-Jan-2023,000010567162697,AMZNMktplace,5999,Activity expenses,59.99,10.00,49.99
Resources BK0010,Procurement Sales & Business Services,065501,Business Support - Executive Support,Supplies and Services,304335,Equipment and Materials,10-Jan-2023,000010567163237,AMZNMktplace,5999,ICT supplies etc,8.49,1.42,7.07
Resources BK0010,Procurement Sales & Business Services,065501,Business Support - Executive Support,Supplies and Services,304335,Equipment and Materials,10-Jan-2023,000010567163239,AMZNMktplace,5999,ICT supplies etc,27.99,0.00,27.99
Regeneration Economy and Growth,Business Durham CL0850,030689,Inward Investment and Aftercare,Supplies and Services,342033,Computers and Communications,10-Jan-2023,000010572931121,BLS MONDAY.COM12017784,7372,Computer hardware,148.80,0.00,148.80
Children and Young Peoples Services,Head of Childrens Social Care,085611,Families First Stanley,Supplies and Services,364301,Grants to Voluntary Organisations,10-Jan-2023,000010572931127,ARGOS LTD,5310,Hardship,298.94,0.00,298.94
Regeneration Economy and Growth,Corporate Property and Land,015048,FM-Civic Bldgs-Greencroft Centre Annfield Plain,Premises,145023,Cleaning and Domestic Supplies,10-Jan-2023,000010572931131,AMZNBUSINESS 1H6YQ5D44,5999,Cleaning and domestic materials,20.20,3.37,16.83
Children and Young Peoples Services,Head of Childrens Social Care,085300,LAC Placements,Supplies and Services,364353,Grants to Voluntary Organisations,10-Jan-2023,000010572931135,CURRYS ONLINE,5732,Leaving care-other,288.00,0.00,288.00
Children and Young Peoples Services,Head of Childrens Social Care,085611,Families First Stanley,Supplies and Services,364301,Grants to Voluntary Organisations,10-Jan-2023,000010572931137,ARGOS LTD,5310,Hardship,-293.94,0.00,-293.94
Children and Young Peoples Services,Head of Childrens Social Care,085626,Families First Shildon,Supplies and Services,338045,Services,10-Jan-2023,000010572931143,HM PASSPORT OFFICE,9399,Legal expenses 338045,13.98,2.33,11.65
Children and Young Peoples Services,Head of Childrens Social Care,085626,Families First Shildon,Supplies and Services,338045,Services,10-Jan-2023,000010572931143 - 1,HM PASSPORT OFFICE,9399,Legal expenses 338045,35.02,,35.02
Children and Young Peoples Services,Head of Childrens Social Care,085366,Children Looked After Team 3,Supplies and Services,338045,Services,10-Jan-2023,000010572931147,GEN REGISTER OFFICE,9399,Legal expenses 338045,11.00,0.00,11.00
Children and Young Peoples Services,Head of Childrens Social Care,085366,Children Looked After Team 3,Supplies and Services,338045,Services,10-Jan-2023,000010572931149,GEN REGISTER OFFICE,9399,Legal expenses 338045,11.00,0.00,11.00
Children and Young Peoples Services,Head of Education and Skills,071801,Selby Cottage Childcare Centre,Supplies and Services,324117,Provisions E324,10-Jan-2023,000010572931153,ASDA GROCERIES ONLINE,5411,Catering costs - provisions,123.68,0.00,123.68
Children and Young Peoples Services,Head of Education and Skills,071801,Selby Cottage Childcare Centre,Supplies and Services,324117,Provisions E324,10-Jan-2023,000010572931157,ASDA GROCERIES ONLINE,5411,Catering costs - provisions,-4.10,0.00,-4.10
Children and Young Peoples Services,Head of Education and Skills,075034,Youth Futures Foundation,Supplies and Services,364301,Grants to Voluntary Organisations,10-Jan-2023,000010572931171,WWW.GONORTHEAST.CO.UK,4111,Hardship,6.40,0.00,6.40
Children and Young Peoples Services,Head of Education and Skills,075034,Youth Futures Foundation,Supplies and Services,364301,Grants to Voluntary Organisations,10-Jan-2023,000010572931173,WWW.GONORTHEAST.CO.UK,4111,Hardship,6.40,0.00,6.40
Children and Young Peoples Services,Head of Education and Skills,075034,Youth Futures Foundation,Supplies and Services,364301,Grants to Voluntary Organisations,10-Jan-2023,000010572931177,WWW.GONORTHEAST.CO.UK,4111,Hardship,25.00,0.00,25.00
Children and Young Peoples Services,Head of Education and Skills,075034,Youth Futures Foundation,Supplies and Services,364301,Grants to Voluntary Organisations,10-Jan-2023,000010572931179,ARRIVA UK BUS,4131,Hardship,4.00,0.00,4.00
Neighbourhoods and Climate Change,Environmental Services,010383,C&G - South Street Cleansing,Supplies and Services,304221,Equipment and Materials,10-Jan-2023,000010572931209,SCREWFIX DIR. LTD,5211,Direct materials,9.23,0.00,9.23
Regeneration Economy and Growth,Culture Sport and Tourism,054604,Seven Hills Spennymoor,Supplies and Services,332047,Printing Stationery and Gen Off Exps,10-Jan-2023,000010572931217,QUADIENT UK LTD,5111,Stationery,499.00,0.00,499.00
Children and Young Peoples Services,Head of Childrens Social Care,085341,High Etherley Satelite Home,Supplies and Services,304403,Equipment and Materials,10-Jan-2023,000010572931259,AMZNMktplace,5999,Other consumables,61.06,0.00,61.06
Adult and Health Services,Head of Adults,055302,Durham Pathways,Supplies and Services,304259,Equipment and Materials,10-Jan-2023,000010572931265,Amazon Music 1H3AK4QL4,5735,Equipment-purchase and rental,16.99,0.00,16.99
Neighbourhoods and Climate Change,Environmental Services,031200,North Pennines Core,Supplies and Services,324117,Provisions E324,10-Jan-2023,000010572931337,STANHOPE SUPERMARKET,5411,Catering costs - provisions,3.40,0.00,3.40
Children and Young Peoples Services,Head of Early Help Inclusion & Vulnerable Children.,071569,Woodhouse Close Childrens Centre,Supplies and Services,304259,Equipment and Materials,10-Jan-2023,000010572931375,AMZNMktplace,5999,Equipment-purchase and rental,71.76,11.96,59.80
Children and Young Peoples Services,Head of Early Help Inclusion & Vulnerable Children.,071569,Woodhouse Close Childrens Centre,Supplies and Services,304259,Equipment and Materials,10-Jan-2023,000010572931377,AMZNMktplace,5999,Equipment-purchase and rental,8.98,1.50,7.48
Regeneration Economy and Growth,Culture Sport and Tourism,054233,Bishop Auckland Town Hall Library,Supplies and Services,304403,Equipment and Materials,10-Jan-2023,000010572931385,AMZNMKTPLACE AMAZON.CO,5999,Other consumables,10.99,1.83,9.16
Children and Young Peoples Services,Head of Childrens Social Care,085364,Children Looked After Team 1,Supplies and Services,340001,Postages E340,10-Jan-2023,000010572931463,PARCELFORCE WL,4215,Postages,36.65,0.00,36.65
Resources BK0010,Transactional & Customer Services,065184,Financial Assessments,Supplies and Services,304403,Equipment and Materials,10-Jan-2023,000010572931465,AMZNMKTPLACE AMAZON.CO,5999,Other consumables,10.99,0.00,10.99
Regeneration Economy and Growth,Planning & Housing,031576,B& B - Temp Accom,Transport,235057,Public Transport,10-Jan-2023,000010572931473,Cross Country Rail,4112,Staff travelling,8.00,0.00,8.00
Regeneration Economy and Growth,Planning & Housing,031576,B& B - Temp Accom,Transport,235057,Public Transport,10-Jan-2023,000010572931475,STAGECOACH SERVICE,4131,Staff travelling,19.30,0.00,19.30
Regeneration Economy and Growth,Planning & Housing,031576,B& B - Temp Accom,Supplies and Services,352001,Conference Expenses,10-Jan-2023,000010572931477,Roadchef Durham,7011,Conferencesseminars fees etc,50.96,0.00,50.96
Regeneration Economy and Growth,Planning & Housing,031576,B& B - Temp Accom,Supplies and Services,352001,Conference Expenses,10-Jan-2023,000010572931479,Roadchef Durham,7011,Conferencesseminars fees etc,15.00,0.00,15.00
Neighbourhoods and Climate Change,Environmental Services,010367,C&G - South Grounds Maintenance,Supplies and Services,304221,Equipment and Materials,10-Jan-2023,000010572931481,CARRS BILLINGTON SPENN,5599,Direct materials,81.80,13.63,68.17
Adult and Health Services,Head of Adults,055302,Durham Pathways,Supplies and Services,324117,Provisions E324,10-Jan-2023,000010572931497,TESCO STORES 2916,5411,Catering costs - provisions,94.86,0.00,94.86
Children and Young Peoples Services,Head of Education and Skills,071801,Selby Cottage Childcare Centre,Supplies and Services,304999,Equipment and Materials,10-Jan-2023,000010572931507,HOME BARGAINS,5251,Misc equipment tools and materials,40.56,0.00,40.56
Children and Young Peoples Services,Head of Education and Skills,071801,Selby Cottage Childcare Centre,Supplies and Services,324117,Provisions E324,10-Jan-2023,000010572931511,TESCO STORES 2278,5411,Catering costs - provisions,8.00,0.00,8.00
Children and Young Peoples Services,Head of Early Help Inclusion & Vulnerable Children.,085957,Secure Management,Supplies and Services,328041,Clothing uniforms and laundry E328,10-Jan-2023,000010572931533,Footasylum Limited,5651,Clothing uniforms and laundry,122.97,0.00,122.97
Children and Young Peoples Services,Head of Early Help Inclusion & Vulnerable Children.,085957,Secure Management,Supplies and Services,328041,Clothing uniforms and laundry E328,10-Jan-2023,000010572931535,JD Sports Fashion PLC,5655,Clothing uniforms and laundry,43.99,0.00,43.99
Children and Young Peoples Services,Head of Early Help Inclusion & Vulnerable Children.,085957,Secure Management,Supplies and Services,328041,Clothing uniforms and laundry E328,10-Jan-2023,000010572931539,JD Sports Fashion PLC,5655,Clothing uniforms and laundry,50.99,0.00,50.99
Children and Young Peoples Services,Head of Early Help Inclusion & Vulnerable Children.,085957,Secure Management,Supplies and Services,384999,Miscellaneous Expenses,10-Jan-2023,000010572931543,Pandora Jewellery UK L,5944,Other expenses,22.99,0.00,22.99
Children and Young Peoples Services,Head of Early Help Inclusion & Vulnerable Children.,085957,Secure Management,Supplies and Services,328041,Clothing uniforms and laundry E328,10-Jan-2023,000010572931547,FLANNELS.COM,5691,Clothing uniforms and laundry,141.99,0.00,141.99
Children and Young Peoples Services,Head of Early Help Inclusion & Vulnerable Children.,085957,Secure Management,Supplies and Services,328041,Clothing uniforms and laundry E328,10-Jan-2023,000010572931549,PRETTYLITTLETHING.COM,5691,Clothing uniforms and laundry,25.00,0.00,25.00
Children and Young Peoples Services,Head of Early Help Inclusion & Vulnerable Children.,085957,Secure Management,Supplies and Services,304403,Equipment and Materials,10-Jan-2023,000010572931553,AMZNMktplace,5999,Other consumables,6.99,0.00,6.99
Children and Young Peoples Services,Head of Early Help Inclusion & Vulnerable Children.,085957,Secure Management,Supplies and Services,304403,Equipment and Materials,10-Jan-2023,000010572931555,AMZNMktplace,5999,Other consumables,7.28,0.00,7.28
Children and Young Peoples Services,Head of Early Help Inclusion & Vulnerable Children.,085957,Secure Management,Supplies and Services,304403,Equipment and Materials,10-Jan-2023,000010572931559,AMZNMktplace,5999,Other consumables,6.99,0.00,6.99
Children and Young Peoples Services,Head of Early Help Inclusion & Vulnerable Children.,085957,Secure Management,Supplies and Services,304403,Equipment and Materials,10-Jan-2023,000010572931561,AMZNMktplace,5999,Other consumables,5.25,0.88,4.37
Children and Young Peoples Services,Head of Childrens Social Care,085347,Solo Home The Manse,Supplies and Services,324117,Provisions E324,10-Jan-2023,000010572931573,CO-OP GROUP 310016,5411,Catering costs - provisions,16.55,0.00,16.55
Children and Young Peoples Services,Head of Childrens Social Care,085364,Children Looked After Team 1,Supplies and Services,328041,Clothing uniforms and laundry E328,10-Jan-2023,000010572931583,ARGOS LTD,5310,Clothing uniforms and laundry,64.99,0.00,64.99
Children and Young Peoples Services,Head of Childrens Social Care,085364,Children Looked After Team 1,Supplies and Services,338048,Services,10-Jan-2023,000010572931587,HMCTS DURHAM012W,9222,Court costs 338048,26.00,0.00,26.00
Children and Young Peoples Services,Head of Childrens Social Care,085364,Children Looked After Team 1,Supplies and Services,304259,Equipment and Materials,10-Jan-2023,000010572931591,DURHAM COUNTY COUNCIL,9399,Equipment-purchase and rental,11.00,0.00,11.00
Resources BK0010,HR & Employee Services,010984,Training and Development,Supplies and Services,304403,Equipment and Materials,10-Jan-2023,000010572931623,TAHDAH VERIFIED,5734,Other consumables,107.50,0.00,107.50
Resources BK0010,HR & Employee Services,010984,Training and Development,Supplies and Services,304403,Equipment and Materials,10-Jan-2023,000010572931627,TAHDAH VERIFIED,5734,Other consumables,129.00,0.00,129.00
Resources BK0010,HR & Employee Services,010984,Training and Development,Supplies and Services,304403,Equipment and Materials,10-Jan-2023,000010572931631,TAHDAH VERIFIED,5734,Other consumables,129.00,0.00,129.00
Neighbourhoods and Climate Change,Environmental Services,031238,North Pennines - Tees Swale,Employees,040149,Recruitment Instruction and Training,10-Jan-2023,000010572931637,BTO,8398,Training-all costs,24.00,0.00,24.00
Neighbourhoods and Climate Change,Environmental Services,031221,North Pennines - Bowlees,Supplies and Services,304403,Equipment and Materials,10-Jan-2023,000010572931641,AMZNMktplace,5999,Other consumables,8.78,1.46,7.32
Neighbourhoods and Climate Change,Environmental Services,031200,North Pennines Core,Supplies and Services,332047,Printing Stationery and Gen Off Exps,10-Jan-2023,000010572931643,AMZNBusiness 1H4CP1604,5999,Stationery,32.19,5.37,26.82
Children and Young Peoples Services,Head of Childrens Social Care,085342,16 Hickstead Rise (previously 9 Cedar Ave),Supplies and Services,328041,Clothing uniforms and laundry E328,10-Jan-2023,000010572931647,Footasylum Limited,5651,Clothing uniforms and laundry,99.99,0.00,99.99
Children and Young Peoples Services,Head of Early Help Inclusion & Vulnerable Children.,088106,Ferryhill & N. Aycliffe Intensive Family Support Team,Supplies and Services,364301,Grants to Voluntary Organisations,10-Jan-2023,000010572931671,IKEA LTD SHOP ONLINE,5712,Hardship,248.00,0.00,248.00
Children and Young Peoples Services,Head of Childrens Social Care,085622,Families First Ferryhill,Transport,235073,Public Transport,10-Jan-2023,000010572931673,LENNYSTAXIS,5812,Travel-clients/students/children,40.00,0.00,40.00
Children and Young Peoples Services,Head of Early Help Inclusion & Vulnerable Children.,088106,Ferryhill & N. Aycliffe Intensive Family Support Team,Supplies and Services,364301,Grants to Voluntary Organisations,10-Jan-2023,000010572931675,ARGOS LTD,5310,Hardship,23.33,0.00,23.33
Children and Young Peoples Services,Head of Early Help Inclusion & Vulnerable Children.,088106,Ferryhill & N. Aycliffe Intensive Family Support Team,Supplies and Services,364301,Grants to Voluntary Organisations,10-Jan-2023,000010572931677,IKEA LTD SHOP ONLINE,5712,Hardship,-248.00,0.00,-248.00
Dedicated Schools Grant BG0015,DSG Schools Block,702802,Villa Real School 7028 - Literacy,Supplies and Services,312011,Newspapers books and periodicals E312,10-Jan-2023,000010572931773,AMZNMktplace,5999,Books-school library,13.11,0.00,13.11
Children and Young Peoples Services,Head of Childrens Social Care,085347,Solo Home The Manse,Supplies and Services,384999,Miscellaneous Expenses,10-Jan-2023,000010572931853,SAMANTHA JAYNE HAIR ST,7230,Other expenses,34.00,0.00,34.00
Children and Young Peoples Services,Head of Childrens Social Care,085347,Solo Home The Manse,Supplies and Services,328041,Clothing uniforms and laundry E328,10-Jan-2023,000010572931857,NEW LOOK,5621,Clothing uniforms and laundry,9.99,0.00,9.99
Children and Young Peoples Services,Head of Childrens Social Care,085347,Solo Home The Manse,Transport,235057,Public Transport,10-Jan-2023,000010572931861,THE RIVERWALK CAR PARK,7523,Staff travelling,1.80,0.00,1.80
Children and Young Peoples Services,Head of Childrens Social Care,085347,Solo Home The Manse,Supplies and Services,304259,Equipment and Materials,10-Jan-2023,000010572931863,J D SPORTS,5941,Equipment-purchase and rental,35.00,0.00,35.00
Regeneration Economy and Growth,Culture Sport and Tourism,011286,Wolsingham School Leisure Centre,Supplies and Services,304259,Equipment and Materials,10-Jan-2023,000010572931877,TAHDAH VERIFIED,5734,Equipment-purchase and rental,103.95,0.00,103.95
Regeneration Economy and Growth,Culture Sport and Tourism,010599,Newton Aycliffe Leisure Ctr-General,Supplies and Services,304259,Equipment and Materials,10-Jan-2023,000010572931879,TAHDAH VERIFIED,5734,Equipment-purchase and rental,413.00,0.00,413.00
Regeneration Economy and Growth,Culture Sport and Tourism,011292,Seaham Leisure Centre,Supplies and Services,304259,Equipment and Materials,10-Jan-2023,000010572931883,WWW.SCREWFIX.COM,5211,Equipment-purchase and rental,15.34,0.00,15.34
Regeneration Economy and Growth,Culture Sport and Tourism,010599,Newton Aycliffe Leisure Ctr-General,Supplies and Services,304259,Equipment and Materials,10-Jan-2023,000010572931885,ARGOS LTD,5310,Equipment-purchase and rental,83.95,0.00,83.95
Children and Young Peoples Services,Head of Early Help Inclusion & Vulnerable Children.,073986,Reducing Parental Conflict Programme,Supplies and Services,304403,Equipment and Materials,10-Jan-2023,000010572931913,VIKING UK,5111,Other consumables,125.10,20.85,104.25
Children and Young Peoples Services,Head of Early Help Inclusion & Vulnerable Children.,073986,Reducing Parental Conflict Programme,Supplies and Services,304403,Equipment and Materials,10-Jan-2023,000010572931913 - 1,VIKING UK,5111,Other consumables,170.47,,170.47
Resources BK0010,Digital Services,065323,Operations - Installations,Supplies and Services,304639,Equipment and Materials,10-Jan-2023,000010572931929,TOOLSTATION UK,5251,Technicians-supplies,10.14,0.00,10.14
Resources BK0010,Digital Services,065335,School Services - Implementations,Supplies and Services,304639,Equipment and Materials,10-Jan-2023,000010572931933,AMZNMktplace,5999,Technicians-supplies,84.99,14.17,70.82
Children and Young Peoples Services,Head of Early Help Inclusion & Vulnerable Children.,085956,Lumley,Supplies and Services,304259,Equipment and Materials,10-Jan-2023,000010572931963,AMZNMktplace,5999,Equipment-purchase and rental,187.92,31.36,156.56
Children and Young Peoples Services,Head of Early Help Inclusion & Vulnerable Children.,085956,Lumley,Supplies and Services,304259,Equipment and Materials,10-Jan-2023,000010572931967,AMZNMktplace,5999,Equipment-purchase and rental,79.04,13.20,65.84
Children and Young Peoples Services,Head of Early Help Inclusion & Vulnerable Children.,085952,Secure Education,Supplies and Services,328041,Clothing uniforms and laundry E328,10-Jan-2023,000010572931971,WWW.SCREWFIX.COM,5211,Clothing uniforms and laundry,79.99,0.00,79.99
Children and Young Peoples Services,Head of Early Help Inclusion & Vulnerable Children.,085957,Secure Management,Supplies and Services,304405,Equipment and Materials,10-Jan-2023,000010572931973,AMZNMktplace,5999,Medical supplies,13.99,0.00,13.99
Children and Young Peoples Services,Head of Early Help Inclusion & Vulnerable Children.,085957,Secure Management,Premises,108251,Service Repairs and Maintenance,10-Jan-2023,000010572931975,AMZNMktplace,5999,Alarm and security maintenance,21.06,0.00,21.06
Children and Young Peoples Services,Head of Early Help Inclusion & Vulnerable Children.,085801,CDYJS - Support,Supplies and Services,384237,Miscellaneous Expenses,10-Jan-2023,000010572932025,Top Gear Karting,7999,Recreational exps outings parties,80.00,0.00,80.00
Children and Young Peoples Services,Head of Early Help Inclusion & Vulnerable Children.,085801,CDYJS - Support,Supplies and Services,324117,Provisions E324,10-Jan-2023,000010572932029,GREGGS,5462,Catering costs - provisions,20.00,0.00,20.00
Regeneration Economy and Growth,Economic Development Level C,030554,International Relations 030554,Supplies and Services,304403,Equipment and Materials,10-Jan-2023,000010572932105,SP PARTY PACKS,5999,Other consumables,106.60,0.00,106.60
Regeneration Economy and Growth,Culture Sport and Tourism,054812,Gala Theatre - Catering etc,Supplies and Services,324117,Provisions E324,10-Jan-2023,000010572932119,TESCO STORES 6029,5411,Catering costs - provisions,21.55,0.00,21.55
Children and Young Peoples Services,Head of Childrens Social Care,085358,Orchard House Sacriston Solo Home,Supplies and Services,384999,Miscellaneous Expenses,10-Jan-2023,000010572932173,Amazon.co.uk 1H67N26V4,5969,Other expenses,35.47,0.00,35.47
Regeneration Economy and Growth,Economic Development Level C,030776,LINKCD Flexible Fund,Supplies and Services,324117,Provisions E324,10-Jan-2023,000010572932183,ASDA STORES LTD,5411,Catering costs - provisions,5.80,0.00,5.80
Regeneration Economy and Growth,Economic Development Level C,030776,LINKCD Flexible Fund,Supplies and Services,324117,Provisions E324,10-Jan-2023,000010572932187,ASDA STORES LTD,5411,Catering costs - provisions,15.30,0.00,15.30
Regeneration Economy and Growth,Economic Development Level C,030776,LINKCD Flexible Fund,Supplies and Services,324117,Provisions E324,10-Jan-2023,000010572932189,TESCO STORES 2371,5411,Catering costs - provisions,6.50,0.00,6.50
Children and Young Peoples Services,Head of Early Help Inclusion & Vulnerable Children.,071404,Laurel Avenue Childrens Centre,Supplies and Services,304403,Equipment and Materials,10-Jan-2023,000010572932229,AMZNMktplace,5999,Other consumables,27.95,0.00,27.95
Resources BK0010,Transactional & Customer Services,060050,Service Management,Supplies and Services,304335,Equipment and Materials,10-Jan-2023,000010572932239,AMZNMktplace,5999,ICT supplies etc,37.99,6.33,31.66
Children and Young Peoples Services,Head of Childrens Social Care,085551,Short Break Services-Park Hse Sher,Supplies and Services,328041,Clothing uniforms and laundry E328,10-Jan-2023,000010572932307,ARGOS LTD,5310,Clothing uniforms and laundry,19.99,0.00,19.99
Neighbourhoods and Climate Change,Environmental Services,031200,North Pennines Core,Supplies and Services,344033,Telephones,10-Jan-2023,000010572932341,ZOOM.US 888-799-9666,4814,Telephones general-all costs,134.40,0.00,134.40
Regeneration Economy and Growth,Economic Development Level C,030770,Durham Advance,Transport,235057,Public Transport,10-Jan-2023,000010572932383,PRINCE BISHOP SHOPPING,7523,Staff travelling,2.10,0.35,1.75
Regeneration Economy and Growth,Corporate Property and Land,030691,Catering - Durham Dales Centre,Supplies and Services,304221,Equipment and Materials,10-Jan-2023,000010572932393,CITY ELECTRICAL FA,5211,Direct materials,31.62,0.00,31.62
Regeneration Economy and Growth,Economic Development Level C,030554,International Relations 030554,Supplies and Services,352001,Conference Expenses,10-Jan-2023,000010572932409,Hotel at Booking.com,7011,Conferencesseminars fees etc,103.00,0.00,103.00
Regeneration Economy and Growth,Economic Development Level C,030554,International Relations 030554,Supplies and Services,352001,Conference Expenses,10-Jan-2023,000010572932413,Hotel at Booking.com,7011,Conferencesseminars fees etc,52.00,0.00,52.00
Regeneration Economy and Growth,Economic Development Level C,030554,International Relations 030554,Transport,235057,Public Transport,10-Jan-2023,000010572932417,UBER TRIP,4121,Staff travelling,23.94,0.00,23.94
Regeneration Economy and Growth,Economic Development Level C,030554,International Relations 030554,Supplies and Services,352001,Conference Expenses,10-Jan-2023,000010572932421,Roadchef Durham,7011,Conferencesseminars fees etc,52.00,0.00,52.00
Regeneration Economy and Growth,Economic Development Level C,030554,International Relations 030554,Supplies and Services,352001,Conference Expenses,10-Jan-2023,000010572932423,Roadchef Durham,7011,Conferencesseminars fees etc,7.50,0.00,7.50
Regeneration Economy and Growth,Economic Development Level C,030554,International Relations 030554,Supplies and Services,352001,Conference Expenses,10-Jan-2023,000010572932427,Roadchef Durham,7011,Conferencesseminars fees etc,7.50,0.00,7.50
Regeneration Economy and Growth,Corporate Property and Land,010525,Catering - Green Lane,Supplies and Services,324117,Provisions E324,10-Jan-2023,000010573029159,JR HOLLAND FOODSERVICE,5499,Catering costs - provisions,-13.95,0.00,-13.95
Regeneration Economy and Growth,Corporate Property and Land,011275,Catering -Durham Leadership Centre,Supplies and Services,324117,Provisions E324,10-Jan-2023,000010573029161,JR HOLLAND FOODSERVICE,5499,Catering costs - provisions,147.54,0.00,147.54
Regeneration Economy and Growth,Culture Sport and Tourism,011265,Empire Theatre (Operations),Supplies and Services,324117,Provisions E324,10-Jan-2023,000010573029163,JR HOLLAND FOODSERVICE,5499,Catering costs - provisions,23.08,0.00,23.08
Regeneration Economy and Growth,Culture Sport and Tourism,011265,Empire Theatre (Operations),Supplies and Services,324117,Provisions E324,10-Jan-2023,000010573029165,JR HOLLAND FOODSERVICE,5499,Catering costs - provisions,6.56,0.00,6.56
Regeneration Economy and Growth,Corporate Property and Land,011296,Catering - Dunes,Supplies and Services,324117,Provisions E324,10-Jan-2023,000010573029167,JR HOLLAND FOODSERVICE,5499,Catering costs - provisions,44.66,0.00,44.66
Adult and Health Services,Head of Adults,055643,Hawthorn House LD Respite Unit,Supplies and Services,324117,Provisions E324,10-Jan-2023,000010573029171,JR HOLLAND FOODSERVICE,5499,Catering costs - provisions,28.16,0.00,28.16
Regeneration Economy and Growth,Corporate Property and Land,021234,Catering - Locomotion,Supplies and Services,384999,Miscellaneous Expenses,10-Jan-2023,000010573029173,ON A ROLL SANDWICH COM,5199,Other expenses,416.07,0.00,416.07
Regeneration Economy and Growth,Culture Sport and Tourism,054812,Gala Theatre - Catering etc,Supplies and Services,324117,Provisions E324,10-Jan-2023,000010573029175,JR HOLLAND FOODSERVICE,5499,Catering costs - provisions,61.43,0.00,61.43
Regeneration Economy and Growth,Culture Sport and Tourism,011263,Louisa Centre 011263,Supplies and Services,304403,Equipment and Materials,10-Jan-2023,000010575956149,AMZNMKTPLACE AMAZON.CO,5999,Other consumables,799.60,0.00,799.60
Regeneration Economy and Growth,Culture Sport and Tourism,011263,Louisa Centre 011263,Supplies and Services,304403,Equipment and Materials,10-Jan-2023,000010575956155,AMZNMKTPLACE AMAZON.CO,5999,Other consumables,199.80,33.30,166.50
Regeneration Economy and Growth,Culture Sport and Tourism,011263,Louisa Centre 011263,Supplies and Services,304403,Equipment and Materials,10-Jan-2023,000010575956155 - 1,AMZNMKTPLACE AMAZON.CO,5999,Other consumables,0.10,,0.10
Regeneration Economy and Growth,Culture Sport and Tourism,011263,Louisa Centre 011263,Supplies and Services,304403,Equipment and Materials,10-Jan-2023,000010575956163,AMZNMKTPLACE AMAZON.CO,5999,Other consumables,999.00,166.50,832.50
Regeneration Economy and Growth,Culture Sport and Tourism,011263,Louisa Centre 011263,Supplies and Services,304403,Equipment and Materials,10-Jan-2023,000010575956163 - 1,AMZNMKTPLACE AMAZON.CO,5999,Other consumables,0.50,,0.50
Regeneration Economy and Growth,Economic Development Level C,030554,International Relations 030554,Supplies and Services,352001,Conference Expenses,10-Jan-2023,000010575957303,HOTEL 52,7011,Conferencesseminars fees etc,120.00,0.00,120.00
Regeneration Economy and Growth,Corporate Property and Land,021234,Catering - Locomotion,Supplies and Services,324117,Provisions E324,10-Jan-2023,000010576163063,BATLEYS PERTH,5300,Catering costs - provisions,330.66,55.11,275.55
Regeneration Economy and Growth,Corporate Property and Land,021234,Catering - Locomotion,Supplies and Services,324117,Provisions E324,10-Jan-2023,000010576163063 - 1,BATLEYS PERTH,5300,Catering costs - provisions,109.00,,109.00
Regeneration Economy and Growth,Corporate Property and Land,021324,Catering - Meadowfield,Supplies and Services,324117,Provisions E324,10-Jan-2023,000010576163099,BATLEYS PERTH,5300,Catering costs - provisions,186.00,31.00,155.00
Regeneration Economy and Growth,Corporate Property and Land,021324,Catering - Meadowfield,Supplies and Services,324117,Provisions E324,10-Jan-2023,000010576163099 - 1,BATLEYS PERTH,5300,Catering costs - provisions,185.63,,185.63
Children and Young Peoples Services,Head of Childrens Social Care,085347,Solo Home The Manse,Supplies and Services,348037,Subsistence E348,11-Jan-2023,000010572931577,Just Eat,5814,Subsistence,11.80,0.00,11.80
Children and Young Peoples Services,Head of Childrens Social Care,085611,Families First Stanley,Supplies and Services,364301,Grants to Voluntary Organisations,11-Jan-2023,000010575954269,ARGOS LTD,5310,Hardship,-200.00,0.00,-200.00
Children and Young Peoples Services,Head of Childrens Social Care,085611,Families First Stanley,Supplies and Services,364301,Grants to Voluntary Organisations,11-Jan-2023,000010575954275,ARGOS LTD,5310,Hardship,-5.95,0.00,-5.95
Children and Young Peoples Services,Head of Childrens Social Care,085368,Children Looked After Team 5,Supplies and Services,338045,Services,11-Jan-2023,000010575954283,HM PASSPORT OFFICE,9399,Legal expenses 338045,49.00,0.00,49.00
Children and Young Peoples Services,Head of Education and Skills,071801,Selby Cottage Childcare Centre,Supplies and Services,304403,Equipment and Materials,11-Jan-2023,000010575954297,AMZNMKTPLACE AMAZON.CO,5999,Other consumables,21.96,3.66,18.30
Resources BK0010,Transactional & Customer Services,065180,Collections,Supplies and Services,338048,Services,11-Jan-2023,000010575954313,WWW.HMCOURT-SERVIC,9222,Court costs 338048,47.00,0.00,47.00
Resources BK0010,Transactional & Customer Services,065180,Collections,Supplies and Services,338048,Services,11-Jan-2023,000010575954321,WWW.HMCOURT-SERVIC,9222,Court costs 338048,47.00,0.00,47.00
Dedicated Schools Grant BG0015,DSG Schools Block,110020,The Woodlands 1100 - Ed Health Needs,Supplies and Services,304403,Equipment and Materials,11-Jan-2023,000010575954333,AMZNMktplace,5999,Other consumables,68.98,11.50,57.48
Dedicated Schools Grant BG0015,DSG Schools Block,417606,Greenfield Community College 004176 - Visual Arts,Supplies and Services,304403,Equipment and Materials,11-Jan-2023,000010575954343,AMZNMKTPLACE AMAZON.CO,5999,Other consumables,22.98,3.83,19.15
Dedicated Schools Grant BG0015,DSG Schools Block,417606,Greenfield Community College 004176 - Visual Arts,Supplies and Services,304403,Equipment and Materials,11-Jan-2023,000010575954347,AMZNMKTPLACE AMAZON.CO,5999,Other consumables,30.38,5.08,25.30
Dedicated Schools Grant BG0015,DSG Schools Block,417606,Greenfield Community College 004176 - Visual Arts,Supplies and Services,304403,Equipment and Materials,11-Jan-2023,000010575954357,AMZNMKTPLACE AMAZON.CO,5999,Other consumables,32.96,5.50,27.46
Children and Young Peoples Services,Head of Education and Skills,075034,Youth Futures Foundation,Supplies and Services,364301,Grants to Voluntary Organisations,11-Jan-2023,000010575954385,WWW.GONORTHEAST.CO.UK,4111,Hardship,6.40,0.00,6.40
Children and Young Peoples Services,Head of Education and Skills,075034,Youth Futures Foundation,Supplies and Services,364301,Grants to Voluntary Organisations,11-Jan-2023,000010575954393,WWW.GONORTHEAST.CO.UK,4111,Hardship,6.40,0.00,6.40
Children and Young Peoples Services,Head of Education and Skills,075034,Youth Futures Foundation,Supplies and Services,364301,Grants to Voluntary Organisations,11-Jan-2023,000010575954397,WWW.GONORTHEAST.CO.UK,4111,Hardship,25.00,0.00,25.00
Children and Young Peoples Services,Head of Education and Skills,075034,Youth Futures Foundation,Supplies and Services,364301,Grants to Voluntary Organisations,11-Jan-2023,000010575954401,WWW.GONORTHEAST.CO.UK,4111,Hardship,6.40,0.00,6.40
Children and Young Peoples Services,Head of Education and Skills,075034,Youth Futures Foundation,Supplies and Services,364301,Grants to Voluntary Organisations,11-Jan-2023,000010575954407,WWW.GONORTHEAST.CO.UK,4111,Hardship,6.40,0.00,6.40
Children and Young Peoples Services,Head of Education and Skills,075034,Youth Futures Foundation,Supplies and Services,364301,Grants to Voluntary Organisations,11-Jan-2023,000010575954409,WWW.GONORTHEAST.CO.UK,4111,Hardship,6.40,0.00,6.40
Children and Young Peoples Services,Head of Education and Skills,075034,Youth Futures Foundation,Supplies and Services,364301,Grants to Voluntary Organisations,11-Jan-2023,000010575954419,WWW.GONORTHEAST.CO.UK,4111,Hardship,25.00,0.00,25.00
Children and Young Peoples Services,Head of Education and Skills,075034,Youth Futures Foundation,Supplies and Services,364301,Grants to Voluntary Organisations,11-Jan-2023,000010575954421,WWW.GONORTHEAST.CO.UK,4111,Hardship,6.40,0.00,6.40
Children and Young Peoples Services,Head of Education and Skills,075034,Youth Futures Foundation,Supplies and Services,364301,Grants to Voluntary Organisations,11-Jan-2023,000010575954427,WWW.GONORTHEAST.CO.UK,4111,Hardship,6.40,0.00,6.40
Children and Young Peoples Services,Head of Education and Skills,075034,Youth Futures Foundation,Supplies and Services,364301,Grants to Voluntary Organisations,11-Jan-2023,000010575954433,WWW.GONORTHEAST.CO.UK,4111,Hardship,25.00,0.00,25.00
Children and Young Peoples Services,Head of Education and Skills,075034,Youth Futures Foundation,Supplies and Services,364301,Grants to Voluntary Organisations,11-Jan-2023,000010575954437,DURHAM COUNTY COUNCIL,9399,Hardship,11.00,0.00,11.00
Children and Young Peoples Services,Head of Education and Skills,075034,Youth Futures Foundation,Supplies and Services,364301,Grants to Voluntary Organisations,11-Jan-2023,000010575954441,DVLA DRIVER ONLINE,9399,Hardship,34.00,0.00,34.00
Children and Young Peoples Services,Head of Education and Skills,075034,Youth Futures Foundation,Supplies and Services,364301,Grants to Voluntary Organisations,11-Jan-2023,000010575954447,DVLA DRIVING LICENSE,9399,Hardship,34.00,0.00,34.00
Children and Young Peoples Services,Head of Education and Skills,075034,Youth Futures Foundation,Supplies and Services,364301,Grants to Voluntary Organisations,11-Jan-2023,000010575954453,FRANKIES TAXI,4121,Hardship,30.00,0.00,30.00
Children and Young Peoples Services,Head of Education and Skills,075034,Youth Futures Foundation,Supplies and Services,364301,Grants to Voluntary Organisations,11-Jan-2023,000010575954459,FRANKIES TAXI,4121,Hardship,30.00,0.00,30.00
Neighbourhoods and Climate Change,Environmental Services,010367,C&G - South Grounds Maintenance,Supplies and Services,304221,Equipment and Materials,11-Jan-2023,000010575954479,WWW.SCREWFIX.COM,5211,Direct materials,9.89,1.65,8.24
Neighbourhoods and Climate Change,Environmental Services,010367,C&G - South Grounds Maintenance,Supplies and Services,304221,Equipment and Materials,11-Jan-2023,000010575954481,SCREWFIX DIR LTD,5211,Direct materials,-2.20,0.00,-2.20
Children and Young Peoples Services,Head of Education and Skills,075029,Poverty Action Group,Supplies and Services,304403,Equipment and Materials,11-Jan-2023,000010575954487,AMZNMktplace,5999,Other consumables,17.49,2.92,14.57
Regeneration Economy and Growth,Culture Sport and Tourism,011252,Community Physical Activity Programmes,Supplies and Services,332047,Printing Stationery and Gen Off Exps,11-Jan-2023,000010575954551,ATHLETICS HUB,8641,Stationery,"1,900.00",0.00,1900.00
Regeneration Economy and Growth,Culture Sport and Tourism,011252,Community Physical Activity Programmes,Supplies and Services,332047,Printing Stationery and Gen Off Exps,11-Jan-2023,000010575954557,ATHLETICS HUB,8641,Stationery,100.00,0.00,100.00
Children and Young Peoples Services,Head of Childrens Social Care,085332,Middlestone Moor CU,Supplies and Services,324117,Provisions E324,11-Jan-2023,000010575954563,HOME BARGAINS SPENNYMO,5251,Catering costs - provisions,57.81,0.00,57.81
Children and Young Peoples Services,Head of Childrens Social Care,085332,Middlestone Moor CU,Supplies and Services,304999,Equipment and Materials,11-Jan-2023,000010575954569,ASDA SUPERSTORE 4987,5411,Misc equipment tools and materials,34.40,0.00,34.40
Children and Young Peoples Services,Head of Childrens Social Care,085332,Middlestone Moor CU,Supplies and Services,324117,Provisions E324,11-Jan-2023,000010575954575,ASDA SUPERSTORE 4987,5411,Catering costs - provisions,67.97,0.00,67.97
Regeneration Economy and Growth,Planning & Housing,031634,LOCAL LETTINGS AGENCY,Premises,120037,Energy Costs,11-Jan-2023,000010575954689,WWW.E.ORG,4900,Other fuels,15.00,0.00,15.00
Regeneration Economy and Growth,Planning & Housing,031623,Rough Sleeping,Premises,120037,Energy Costs,11-Jan-2023,000010575954695,WWW.E.ORG,4900,Other fuels,15.00,0.00,15.00
Children and Young Peoples Services,Head of Childrens Social Care,085341,High Etherley Satelite Home,Supplies and Services,324117,Provisions E324,11-Jan-2023,000010575954703,SAINSBURYS S/MKTS,5411,Catering costs - provisions,10.85,0.00,10.85
Neighbourhoods and Climate Change,Environmental Services,010301,C&G - North Grounds Maintenance,Supplies and Services,304999,Equipment and Materials,11-Jan-2023,000010575954753,Harelaw sawmill office,5251,Misc equipment tools and materials,474.08,0.00,474.08
Neighbourhoods and Climate Change,Environmental Services,010301,C&G - North Grounds Maintenance,Supplies and Services,304221,Equipment and Materials,11-Jan-2023,000010575954763,SCREWFIX DIR LTD,5211,Direct materials,97.74,0.00,97.74
Neighbourhoods and Climate Change,Environmental Services,031259,North Pennines - Discovery,Supplies and Services,328041,Clothing uniforms and laundry E328,11-Jan-2023,000010575954777,Ultimate Outdoors,5655,Clothing uniforms and laundry,65.15,0.00,65.15
Children and Young Peoples Services,Head of Childrens Social Care,085623,Families First Bishop Auckland,Supplies and Services,364200,Grants to Voluntary Organisations,11-Jan-2023,000010575954823,IMMIGRATION ADVICE SRV,8111,No Recourse to Public Funds,"2,250.00",0.00,2250.00
Children and Young Peoples Services,Head of Early Help Inclusion & Vulnerable Children.,071569,Woodhouse Close Childrens Centre,Supplies and Services,304259,Equipment and Materials,11-Jan-2023,000010575954835,AMZNMktplace,5999,Equipment-purchase and rental,56.40,9.40,47.00
Children and Young Peoples Services,Head of Early Help Inclusion & Vulnerable Children.,071569,Woodhouse Close Childrens Centre,Supplies and Services,304259,Equipment and Materials,11-Jan-2023,000010575954835 - 1,AMZNMktplace,5999,Equipment-purchase and rental,0.08,,0.08
Children and Young Peoples Services,Head of Early Help Inclusion & Vulnerable Children.,071570,Taylor Road Building,Supplies and Services,304259,Equipment and Materials,11-Jan-2023,000010575954839,AMZNMktplace,5999,Equipment-purchase and rental,31.88,5.31,26.57
Children and Young Peoples Services,Head of Early Help Inclusion & Vulnerable Children.,071569,Woodhouse Close Childrens Centre,Supplies and Services,304259,Equipment and Materials,11-Jan-2023,000010575954845,MANOMANO,5722,Equipment-purchase and rental,279.98,0.00,279.98
Children and Young Peoples Services,Head of Early Help Inclusion & Vulnerable Children.,071670,Willington Childrens Centre,Supplies and Services,304259,Equipment and Materials,11-Jan-2023,000010575954851,MANOMANO,5722,Equipment-purchase and rental,279.98,0.00,279.98
Children and Young Peoples Services,Head of Childrens Social Care,085380,Service Manager CLA Fostering,Supplies and Services,328041,Clothing uniforms and laundry E328,11-Jan-2023,000010575954875,ARGOS LTD,5310,Clothing uniforms and laundry,62.95,0.00,62.95
Regeneration Economy and Growth,Economic Development Level C,030771,Durham Advance Flexible Fund,Transport,235057,Public Transport,11-Jan-2023,000010575954881,NEXUS TRAVEL SHOP,4131,Staff travelling,5.00,0.00,5.00
Children and Young Peoples Services,Head of Childrens Social Care,085511,Emergency Duty Team,Supplies and Services,352001,Conference Expenses,11-Jan-2023,000010575954959,Hotel at Booking.com,7011,Conferencesseminars fees etc,79.00,0.00,79.00
Children and Young Peoples Services,Head of Childrens Social Care,085501,Child Care Cases Legal Expenses,Supplies and Services,304259,Equipment and Materials,11-Jan-2023,000010575954997,BIRMINGHAM REGISTER,9399,Equipment-purchase and rental,15.00,0.00,15.00
Children and Young Peoples Services,Head of Childrens Social Care,085342,16 Hickstead Rise (previously 9 Cedar Ave),Supplies and Services,344033,Telephones,11-Jan-2023,000010575955041,Lebara Mobile Limited,4814,Telephones general-all costs,5.00,0.00,5.00
Children and Young Peoples Services,Head of Childrens Social Care,085634,Families First Easington,Supplies and Services,338045,Services,11-Jan-2023,000010575955051,Hotel at Booking.com,7011,Legal expenses 338045,108.90,0.00,108.90
Children and Young Peoples Services,Head of Childrens Social Care,085634,Families First Easington,Supplies and Services,338045,Services,11-Jan-2023,000010575955059,Hotel at Booking.com,7011,Legal expenses 338045,217.80,0.00,217.80
Regeneration Economy and Growth,Planning & Housing,031576,B& B - Temp Accom,Transport,235057,Public Transport,11-Jan-2023,000010575955065,National Express Limit,4131,Staff travelling,12.30,0.00,12.30
Adult and Health Services,Commissioning inc Supporting People,052100,Supporting the Provider Market,Supplies and Services,304403,Equipment and Materials,11-Jan-2023,000010575955141,AMZNMktplace,5999,Other consumables,970.83,0.00,970.83
Children and Young Peoples Services,Head of Education and Skills,071732,Dean Bank Childcare,Supplies and Services,324117,Provisions E324,11-Jan-2023,000010575955167,SAINSBURYS S/MKTS,5411,Catering costs - provisions,28.89,0.00,28.89
Regeneration Economy and Growth,Economic Development Level C,030770,Durham Advance,Premises,145009,Cleaning and Domestic Supplies,11-Jan-2023,000010575955233,WWW.CLEANINGPRODUCTS.N,7349,Other cleaning and domestic costs,90.70,15.12,75.58
Children and Young Peoples Services,Head of Childrens Social Care,085341,High Etherley Satelite Home,Supplies and Services,324117,Provisions E324,11-Jan-2023,000010575955243,ASDA STORES,5411,Catering costs - provisions,63.10,0.00,63.10
Children and Young Peoples Services,Head of Childrens Social Care,085341,High Etherley Satelite Home,Supplies and Services,304999,Equipment and Materials,11-Jan-2023,000010575955247,SP SPARES2GO,5734,Misc equipment tools and materials,12.49,0.00,12.49
Adult and Health Services,Head of Adults,055202,Support and Recovery,Supplies and Services,304403,Equipment and Materials,11-Jan-2023,000010575955309,AMZNMktplace,5999,Other consumables,36.00,6.00,30.00
Children and Young Peoples Services,Head of Early Help Inclusion & Vulnerable Children.,085957,Secure Management,Supplies and Services,328041,Clothing uniforms and laundry E328,11-Jan-2023,000010575955319,JD Sports Fashion PLC,5655,Clothing uniforms and laundry,63.99,0.00,63.99
Children and Young Peoples Services,Head of Early Help Inclusion & Vulnerable Children.,085957,Secure Management,Supplies and Services,328041,Clothing uniforms and laundry E328,11-Jan-2023,000010575955323,FLANNELS.COM,5691,Clothing uniforms and laundry,50.00,0.00,50.00
Children and Young Peoples Services,Head of Early Help Inclusion & Vulnerable Children.,085957,Secure Management,Supplies and Services,328041,Clothing uniforms and laundry E328,11-Jan-2023,000010575955327,FLANNELS.COM,5691,Clothing uniforms and laundry,125.99,0.00,125.99
Children and Young Peoples Services,Head of Early Help Inclusion & Vulnerable Children.,085957,Secure Management,Supplies and Services,304403,Equipment and Materials,11-Jan-2023,000010575955335,AMZNMktplace,5999,Other consumables,14.54,2.43,12.11
Children and Young Peoples Services,Head of Early Help Inclusion & Vulnerable Children.,085957,Secure Management,Supplies and Services,304403,Equipment and Materials,11-Jan-2023,000010575955339,AMZNMktplace,5999,Other consumables,5.55,0.93,4.62
Children and Young Peoples Services,Head of Early Help Inclusion & Vulnerable Children.,085957,Secure Management,Supplies and Services,328041,Clothing uniforms and laundry E328,11-Jan-2023,000010575955345,SP GLAMDOLL FASHION,5631,Clothing uniforms and laundry,27.98,0.00,27.98
Children and Young Peoples Services,Head of Early Help Inclusion & Vulnerable Children.,085957,Secure Management,Supplies and Services,384999,Miscellaneous Expenses,11-Jan-2023,000010575955349,Amazon.co.uk 1H3J05SD4,5969,Other expenses,100.00,0.00,100.00
Children and Young Peoples Services,Head of Early Help Inclusion & Vulnerable Children.,085957,Secure Management,Supplies and Services,304403,Equipment and Materials,11-Jan-2023,000010575955351,AMZNMktplace,5999,Other consumables,34.50,5.76,28.74
Children and Young Peoples Services,Head of Early Help Inclusion & Vulnerable Children.,085957,Secure Management,Supplies and Services,304259,Equipment and Materials,11-Jan-2023,000010575955355,PMT ONLINE,5733,Equipment-purchase and rental,199.00,0.00,199.00
Children and Young Peoples Services,Head of Early Help Inclusion & Vulnerable Children.,085957,Secure Management,Supplies and Services,304221,Equipment and Materials,11-Jan-2023,000010575955361,B&Q LTD,5211,Direct materials,113.35,0.00,113.35
Children and Young Peoples Services,Head of Early Help Inclusion & Vulnerable Children.,085957,Secure Management,Supplies and Services,304259,Equipment and Materials,11-Jan-2023,000010575955363,GEAR4MUSIC,5733,Equipment-purchase and rental,153.99,0.00,153.99
Children and Young Peoples Services,Head of Early Help Inclusion & Vulnerable Children.,085957,Secure Management,Supplies and Services,328041,Clothing uniforms and laundry E328,11-Jan-2023,000010575955369,PRETTYLITTLETHING.COM,5691,Clothing uniforms and laundry,59.60,0.00,59.60
Children and Young Peoples Services,Head of Early Help Inclusion & Vulnerable Children.,085957,Secure Management,Supplies and Services,304999,Equipment and Materials,11-Jan-2023,000010575955375,BOOTS UK ECOMM,5912,Misc equipment tools and materials,35.00,0.00,35.00
Children and Young Peoples Services,Head of Early Help Inclusion & Vulnerable Children.,085957,Secure Management,Supplies and Services,304403,Equipment and Materials,11-Jan-2023,000010575955377,AMZNMKTPLACE AMAZON.CO,5999,Other consumables,5.13,0.86,4.27
Children and Young Peoples Services,Head of Early Help Inclusion & Vulnerable Children.,085957,Secure Management,Supplies and Services,324117,Provisions E324,11-Jan-2023,000010575955379,TESCO STORES 6329,5411,Catering costs - provisions,142.20,0.00,142.20
